Workbook

Sheet Simulación
E2: =IF(D14="","Selecciona el tipo de vehículo",IF(D17="","Introducir datos del vehículo",IF(ISERROR(D26)=TRUE,"Seleccionar nuevamente el Modelo del Auto",IF(D18="","Introducir precio de auto",IF(D20="","Introducir el enganche",IF(M16<10000,"Lo sentimos el importe mínimo a financiar son $10,000",IF(D21="","Seleccionar plazo valido",IF(ISERROR(VLOOKUP(D21,Catalogos!A6:A14,1,0))=TRUE,"Seleccionar plazo valido para el año del vehiculo",IF(D20<>0, IF(D14="Automovil",IF(D18>=500000,IF((D20/D18)>=0.2,"","Introducir un enganche de al menos $"&ROUND(D18*0.2,0)),IF(D20/D18<10%,"Introducir un enganche de al menos $"&ROUND(D18*0.2,0),"")), IF(D14="Automovil",IF(D16>=2017,IF((D20/D18)>=0.1,"","Introducir un enganche de al menos $"&ROUND(D18*0.1,0)),IF(D20/D18<20%,"Introducir un enganche de al menos $"&ROUND(D18*0.2,0),"")), IF(D14="Camioneta",IF(D16>=2017,IF((D20/D18)>=0.25,"","Introducir un enganche de al menos $"&ROUND(D18*0.25,0)),IF(D20/D18<30%,"Introducir un enganche de al menos $"&ROUND(D18*0.3,0),"")), "")))))))))))) -> Selecciona el tipo de vehículo | M2: =TODAY() -> 2020-05-22
L4: Agencia
B5: Inmediauto | L5: Teléfono
L6: Asesor
B8: Datos Generales | J8: Desembolso inicial | S8: Ingreso requerido estimado
B9: Nombre del cliente | J9: Enganche | M9: =IFERROR(IF(D20/D18<10%,"-",D20),"-") -> - | S9: 6 Meses | T9: 12 Meses | U9: 18 Meses | V9: 24 Meses | W9: 30 Meses | X9: 36 Meses | Y9: 48 Meses | Z9: 60 Meses | AA9: 72 Meses
B10: Estado | D10: CIUDAD DE MEXICO | J10: Comisión por apertura (con IVA) | M10: =IF(E2="",N13/M16,"") ->  | N10: =IFERROR(N13*1.16,"-") -> - | S10: 6 | T10: 12 | U10: 18 | V10: 24 | W10: 30 | X10: 36 | Y10: 48 | Z10: 60 | AA10: 72
B11: ¿Es cliente HSBC? | D11: NO | J11: Seguro | M11: =IF(E2="",IFERROR(Amortización!R24*1.16,"-"),"-") -> - | S11: =Ofertas!C24 -> - | T11: =Ofertas!D24 -> - | U11: =Ofertas!E24 -> - | V11: =Ofertas!F24 -> - | W11: =Ofertas!G24 -> - | X11: =Ofertas!H24 -> - | Y11: =Ofertas!I24 -> - | Z11: =Ofertas!J24 -> - | AA11: =Ofertas!K24 -> -
B12: Producto | D12: Inmediauto Verde | J12: Pago inicial | M12: =IFERROR(IF(D20/D18<10%,"-",M9+N10+IF(OR(U18="SCA",U18="SCM"),M11,0)),"-") -> -
B13: Datos del vehículo | N13: =IFERROR(IF(D20/D18<10%,"-",M16*IF(D11="No",1%,IF(D12="Premier",1%,IF(D12="Advance/Nómina en HSBC",1%,1%)))),"-") -> - | W13: Modelo | X13: =IF(D17="","Introducir Modelo del auto","") -> Introducir Modelo del auto
B14: Tipo | J14: Datos de la oferta | W14: Precio | X14: =IF(D18="","Introducir precio del auto","") -> Introducir precio del auto
B15: Marca | D15: SELECCIONA MARCA | J15: Mensualidad Inicial* | M15: =IFERROR(IF(D20/D18<10%,"",Amortización!I25),"-") -> - | W15: Enganche Nuevo | X15: =IF(D16>2016,IF(D20/D18<10%,"Introducir un enganche de al menos $"&ROUND(D18*0.1,0),""),"") -> 
B16: Año | J16: Importe del crédito | M16: =IFERROR(IF(D20/D18<10%,"-",D18-M9),"-") -> - | S16: Tasa sin Subvención | U16: =IF(D21<=60,IF(D20/D18>=49%,10.5%,11.5%),IF(D20/D18>=49%,11%,12%)) ->  | W16: Enganche Usado | X16: =IF(AND(D16<2017,D20/D18<20%),"Introducir un enganche de al menos $"&ROUND(D18*0.2,0),"") -> 
B17: Modelo | J17: Tasa de Interés** | M17: =IFERROR(HLOOKUP(D21,Ofertas!$C$16:$K$18,3,0),"-") -> - | W17: Importe mínimo | X17: =IF(M16<10000,"Lo sentimos el importe mínimo a financiar son $10,000","") -> 
B18: Precio del auto | S18: Nemónico | U18: =VLOOKUP(D25,Catalogos!$A$21:$B$26,2,0) -> SCA | W18: Modelo | X18: =IF(ISERROR(D26)=TRUE,"Seleccionar nuevamente el Modelo del Auto","") -> 
B19: Datos de la solicitud | D19: =IF(D12="INMEDIAUTO VERDE","Enganche mínimo del 20%","-") -> Enganche mínimo del 20% | F19: =IF(D18>=750000,"Enganche mínimo del 25%","") ->  | J19: CAT*** | M19: =IFERROR(Amortización!J18,"-") -> - | W19: Plazo vacio | X19: =IF(D21="","Seleccionar plazo valido","") -> Seleccionar plazo valido
B20: Enganche | H20: =IF(ISBLANK(D20),"",IF(ISERROR(D20/D18),"",D20/D18)) ->  | W20: Plazo valido | X20: =IF(ISERROR(VLOOKUP(D21,Catalogos!A6:A13,1,0))=TRUE,"Seleccionar plazo valido para el año del vehiculo","") -> Seleccionar plazo valido para el año del vehiculo
B21: Plazo | J21: Ingreso requerido ( Estimado ) | M21: =IF(E2="",HLOOKUP($D$21,$S$10:$AA$11,2,0),"-") -> -
B22: Subvención $ | H22: =IF(ISBLANK(D22),"",IF(ISERROR(D22/D18),"",D22/D18)) -> 
B24: Datos del seguro | D24: =E2 -> Selecciona el tipo de vehículo
B25: Tipo seguro de daños | D25: SEGURO CONTADO ANUAL
B26: Importe del seguro | D26: =IF(D17="","-",VLOOKUP(D17,Catalogos!$AA$3:$AB$262,2,0)*VLOOKUP(D10,Catalogos!$G$2:$H$33,2,0)*1.16+348) -> -
B27: * El pago incluye la mensualidad del seguro en caso de ser financiado.
B29: ** En caso de tener subvencion de la agencia, la tasa podrá ser modificada previa autorización de la agencia.
B30: *** CAT promedio sin IVA. Informativo. Tasa fija anual. Comisión por apertura de contado. Cobertura Nacional. Crédito en Moneda Nacional. Información sujeta a cambios sin previo aviso. Aplican condiciones.
B31: Sujeto a aprobación de crédito. Consulta términos, condiciones de contratación y comisiones en www.hsbc.com.mx | K31: Fecha de cálculo | M31: =TODAY() -> 2020-05-22
B32: La tasa de interés fija anual será determinada por el porcentaje de financiamiento, la capacidad de pago e historial crediticio del cliente.
B33: La información aquí mostrada es para fines informativos y de comparación, exclusivamente, por lo que no constituye la asunción de obligación alguna por parte de HSBC o de las Aseguradoras que se indican.
B34: El Seguro de Vida, es registrado y operado por HSBC Seguros S.A. de CV., Grupo Financiero HSBC. El Seguro de Daños (Seguro de Auto), es registrado y operado por AXA Seguros S.A. de C.V.
B35: La tasa de interés fija anual será determinada por el porcentaje de financiamiento, la capacidad de pago e historial crediticio del cliente.
N37: V.20.022019
B41: Control de Cambios
B42: V.5.022017 | C42: Se modifica fecha de tabla de amortización. Cambia del día 30 de cada mes al último día de cada mes.
C43: Se eliminan vehiculos 2010 2011 2012
B44: V.7.042017 | C44: Se modifica lógica de precios conforme a autorización de marzo 2017
C45: Se incluye enganche partiendo de 10% para Autos Nuevos
B46: V.9.042017 | C46: Se actualizan tarifas de Primas hasta May17 con valores de 2012 a 2018
B47: V.12.072017 | C47: Se actualizan factores de ingresos para no asalariados
B48: V.12.092017 | C48: Se actualizan tarifas y enganches mínimos para auto o camioneta
B49: V.13.102017 | C49: Se anexa link de solicitud, modificación del % de enganche y actualización de tarifas

Sheet Amortización
AB3: Condiciones generales | AF3: Condiciones pagos Periodicos
V4: Comision con Iva % | W4: =IF(Simulación!E2="",Simulación!N13/Simulación!M16,"-") -> - | AB4: Días x año | AD4: 360
C6: Inmediauto | V6: Seguro sin Iva | W6: =(Simulación!D26-348)/1.16 ->  | AB6: Pagos anuales | AD6: =IF(J13="Quincenal",2,1)*12 -> 12
C8: Datos del vehículo | H8: Datos del crédito | V8: Tasa Base | W8: =Simulación!U16 ->  | AB8: Tasa diaria | AD8: =J11/AD4 ->  | AF8: Pago del Auto: | AH8: =J10*AD9*(1+AD9)^AD13/(((1+AD9)^AD13)-1) -> 
C9: Marca | E9: =Simulación!D15 -> SELECCIONA MARCA | H9: Enganche | J9: =Simulación!D20 -> 0 | L9: =IF(Simulación!E2="",Simulación!D20/Simulación!D18,"-") -> - | U9: Crédito Subvención | W9: =J10-(Simulación!D22/1.16) ->  | AB9: Tasa periódica | AD9: =J11/AD6 ->  | AF9: Prima de seguro daños multianual: | AH9: =((AD11+W16)*AD10*(1+AD10)^AD15)/(((1+AD10)^AD15)-1) -> 
C10: Año | E10: =Simulación!D16 -> 0 | H10: Crédito | J10: =IFERROR(E12-(L9*E12),"") ->  | V10: Pago Subvención | W10: =PMT(W8/12,J12,-W9) ->  | AB10: Tasa periódica seguro | AD10: =W15/AD6 -> 0.01208333333 | AF10: Prima de seguro daños anual: | AH10: =((W6+W16)*AD10*(1+AD10)^(IF(J13="Quincenal",2,1)*12))/(((1+AD10)^(IF(J13="Quincenal",2,1)*12))-1) -> 
C11: Modelo | E11: =Simulación!D17 -> 0 | H11: Tasa anual | J11: =IF(Simulación!E2="",W11,"-") -> - | U11: Tasa de Interés | W11: =IF(RATE(J12,W10,-J10)*12<0,0.00001,RATE(J12,W10,-J10)*12) ->  | AB11: Seguro de daño multianual | AD11: =W6*J12/12 ->  | AF11: Prima de seguro solo 6 meses: | AH11: =(((W6/2)+W16)*AD10*(1+AD10)^(IF(J13="Quincenal",2,1)*6))/(((1+AD10)^(IF(J13="Quincenal",2,1)*6))-1) -> 
C12: Precio del auto | E12: =Simulación!D18 -> 0 | H12: Plazo | J12: =Simulación!D21 -> 0 | AB12: Seguro de daño semestral | AD12: =W6/2 -> 
C13: Datos del seguro | H13: Periodicidad | J13: Mensual | V13: Datos Generales | AB13: Periodos crédito auto | AD13: =IF(J13="Quincenal",2,1)*J12 -> 0
C14: Tipo seguro de daños | E14: =Simulación!D25 -> SEGURO CONTADO ANUAL | H14: Comisión por apertura (Iva incluido): | J14: =IF(J10="","",Simulación!N13*1.16) ->  | V14: Segmento de cliente | W14: =Simulación!D12 -> Inmediauto Verde | AB14: Nemonico seguro | AD14: =VLOOKUP(E14,Catalogos!$A$21:$B$26,2,0) -> SCA
C15: Importe del seguro | E15: =Simulación!D26 -> - | H15: Subvención | J15: =Simulación!D22 -> 0 | U15: Tasa seguro | V15: tasa seg | W15: 0.145 | AB15: Periodos seguro | AD15: =AD13 -> 0
H16: Fecha cotización | J16: =NOW() -> 2020-05-22T13:22:33.220 | V16: Prima emisión de póliza | W16: 300
C17: Pago inicial (Com. Apert. + Seg. + Eng.) | E17: =Simulación!M12 -> - | H17: Tipo Prepago | J17: Mensualidad
H18: CAT | J18: =HLOOKUP(J12,Ofertas!$C$16:$K$23,8,0) -> 
AC21: SFM | AD21: SFA | AE21: SCA | AF21: SCM | AG21: SG | AH21: SCA
C22: Pago No. | D22: Fecha de pago | E22: Pago a Capital | F22: Pago intereses | G22: Pago Total Crédito Auto | H22: Pago seguro daños (con IVA) | I22: Pago Total (Iva Incluido) | J22: Prepago adicional | K22: Saldo Final (solo Auto) | R22: Pago seguro daños (sin IVA) | T22: Flujo sin IVA | V22: Fecha pago Mensual | W22: Fecha Pago Quincenal | Y22: Periodos anual | Z22: Periodos quincenal | AA22: IVA mult (seguros + int) | AB22: IVA anual (seguros + int) | AC22: Seguro financiado multianual | AD22: Seguro financiado anual | AE22: Seguro de contado anual | AF22: Seguro de contado multianual | AG22: Seguro gratis agencia | AH22: Otra aseguradora 1er año
C23: Total | E23: =SUM(E25:E96) -> 0 | F23: 0 | G23: 0 | H23: 0 | I23: 0 | J23: 0
C24: 0 | H24: =R24*1.16 -> 0 | I24: =R24*1.16 -> 0 | K24: =+J10 ->  | R24: =IF(C24="","",IF($AD$14="SFM",AC24,IF($AD$14="SFA",AD24,IF($AD$14="SCA",AE24,IF($AD$14="SCM",AF24,IF($AD$14="SG",AG24,IF($AD$14="SFA",AH24,0))))))) -> 0 | T24: =-K24+R24+(W4*J10)/1.16 ->  | AE24: =IF(C25="",0,IF(AND(OR(C24=0,C24=13,C24=25,C24=49,C24=61),OR($J$12=6,$J$12=18,$J$12=30),$AD$13-C25<(IF($J$13="Quincenal",2,1)*6)),$AD$12+$W$16,IF(OR(AND($J$13="Quincenal",OR(C24=0,C24=25,C24=49,C24=73,C24=97,C24=121)),AND($J$13="Mensual",OR(C24=0,C24=13,C24=25,C24=37,C24=49,C24=61))),$W$6+$W$16,0))) -> 0 | AF24: =AD11 ->  | AH24: =AE24 -> 0
C25: =IF(AND($J$10<>"",C24<$AD$13,K24<>0),C24+1,"") ->  | D25: =IF(J10="","",IF($J$13="Quincenal",W25,V25)) ->  | E25: =IF(D25="","",IF($J$17="Mensualidad",PMT($J$11/12,$J$12-C24,-K24)-F25,MIN(PMT($J$11/12,$J$12,-$J$10)-F25,K24))) ->  | F25: =IF(D25="","",K24*IF($J$13="Quincenal",15,30)*$AD$8) ->  | G25: =IF(C25="","",SUM(E25:F25)) ->  | H25: =IF(C25="","",IF(OR($AD$14="SCA",$AD$14="SGA"),R25*1.16,R25)+IF($AD$14="SFM",AA25,0)+IF($AD$14="SFA",AB25)) ->  | I25: =IF(C25="","",G25+(F25*0.16)+IF(OR($AD$14="SCA",$AD$14="SGA"),R25*1.16,R25)+IF($AD$14="SFM",AA25,0)+IF($AD$14="SFA",AB25)) ->  | K25: =IF(D25<>"",K24-E25-J25,"") ->  | T25: =IF(D25="","",G25+R25) ->  | V25: =IF(DAY(J16)<16,EOMONTH(J16,0)+15,EOMONTH(J16,1)) -> 2020-06-30 | W25: =IF(AND(C25<>"",DAY($J$16)<=15),EOMONTH(J16,-1)+IF(MONTH(J16)=2,28,30),IF(AND(C25<>"",DAY($J$16)>15),DATE(YEAR(J16),MONTH(J16)+1,DAY(15)))) -> FALSE | Y25: 1 | Z25: 1 | AA25: =IPMT(AD$10,C25,AD$13,-(AD$11+W$16)*1.16)*0.16+AC25*0.16 ->  | AB25: =IPMT(AD$10,IF($J$13="Quincenal",Z25,Y25),$AD$6,-(IF(AND(OR($J$12=6,$J$12=18,$J$12=30),$AD$13-C25<(IF($J$13="Quincenal",2,1)*6)),$AD$12,$W$6)+$W$16)*1.16)*0.16+AD25*0.16 ->  | AC25: =IF(C25<=$AD$15,$AH$9,"") ->  | AD25: =IF(AND(OR($J$12=6,$J$12=18,$J$12=30),$AD$13-C25<(IF($J$13="Quincenal",2,1)*6)),$AH$11,$AH$10) ->  | AE25: =IF(C26="",0,IF(AND(OR(C25=0,C25=13,C25=25,C25=49,C25=61),OR($J$12=6,$J$12=18,$J$12=30),$AD$13-C26<(IF($J$13="Quincenal",2,1)*6)),$AD$12+$W$16,IF(OR(AND($J$13="Quincenal",OR(C25=0,C25=25,C25=49,C25=73,C25=97,C25=121)),AND($J$13="Mensual",OR(C25=0,C25=13,C25=25,C25=37,C25=49,C25=61))),$W$6+$W$16,0))) -> 0 | AG25: =IF($J$13="Quincenal",IF(C25<25,0,AE25),IF(C25<13,0,AE25)) -> 0 | AH25: =AE25 -> 0
D26: =IF($J$13="Quincenal",W26,V26) ->  | E26: =IF(D26="","",IF($J$17="Mensualidad",PMT($J$11/12,$J$12-C25,-K25)-F26,MIN(PMT($J$11/12,$J$12,-$J$10)-F26,K25))) ->  | G26: =IF(C26="","",SUM(E26:F26)) ->  | H26: =IF(C26="","",IF(OR($AD$14="SCA",$AD$14="SGA"),R26*1.16,R26)+IF($AD$14="SFM",AA26,0)+IF($AD$14="SFA",AB26)) ->  | K26: =IF(D26<>"",K25-E26-J26,"") ->  | T26: =IF(D26="","",G26+R26) ->  | V26: =IF(C26="","",IF(DAY(V25)<16,EOMONTH(V25,0)+15,EOMONTH(V25,1))) ->  | W26: =IF(C26<>"",IF(DAY(W25)=15,EOMONTH(W25,-1)+IF(MONTH(W25)=2,28,30),EOMONTH(W25,0)+15),"") ->  | Y26: 2 | Z26: 2 | AE26: 0 | AG26: 0 | AH26: 0
V27: =IF(C27="","",IF(DAY(V26)<16,EOMONTH(V26,0)+15,EOMONTH(V26,1))) ->  | Y27: 3 | Z27: 3 | AE27: 0 | AG27: 0 | AH27: 0
K28: =IF(D28<>"",K27-E28-J28,"") ->  | Y28: 4 | Z28: 4 | AE28: 0 | AG28: 0 | AH28: 0
D29: =IF($J$13="Quincenal",W29,V29) ->  | K29: =IF(D29<>"",K28-E29-J29,"") ->  | Y29: 5 | Z29: 5 | AE29: 0 | AG29: 0 | AH29: 0
Y30: 6 | Z30: 6 | AE30: 0 | AG30: 0 | AH30: 0
C31: =IF(AND($J$10<>"",C30<$AD$13,K30<>0),C30+1,"") ->  | Y31: 7 | Z31: 7 | AE31: 0 | AG31: 0 | AH31: 0
C32: =IF(AND($J$10<>"",C31<$AD$13,K31<>0),C31+1,"") ->  | Y32: 8 | Z32: 8 | AE32: 0 | AG32: 0 | AH32: 0
Y33: 9 | Z33: 9 | AE33: 0 | AG33: 0 | AH33: 0
Y34: 10 | Z34: 10 | AE34: 0 | AG34: 0 | AH34: 0
Y35: 11 | Z35: 11 | AE35: 0 | AG35: 0 | AH35: 0
Y36: 12 | Z36: 12 | AE36: 0 | AG36: 0 | AH36: 0
Y37: 1 | Z37: 13 | AE37: 0 | AG37: 0 | AH37: 0
Y38: 2 | Z38: 14 | AE38: 0 | AG38: 0 | AH38: 0
Y39: 3 | Z39: 15 | AE39: 0 | AG39: 0 | AH39: 0
Y40: 4 | Z40: 16 | AE40: 0 | AG40: 0 | AH40: 0
Y41: 5 | Z41: 17 | AE41: 0 | AG41: 0 | AH41: 0
Y42: 6 | Z42: 18 | AE42: 0 | AG42: 0 | AH42: 0
D43: =IF($J$13="Quincenal",W43,V43) ->  | K43: =IF(D43<>"",K42-E43-J43,"") ->  | Y43: 7 | Z43: 19 | AE43: 0 | AG43: 0 | AH43: 0
K44: =IF(D44<>"",K43-E44-J44,"") ->  | Y44: 8 | Z44: 20 | AE44: 0 | AG44: 0 | AH44: 0
Y45: 9 | Z45: 21 | AE45: 0 | AG45: 0 | AH45: 0
Y46: 10 | Z46: 22 | AE46: 0 | AG46: 0 | AH46: 0
Y47: 11 | Z47: 23 | AE47: 0 | AG47: 0 | AH47: 0
Y48: 12 | Z48: 24 | AE48: 0 | AG48: 0 | AH48: 0
Y49: 1 | Z49: 1 | AE49: 0 | AG49: 0 | AH49: 0
Y50: 2 | Z50: 2 | AE50: 0 | AG50: 0 | AH50: 0
Y51: 3 | Z51: 3 | AE51: 0 | AG51: 0 | AH51: 0
Y52: 4 | Z52: 4 | AE52: 0 | AG52: 0 | AH52: 0
Y53: 5 | Z53: 5 | AE53: 0 | AG53: 0 | AH53: 0
Y54: 6 | Z54: 6 | AE54: 0 | AG54: 0 | AH54: 0
Y55: 7 | Z55: 7 | AE55: 0 | AG55: 0 | AH55: 0
R56: =IF(C56="","",IF($AD$14="SFM",AC56,IF($AD$14="SFA",AD56,IF($AD$14="SCA",AE56,IF($AD$14="SCM",AF56,IF($AD$14="SG",AG56,IF($AD$14="SFA",AH56,0))))))) ->  | Y56: 8 | Z56: 8 | AE56: 0 | AG56: 0 | AH56: 0
D57: =IF($J$13="Quincenal",W57,V57) ->  | F57: =IF(D57="","",K56*IF($J$13="Quincenal",15,30)*$AD$8) ->  | I57: =IF(C57="","",G57+(F57*0.16)+IF(OR($AD$14="SCA",$AD$14="SGA"),R57*1.16,R57)+IF($AD$14="SFM",AA57,0)+IF($AD$14="SFA",AB57)) ->  | T57: =IF(D57="","",G57+R57) ->  | Y57: 9 | Z57: 9 | AA57: =IPMT(AD$10,C57,AD$13,-(AD$11+W$16)*1.16)*0.16+AC57*0.16 ->  | AB57: =IPMT(AD$10,IF($J$13="Quincenal",Z57,Y57),$AD$6,-(IF(AND(OR($J$12=6,$J$12=18,$J$12=30),$AD$13-C57<(IF($J$13="Quincenal",2,1)*6)),$AD$12,$W$6)+$W$16)*1.16)*0.16+AD57*0.16 ->  | AC57: =IF(C57<=$AD$15,$AH$9,"") ->  | AD57: =IF(AND(OR($J$12=6,$J$12=18,$J$12=30),$AD$13-C57<(IF($J$13="Quincenal",2,1)*6)),$AH$11,$AH$10) ->  | AE57: 0 | AG57: =IF($J$13="Quincenal",IF(C57<25,0,AE57),IF(C57<13,0,AE57)) -> 0 | AH57: 0
W58: =IF(C58<>"",IF(DAY(W57)=15,EOMONTH(W57,-1)+IF(MONTH(W57)=2,28,30),EOMONTH(W57,0)+15),"") ->  | Y58: 10 | Z58: 10 | AE58: 0 | AG58: 0 | AH58: 0
Y59: 11 | Z59: 11 | AE59: 0 | AG59: 0 | AH59: 0
Y60: 12 | Z60: 12 | AE60: 0 | AG60: 0 | AH60: 0
Y61: 1 | Z61: 13 | AE61: 0 | AG61: 0 | AH61: 0
Y62: 2 | Z62: 14 | AE62: 0 | AG62: 0 | AH62: 0
Y63: 3 | Z63: 15 | AE63: 0 | AG63: 0 | AH63: 0
Y64: 4 | Z64: 16 | AE64: 0 | AG64: 0 | AH64: 0
Y65: 5 | Z65: 17 | AE65: 0 | AG65: 0 | AH65: 0
Y66: 6 | Z66: 18 | AE66: 0 | AG66: 0 | AH66: 0
Y67: 7 | Z67: 19 | AE67: 0 | AG67: 0 | AH67: 0
Y68: 8 | Z68: 20 | AE68: 0 | AG68: 0 | AH68: 0
Y69: 9 | Z69: 21 | AE69: 0 | AG69: 0 | AH69: 0
Y70: 10 | Z70: 22 | AE70: 0 | AG70: 0 | AH70: 0
Y71: 11 | Z71: 23 | AE71: 0 | AG71: 0 | AH71: 0
Y72: 12 | Z72: 24 | AE72: 0 | AG72: 0 | AH72: 0
Y73: 1 | Z73: 1 | AE73: 0 | AG73: 0 | AH73: 0
Y74: 2 | Z74: 2 | AE74: 0 | AG74: 0 | AH74: 0
Y75: 3 | Z75: 3 | AE75: 0 | AG75: 0 | AH75: 0
Y76: 4 | Z76: 4 | AE76: 0 | AG76: 0 | AH76: 0
Y77: 5 | Z77: 5 | AE77: 0 | AG77: 0 | AH77: 0
Y78: 6 | Z78: 6 | AE78: 0 | AG78: 0 | AH78: 0
Y79: 7 | Z79: 7 | AE79: 0 | AG79: 0 | AH79: 0
Y80: 8 | Z80: 8 | AE80: 0 | AG80: 0 | AH80: 0
Y81: 9 | Z81: 9 | AE81: 0 | AG81: 0 | AH81: 0
Y82: 10 | Z82: 10 | AE82: 0 | AG82: 0 | AH82: 0
Y83: 11 | Z83: 11 | AE83: 0 | AG83: 0 | AH83: 0
Y84: 12 | Z84: 12 | AA84: =IPMT(AD$10,C84,AD$13,-(AD$11+W$16)*1.16)*0.16+AC84*0.16 ->  | AE84: 0 | AG84: 0 | AH84: =AE84 -> 0
K85: =IF(D85<>"",K84-E85-J85,"") ->  | Y85: 1 | Z85: 1 | AA85: =IPMT(AD$10,C85,AD$13,-(AD$11+W$16)*1.16)*0.16+AC85*0.16 ->  | AD85: =IF(AND(OR($J$12=6,$J$12=18,$J$12=30),$AD$13-C85<(IF($J$13="Quincenal",2,1)*6)),$AH$11,$AH$10) ->  | AE85: 0 | AG85: =IF($J$13="Quincenal",IF(C85<25,0,AE85),IF(C85<13,0,AE85)) -> 0 | AH85: =AE85 -> 0
C86: =IF(AND($J$10<>"",C85<$AD$13,K85<>0),C85+1,"") ->  | Y86: 2 | Z86: 2 | AE86: 0 | AG86: 0 | AH86: 0
Y87: 3 | Z87: 3 | AE87: 0 | AG87: 0 | AH87: 0
Y88: 4 | Z88: 4 | AE88: 0 | AG88: 0 | AH88: 0
Y89: 5 | Z89: 5 | AE89: =IF(C90="",0,IF(AND(OR(C89=0,C89=13,C89=25,C89=49,C89=61),OR($J$12=6,$J$12=18,$J$12=30),$AD$13-C90<(IF($J$13="Quincenal",2,1)*6)),$AD$12+$W$16,IF(OR(AND($J$13="Quincenal",OR(C89=0,C89=25,C89=49,C89=73,C89=97,C89=121)),AND($J$13="Mensual",OR(C89=0,C89=13,C89=25,C89=37,C89=49,C89=61))),$W$6+$W$16,0))) -> 0 | AG89: 0 | AH89: 0
E90: =IF(D90="","",IF($J$17="Mensualidad",PMT($J$11/12,$J$12-C89,-K89)-F90,MIN(PMT($J$11/12,$J$12,-$J$10)-F90,K89))) ->  | G90: =IF(C90="","",SUM(E90:F90)) ->  | H90: =IF(C90="","",IF(OR($AD$14="SCA",$AD$14="SGA"),R90*1.16,R90)+IF($AD$14="SFM",AA90,0)+IF($AD$14="SFA",AB90)) ->  | Y90: 6 | Z90: 6 | AE90: 0 | AG90: 0 | AH90: 0
V91: =IF(C91="","",IF(DAY(V90)<16,EOMONTH(V90,0)+15,EOMONTH(V90,1))) ->  | Y91: 7 | Z91: 7 | AE91: 0 | AG91: 0 | AH91: 0
Y92: 8 | Z92: 8 | AE92: 0 | AG92: 0 | AH92: 0
Y93: 9 | Z93: 9 | AE93: 0 | AG93: 0 | AH93: 0
Y94: 10 | Z94: 10 | AE94: 0 | AG94: 0 | AH94: 0
Y95: 11 | Z95: 11 | AE95: 0 | AG95: 0 | AH95: 0
C96: =IF(AND($J$10<>"",C95<$AD$13,K95<>0),C95+1,"") ->  | K96: =IF(D96<>"",K95-E96-J96,"") ->  | Y96: 12 | Z96: 12 | AE96: 0 | AG96: 0 | AH96: 0
C98: * CAT promedio sin IVA. Informativo. Tasa fija anual. Comisión por apertura de contado. Cobertura Nacional. Crédito en Moneda Nacional. Información sujeta a cambios sin previo aviso. Aplican condiciones.
C99: Sujeto a aprobación de crédito. Consulta términos, condiciones de contratación y comisiones en www.hsbc.com.mx | J99: Fecha de cálculo | K99: =TODAY() -> 2020-05-22
C100: La información aquí mostrada es para fines informativos y de comparación, exclusivamente, por lo que no constituye la asunción de obligación alguna por parte de HSBC o de las Aseguradoras que se indican.
C101: El Seguro de Vida, es registrado y operado por HSBC Seguros S.A. de CV., Grupo Financiero HSBC. El Seguro de Daños (Seguro de Auto), es registrado y operado por AXA Seguros S.A. de C.V.

Sheet Ofertas
R4: 0
R5: Asalariado / Asimilado
B6: Inmediauto | R6: Declaración de Impuestos
B9: Marca | C9: =Simulación!D15 -> SELECCIONA MARCA | F9: Enganche | H9: =Simulación!D20 -> 0
B10: Año | C10: =Simulación!D16 -> 0 | F10: Plazo | H10: =Simulación!D21 -> 0
B11: Modelo | C11: =Simulación!D17 -> 0 | F11: Periodicidad del pago | H11: Mensual
B12: Precio del auto | C12: =Simulación!D18 -> 0 | F12: Pago inicial (Com. Apert. + Seguro + Enganche) | H12: =Simulación!M12 -> -
M15: 6 Meses | U15: 12 Meses | AC15: 18 Meses | AK15: 24 Meses | AS15: 30 Meses | BA15: 36 Meses | BI15: 48 Meses | BQ15: 60 Meses | BY15: 60 Meses
B16: Plazo | C16: 6 | D16: 12 | E16: 18 | F16: 24 | G16: 30 | H16: 36 | I16: 48 | J16: 60 | K16: 72 | R16: Monto | S16: =Simulación!M16 -> - | Z16: Monto | AA16: =Simulación!M16 -> - | AH16: Monto | AI16: =Simulación!M16 -> - | AP16: Monto | AQ16: =Simulación!M16 -> - | AX16: Monto | AY16: =Simulación!M16 -> - | BF16: Monto | BG16: =Simulación!M16 -> - | BN16: Monto | BO16: =Simulación!M16 -> - | BV16: Monto | BW16: =Simulación!M16 -> - | CD16: Monto | CE16: =Simulación!M16 -> -
B17: Tasa | C17: =IFERROR(IF(Simulación!D21<=72,IF(Simulación!D20/Simulación!D18>=49%,10.5%,11.5%),IF(Simulación!D20/Simulación!D18>=49%,13.4%,14.4%)),"-") -> - | D17: =IFERROR(IF(Simulación!D21<=72,IF(Simulación!D20/Simulación!D18>=49%,10.5%,11.5%),IF(Simulación!D20/Simulación!D18>=49%,13.4%,14.4%)),"-") -> - | E17: =IFERROR(IF(Simulación!D21<=72,IF(Simulación!D20/Simulación!D18>=49%,10.5%,11.5%),IF(Simulación!D20/Simulación!D18>=49%,13.4%,14.4%)),"-") -> - | F17: =IFERROR(IF(Simulación!D21<=72,IF(Simulación!D20/Simulación!D18>=49%,10.5%,11.5%),IF(Simulación!D20/Simulación!D18>=49%,13.4%,14.4%)),"-") -> - | G17: =IFERROR(IF(Simulación!D21<=72,IF(Simulación!D20/Simulación!D18>=49%,10.5%,11.5%),IF(Simulación!D20/Simulación!D18>=49%,13.4%,14.4%)),"-") -> - | H17: =IFERROR(IF(Simulación!D21<=72,IF(Simulación!D20/Simulación!D18>=49%,10.5%,11.5%),IF(Simulación!D20/Simulación!D18>=49%,13.4%,14.4%)),"-") -> - | I17: =IFERROR(IF(Simulación!D21<=72,IF(Simulación!D20/Simulación!D18>=49%,10.5%,11.5%),IF(Simulación!D20/Simulación!D18>=49%,13.4%,14.4%)),"-") -> - | J17: =IFERROR(IF(Simulación!D21<=72,IF(Simulación!D20/Simulación!D18>=49%,10.5%,11.5%),IF(Simulación!D20/Simulación!D18>=49%,13.4%,14.4%)),"-") -> - | K17: =IFERROR(Simulación!$U$16,"-") -> - | R17: tasa | S17: =C18 -> - | Z17: tasa | AA17: =D18 -> - | AH17: tasa | AI17: =E18 -> - | AP17: tasa | AQ17: =F18 -> - | AX17: tasa | AY17: =G18 -> - | BF17: tasa | BG17: =H18 -> - | BN17: tasa | BO17: =I18 -> - | BV17: tasa | BW17: =J18 -> - | CD17: tasa | CE17: =J18 -> -
B18: Tasa Subvención | C18: =IFERROR(IF(RATE(C59,C62,-Simulación!$M$16)*12<0,0.00001,RATE(C59,C62,-Simulación!$M$16)*12),"-") -> - | D18: =IFERROR(IF(RATE(D59,D62,-Simulación!$M$16)*12<0,0.00001,RATE(D59,D62,-Simulación!$M$16)*12),"-") -> - | E18: =IFERROR(IF(RATE(E59,E62,-Simulación!$M$16)*12<0,0.00001,RATE(E59,E62,-Simulación!$M$16)*12),"-") -> - | F18: =IFERROR(IF(RATE(F59,F62,-Simulación!$M$16)*12<0,0.00001,RATE(F59,F62,-Simulación!$M$16)*12),"-") -> - | G18: =IFERROR(IF(RATE(G59,G62,-Simulación!$M$16)*12<0,0.00001,RATE(G59,G62,-Simulación!$M$16)*12),"-") -> - | H18: =IFERROR(IF(RATE(H59,H62,-Simulación!$M$16)*12<0,0.00001,RATE(H59,H62,-Simulación!$M$16)*12),"-") -> - | I18: =IFERROR(IF(RATE(I59,I62,-Simulación!$M$16)*12<0,0.00001,RATE(I59,I62,-Simulación!$M$16)*12),"-") -> - | J18: =IFERROR(IF(RATE(J59,J62,-Simulación!$M$16)*12<0,0.00001,RATE(J59,J62,-Simulación!$M$16)*12),"-") -> - | K18: =IFERROR(IF(RATE(K59,K62,-Simulación!$M$16)*12<0,0.00001,RATE(K59,K62,-Simulación!$M$16)*12),"-") -> - | R18: Plazo | S18: 6 | Z18: Plazo | AA18: 12 | AH18: Plazo | AI18: 18 | AP18: Plazo | AQ18: 24 | AX18: Plazo | AY18: 30 | BF18: Plazo | BG18: 36 | BN18: Plazo | BO18: 48 | BV18: Plazo | BW18: 60 | CD18: Plazo | CE18: 72
B19: Comisión por apertura (Iva incluido) | C19: =Simulación!$N$10 -> - | D19: =Simulación!$N$10 -> - | E19: =Simulación!$N$10 -> - | F19: =Simulación!$N$10 -> - | G19: =Simulación!$N$10 -> - | H19: =Simulación!$N$10 -> - | I19: =Simulación!$N$10 -> - | J19: =Simulación!$N$10 -> - | K19: =Simulación!$N$10 -> -
B20: Pago mensual con IVA | C20: =IFERROR(N35+O35,"-") -> - | D20: =IFERROR(V35+W35,"-") -> - | E20: =IFERROR(AD35+AE35,"-") -> - | F20: =IFERROR(AL35+AM35,"-") -> - | G20: =IFERROR(AT35+AU35,"-") -> - | H20: =IFERROR(BB35+BC35,"-") -> - | I20: =IFERROR(BJ35+BK35,"-") -> - | J20: =IFERROR(BR35+BS35,"-") -> - | K20: =IFERROR(BZ35+CA35,"-") -> - | R20: Seguro Multianual | S20: =S21*(S18/12) ->  | Z20: Seguro Multianual | AA20: =AA21*(AA18/12) ->  | AH20: Seguro Multianual | AI20: =AI21*(AI18/12) ->  | AP20: Seguro Multianual | AQ20: =AQ21*(AQ18/12) ->  | AX20: Seguro Multianual | AY20: =AY21*(AY18/12) ->  | BF20: Seguro Multianual | BG20: =BG21*(BG18/12) ->  | BN20: Seguro Multianual | BO20: =BO21*(BO18/12) ->  | BV20: Seguro Multianual | BW20: =BW21*(BW18/12) ->  | CD20: Seguro Multianual | CE20: =CE21*(CE18/12) -> 
B21: Pago mensual con seguro | C21: =IFERROR(C20+S35,"-") -> - | D21: =IFERROR(D20+AA35,"-") -> - | E21: =IFERROR(E20+AI35,"-") -> - | F21: =IFERROR(F20+AQ35,"-") -> - | G21: =IFERROR(G20+AY35,"-") -> - | H21: =IFERROR(H20+BG35,"-") -> - | I21: =IFERROR(I20+BO35,"-") -> - | J21: =IFERROR(J20+BW35,"-") -> - | K21: =IFERROR(K20+CE35,"-") -> - | R21: Seguro Anual | S21: =Simulación!$D$26/1.16 ->  | Z21: Seguro Anual | AA21: =Simulación!$D$26/1.16 ->  | AH21: Seguro Anual | AI21: =Simulación!$D$26/1.16 ->  | AP21: Seguro Anual | AQ21: =Simulación!$D$26/1.16 ->  | AX21: Seguro Anual | AY21: =Simulación!$D$26/1.16 ->  | BF21: Seguro Anual | BG21: =Simulación!$D$26/1.16 ->  | BN21: Seguro Anual | BO21: =Simulación!$D$26/1.16 ->  | BV21: Seguro Anual | BW21: =Simulación!$D$26/1.16 ->  | CD21: Seguro Anual | CE21: =Simulación!$D$26/1.16 -> 
B22: % Comisión por apertura | C22: =IFERROR(Simulación!$N$13/Simulación!$M$16,"-") -> - | D22: =IFERROR(Simulación!$N$13/Simulación!$M$16,"-") -> - | E22: =IFERROR(Simulación!$N$13/Simulación!$M$16,"-") -> - | F22: =IFERROR(Simulación!$N$13/Simulación!$M$16,"-") -> - | G22: =IFERROR(Simulación!$N$13/Simulación!$M$16,"-") -> - | H22: =IFERROR(Simulación!$N$13/Simulación!$M$16,"-") -> - | I22: =IFERROR(Simulación!$N$13/Simulación!$M$16,"-") -> - | J22: =IFERROR(Simulación!$N$13/Simulación!$M$16,"-") -> - | K22: =IFERROR(Simulación!$N$13/Simulación!$M$16,"-") -> - | R22: Derechos Poliza | S22: 300 | Z22: Derechos Poliza | AA22: 300 | AH22: Derechos Poliza | AI22: 300 | AP22: Derechos Poliza | AQ22: 300 | AX22: Derechos Poliza | AY22: 300 | BF22: Derechos Poliza | BG22: 300 | BN22: Derechos Poliza | BO22: 300 | BV22: Derechos Poliza | BW22: 300 | CD22: Derechos Poliza | CE22: 300
B23: CAT | C23: =IFERROR(S31,"-") -> - | D23: =IFERROR(AA31,"-") -> - | E23: =IFERROR(AI31,"-") -> - | F23: =IFERROR(AQ31,"-") -> - | G23: =IFERROR(AY31,"-") -> - | H23: =IFERROR(BG31,"-") -> - | I23: =IFERROR(BO31,"-") -> - | J23: =IFERROR(BW31,"-") -> - | K23: =IFERROR(CE31,"-") -> - | R23: Tasa Seguros | S23: 0.145 | Z23: Tasa Seguros | AA23: 0.145 | AH23: Tasa Seguros | AI23: 0.145 | AP23: Tasa Seguros | AQ23: 0.145 | AX23: Tasa Seguros | AY23: 0.145 | BF23: Tasa Seguros | BG23: 0.145 | BN23: Tasa Seguros | BO23: 0.145 | BV23: Tasa Seguros | BW23: 0.145 | CD23: Tasa Seguros | CE23: 0.145
B24: Ingreso requerido | C24: =IFERROR(MAX(C46:C47)/$C$40,"-") -> - | D24: - | E24: - | F24: - | G24: - | H24: - | I24: - | J24: =IFERROR(MAX(J46:J47)/$C$40,"-") -> - | K24: =IFERROR(MAX(K46:K47)/$C$40,"-") -> - | R24: Tipo Seguro | S24: =VLOOKUP(Simulación!D25,Catalogos!$A$21:$B$26,2,0) -> SCA | Z24: Tipo Seguro | AA24: =VLOOKUP(Simulación!D25,Catalogos!$A$21:$B$26,2,0) -> SCA | AH24: Tipo Seguro | AI24: =VLOOKUP(Simulación!D25,Catalogos!$A$21:$B$26,2,0) -> SCA | AP24: Tipo Seguro | AQ24: =VLOOKUP(Simulación!D25,Catalogos!$A$21:$B$26,2,0) -> SCA | AX24: Tipo Seguro | AY24: =VLOOKUP(Simulación!D25,Catalogos!$A$21:$B$26,2,0) -> SCA | BF24: Tipo Seguro | BG24: =VLOOKUP(Simulación!D25,Catalogos!$A$21:$B$26,2,0) -> SCA | BN24: Tipo Seguro | BO24: =VLOOKUP(Simulación!D25,Catalogos!$A$21:$B$26,2,0) -> SCA | BV24: Tipo Seguro | BW24: =VLOOKUP(Simulación!D25,Catalogos!$A$21:$B$26,2,0) -> SCA | CD24: Tipo Seguro | CE24: =VLOOKUP(Simulación!D25,Catalogos!$A$21:$B$26,2,0) -> SCA
B26: * CAT promedio sin IVA. Informativo. Tasa fija anual. Comisión por apertura de contado. Cobertura Nacional. Crédito en Moneda Nacional. Información sujeta a cambios sin previo aviso. Aplican condiciones. | R26: Pago Anual | S26: =-PMT(S23/12,12,S21+S22) ->  | Z26: Pago Anual | AA26: =-PMT(AA23/12,12,AA21+AA22) ->  | AH26: Pago Anual | AI26: =-PMT(AI23/12,12,AI21+AI22) ->  | AP26: Pago Anual | AQ26: =-PMT(AQ23/12,12,AQ21+AQ22) ->  | AX26: Pago Anual | AY26: =-PMT(AY23/12,12,AY21+AY22) ->  | BF26: Pago Anual | BG26: =-PMT(BG23/12,12,BG21+BG22) ->  | BN26: Pago Anual | BO26: =-PMT(BO23/12,12,BO21+BO22) ->  | BV26: Pago Anual | BW26: =-PMT(BW23/12,12,BW21+BW22) ->  | CD26: Pago Anual | CE26: =-PMT(CE23/12,12,CE21+CE22) -> 
B28: Sujeto a aprobación de crédito. Consulta términos, condiciones de contratación y comisiones en www.hsbc.com.mx | I28: Fecha de cálculo | J28: =NOW() -> 2020-05-22T13:22:33.220 | M28: =TODAY() -> 2020-05-22 | R28: Pago Medio año | S28: =-PMT(S23/12,6,(S21/2+S22)) ->  | Z28: Pago Medio año | AA28: =-PMT(AA23/12,6,AA21/2+AA22) ->  | AH28: Pago Medio año | AI28: =-PMT(AI23/12,6,AI21/2+AI22) ->  | AP28: Pago Medio año | AQ28: =-PMT(AQ23/12,6,AQ21/2+AQ22) ->  | AX28: Pago Medio año | AY28: =-PMT(AY23/12,6,AY21/2+AY22) ->  | BF28: Pago Medio año | BG28: =-PMT(BG23/12,6,BG21/2+BG22) ->  | BN28: Pago Medio año | BO28: =-PMT(BO23/12,6,BO21/2+BO22) ->  | BV28: Pago Medio año | BW28: =-PMT(BW23/12,6,BW21/2+BW22) ->  | CD28: Pago Medio año | CE28: =-PMT(CE23/12,6,CE21/2+CE22) -> 
B29: La información aquí mostrada es para fines informativos y de comparación, exclusivamente, por lo que no constituye la asunción de obligación alguna por parte de HSBC o de las Aseguradoras que se indican. | R29: Pago Multianual | S29: =-PMT(S23/12,S18,S20+S22) ->  | Z29: Pago Multianual | AA29: =-PMT(AA23/12,AA18,AA20+AA22) ->  | AH29: Pago Multianual | AI29: =-PMT(AI23/12,AI18,AI20+AI22) ->  | AP29: Pago Multianual | AQ29: =-PMT(AQ23/12,AQ18,AQ20+AQ22) ->  | AX29: Pago Multianual | AY29: =-PMT(AY23/12,AY18,AY20+AY22) ->  | BF29: Pago Multianual | BG29: =-PMT(BG23/12,BG18,BG20+BG22) ->  | BN29: Pago Multianual | BO29: =-PMT(BO23/12,BO18,BO20+BO22) ->  | BV29: Pago Multianual | BW29: =-PMT(BW23/12,BW18,BW20+BW22) ->  | CD29: Pago Multianual | CE29: =-PMT(CE23/12,CE18,CE20+CE22) -> 
R30: CAT Mensual | S30: =IRR(R34:R40) ->  | Z30: CAT Mensual | AA30: =IRR(Z34:Z46) ->  | AH30: CAT Mensual | AI30: =IRR(AH34:AH52) ->  | AP30: CAT Mensual | AQ30: =IRR(AP34:AP58) ->  | AX30: CAT Mensual | AY30: =IRR(AX34:AX64) ->  | BF30: CAT Mensual | BG30: =IRR(BF34:BF70) ->  | BN30: CAT Mensual | BO30: =IRR(BN34:BN82) ->  | BV30: CAT Mensual | BW30: =IRR(BV34:BV94) ->  | CD30: CAT Mensual | CE30: =IRR(CD34:CD106) -> 
B31: El Seguro de Vida, es registrado y operado por HSBC Seguros S.A. de CV., Grupo Financiero HSBC. El Seguro de Daños (Seguro de Auto), es registrado y operado por AXA Seguros S.A. de C.V. | R31: CAT Anual | S31: =(1+S30)^12-1 ->  | Z31: CAT Anual | AA31: =(1+AA30)^12-1 ->  | AH31: CAT Anual | AI31: =(1+AI30)^12-1 ->  | AP31: CAT Anual | AQ31: =(1+AQ30)^12-1 ->  | AX31: CAT Anual | AY31: =(1+AY30)^12-1 ->  | BF31: CAT Anual | BG31: =(1+BG30)^12-1 ->  | BN31: CAT Anual | BO31: =(1+BO30)^12-1 ->  | BV31: CAT Anual | BW31: =(1+BW30)^12-1 ->  | CD31: CAT Anual | CE31: =(1+CE30)^12-1 -> 
N33: Pago (K+i) | O33: Iva intereses | P33: Flujo | Q33: Pago Seguro | R33: Flujo con Seguros | S33: Pago Seguro con IVA | V33: Pago (K+i) | W33: Iva intereses | X33: Flujo | Y33: Pago Seguro | Z33: Flujo con Seguros | AA33: Pago Seguro con IVA | AD33: Pago (K+i) | AE33: Iva intereses | AF33: Flujo | AG33: Pago Seguro | AH33: Flujo con Seguros | AI33: Pago Seguro con IVA | AL33: Pago (K+i) | AM33: Iva intereses | AN33: Flujo | AO33: Pago Seguro | AP33: Flujo con Seguros | AQ33: Pago Seguro con IVA | AT33: Pago (K+i) | AU33: Iva intereses | AV33: Flujo | AW33: Pago Seguro | AX33: Flujo con Seguros | AY33: Pago Seguro con IVA | BB33: Pago (K+i) | BC33: Iva intereses | BD33: Flujo | BE33: Pago Seguro | BF33: Flujo con Seguros | BG33: Pago Seguro con IVA | BJ33: Pago (K+i) | BK33: Iva intereses | BL33: Flujo | BM33: Pago Seguro | BN33: Flujo con Seguros | BO33: Pago Seguro con IVA | BR33: Pago (K+i) | BS33: Iva intereses | BT33: Flujo | BU33: Pago Seguro | BV33: Flujo con Seguros | BW33: Pago Seguro con IVA | BZ33: Pago (K+i) | CA33: Iva intereses | CB33: Flujo | CC33: Pago Seguro | CD33: Flujo con Seguros | CE33: Pago Seguro con IVA
M34: 0 | P34: =-Simulación!M16+Simulación!N13 ->  | Q34: =IF(OR(S$24="SCA"),S$21/2+S$22,IF(S24="SCM",S20,0)) ->  | R34: =P34+Q34 ->  | S34: =IF(OR(S$24="SCA",S$24="SCM"),Q34*1.16,0) ->  | U34: 0 | X34: =-Simulación!M16+Simulación!N13 ->  | Y34: =IF(OR(AA$24="SCA"),AA$21+AA$22,IF(AA24="SCM",AA20,0)) ->  | Z34: =X34+Y34 ->  | AA34: =IF(OR(AA$24="SCA",AA$24="SCM"),Y34*1.16,0) ->  | AC34: 0 | AF34: =-Simulación!M16+Simulación!N13 ->  | AG34: =IF(OR(AI$24="SCA"),AI$21+AI$22,IF(AI24="SCM",AI20,0)) ->  | AH34: =AF34+AG34 ->  | AI34: =IF(OR(AI$24="SCA",AI$24="SCM"),AG34*1.16,0) ->  | AK34: 0 | AN34: =-Simulación!M16+Simulación!N13 ->  | AO34: =IF(OR(AQ$24="SCA"),AQ$21+AQ$22,IF(AQ24="SCM",AQ20,0)) ->  | AP34: =AN34+AO34 ->  | AQ34: =IF(OR(AQ$24="SCA",AQ$24="SCM"),AO34*1.16,0) ->  | AS34: 0 | AV34: =-Simulación!M16+Simulación!N13 ->  | AW34: =IF(OR(AY$24="SCA"),AY$21+AY$22,IF(AY24="SCM",AY20,0)) ->  | AX34: =AV34+AW34 ->  | AY34: =IF(OR(AY$24="SCA",AY$24="SCM"),AW34*1.16,0) ->  | BA34: 0 | BD34: =-Simulación!M16+Simulación!N13 ->  | BE34: =IF(OR(BG$24="SCA"),BG$21+BG$22,IF(BG24="SCM",BG20,0)) ->  | BF34: =BD34+BE34 ->  | BG34: =IF(OR(BG$24="SCA",BG$24="SCM"),BE34*1.16,0) ->  | BI34: 0 | BL34: =-Simulación!M16+Simulación!N13 ->  | BM34: =IF(OR(BO$24="SCA"),BO$21+BO$22,IF(BO24="SCM",BO20,0)) ->  | BN34: =BL34+BM34 ->  | BO34: =IF(OR(BO$24="SCA",BO$24="SCM"),BM34*1.16,0) ->  | BQ34: 0 | BT34: =-Simulación!M16+Simulación!N13 ->  | BU34: =IF(OR(BW$24="SCA"),BW$21+BW$22,IF(BW24="SCM",BW20,0)) ->  | BV34: =BT34+BU34 ->  | BW34: =IF(OR(BW$24="SCA",BW$24="SCM"),BU34*1.16,0) ->  | BY34: 0 | CB34: =-Simulación!M16+Simulación!N13 ->  | CC34: =IF(OR(CE$24="SCA"),CE$21+CE$22,IF(CE24="SCM",CE20,0)) ->  | CD34: =CB34+CC34 ->  | CE34: =IF(OR(CE$24="SCA",CE$24="SCM"),CC34*1.16,0) -> 
M35: 1 | N35: =-PMT($S$17/12,$S$18,$S$16) ->  | O35: =-IPMT($S$17/12,M35,$S$18,$S$16)*0.16 ->  | P35: =SUM(N35:N35) ->  | Q35: =IF(S$24="SCA",0,IF(S$24="SFA",S$28,IF(S$24="SFM",S$29,0))) -> 0 | S35: =IF(S$24="SFM",IPMT(S$23/12,M35,S$18,-((S$20)+S$22)*1.16)*0.16+Q35*1.16,IF(S$24="SFA",$Q59,0)) -> 0 | U35: 1 | V35: =-PMT($AA$17/12,$AA$18,$AA$16) ->  | W35: =-IPMT($AA$17/12,U35,$AA$18,$AA$16)*0.16 ->  | X35: =SUM(V35:V35) ->  | Y35: =IF(AA$24="SCA",0,IF(AA$24="SFA",AA$26,IF(AA$24="SFM",AA$29,0))) -> 0 | AA35: =IF(AA$24="SFM",IPMT(AA$23/12,U35,AA$18,-((AA$20)+AA$22)*1.16)*0.16+Y35*1.16,IF(AA$24="SFA",$Q46,0)) -> 0 | AC35: 1 | AD35: =-PMT($AI$17/12,$AI$18,$AI$16) ->  | AE35: =-IPMT($AI$17/12,AC35,$AI$18,$AI$16)*0.16 ->  | AF35: =SUM(AD35:AD35) ->  | AG35: =IF(AI$24="SCA",0,IF(AI$24="SFA",AI$26,IF(AI$24="SFM",AI$29,0))) -> 0 | AI35: =IF(AI$24="SFM",IPMT(AI$23/12,AC35,AI$18,-((AI$20)+AI$22)*1.16)*0.16+AG35*1.16,IF(AI$24="SFA",$Q46,0)) -> 0 | AK35: 1 | AL35: =-PMT($AQ$17/12,$AQ$18,$AQ$16) ->  | AM35: =-IPMT($AQ$17/12,AK35,$AQ$18,$AQ$16)*0.16 ->  | AN35: =SUM(AL35:AL35) ->  | AO35: =IF(AQ$24="SCA",0,IF(AQ$24="SFA",AQ$26,IF(AQ$24="SFM",AQ$29,0))) -> 0 | AQ35: =IF(AQ$24="SFM",IPMT(AQ$23/12,AK35,AQ$18,-((AQ$20)+AQ$22)*1.16)*0.16+AO35*1.16,IF(AQ$24="SFA",$Q46,0)) -> 0 | AS35: 1 | AT35: =-PMT($AY$17/12,$AY$18,$AY$16) ->  | AU35: =-IPMT($AY$17/12,AS35,$AY$18,$AY$16)*0.16 ->  | AV35: =SUM(AT35:AT35) ->  | AW35: =IF(AY$24="SCA",0,IF(AY$24="SFA",AY$26,IF(AY$24="SFM",AY$29,0))) -> 0 | AY35: =IF(AY$24="SFM",IPMT(AY$23/12,AS35,AY$18,-((AY$20)+AY$22)*1.16)*0.16+AW35*1.16,IF(AY$24="SFA",$Q46,0)) -> 0 | BA35: 1 | BB35: =-PMT($BG$17/12,$BG$18,$BG$16) ->  | BC35: =-IPMT($BG$17/12,BA35,$BG$18,$BG$16)*0.16 ->  | BD35: =SUM(BB35:BB35) ->  | BE35: =IF(BG$24="SCA",0,IF(BG$24="SFA",BG$26,IF(BG$24="SFM",BG$29,0))) -> 0 | BG35: =IF(BG$24="SFM",IPMT(BG$23/12,BA35,BG$18,-((BG$20)+BG$22)*1.16)*0.16+BE35*1.16,IF(BG$24="SFA",$Q46,0)) -> 0 | BI35: 1 | BJ35: =-PMT($BO$17/12,$BO$18,$BO$16) ->  | BK35: =-IPMT($BO$17/12,BI35,$BO$18,$BO$16)*0.16 ->  | BL35: =SUM(BJ35:BJ35) ->  | BM35: =IF(BO$24="SCA",0,IF(BO$24="SFA",BO$26,IF(BO$24="SFM",BO$29,0))) -> 0 | BO35: =IF(BO$24="SFM",IPMT(BO$23/12,BI35,BO$18,-((BO$20)+BO$22)*1.16)*0.16+BM35*1.16,IF(BO$24="SFA",$Q46,0)) -> 0 | BQ35: 1 | BR35: =-PMT($BW$17/12,$BW$18,$BW$16) ->  | BS35: =-IPMT($BW$17/12,BQ35,$BW$18,$BW$16)*0.16 ->  | BT35: =SUM(BR35:BR35) ->  | BU35: =IF(BW$24="SCA",0,IF(BW$24="SFA",BW$26,IF(BW$24="SFM",BW$29,0))) -> 0 | BV35: =BR35+BU35 ->  | BW35: =IF(BW$24="SFM",IPMT(BW$23/12,BQ35,BW$18,-((BW$20)+BW$22)*1.16)*0.16+BU35*1.16,IF(BW$24="SFA",$Q46,0)) -> 0 | BY35: 1 | BZ35: =-PMT($CE$17/12,$CE$18,$CE$16) ->  | CA35: =-IPMT($CE$17/12,BY35,$CE$18,$CE$16)*0.16 ->  | CB35: =SUM(BZ35:BZ35) ->  | CC35: =IF(CE$24="SCA",0,IF(CE$24="SFA",CE$26,IF(CE$24="SFM",CE$29,0))) -> 0 | CD35: =BZ35+CC35 ->  | CE35: =IF(CE$24="SFM",IPMT(CE$23/12,BY35,CE$18,-((CE$20)+CE$22)*1.16)*0.16+CC35*1.16,IF(CE$24="SFA",$Q46,0)) -> 0
M36: 2 | Q36: 0 | S36: 0 | U36: 2 | Y36: 0 | AA36: 0 | AC36: 2 | AG36: 0 | AI36: 0 | AK36: 2 | AO36: 0 | AQ36: 0 | AS36: 2 | AW36: 0 | AY36: 0 | BA36: 2 | BE36: 0 | BG36: 0 | BI36: 2 | BM36: 0 | BO36: 0 | BQ36: 2 | BU36: 0 | BW36: 0 | BY36: 2 | BZ36: =-PMT($CE$17/12,$CE$18,$CE$16) ->  | CA36: =-IPMT($CE$17/12,BY36,$CE$18,$CE$16)*0.16 ->  | CC36: 0 | CE36: 0
M37: 3 | Q37: 0 | S37: 0 | U37: 3 | Y37: 0 | AA37: 0 | AC37: 3 | AG37: 0 | AI37: 0 | AK37: 3 | AO37: 0 | AQ37: 0 | AS37: 3 | AW37: 0 | AY37: 0 | BA37: 3 | BE37: 0 | BG37: 0 | BI37: 3 | BM37: 0 | BO37: 0 | BQ37: 3 | BU37: 0 | BW37: 0 | BY37: 3 | CC37: 0 | CE37: 0
M38: 4 | Q38: 0 | S38: 0 | U38: 4 | Y38: 0 | AA38: 0 | AC38: 4 | AG38: 0 | AI38: 0 | AK38: 4 | AO38: 0 | AQ38: 0 | AS38: 4 | AW38: 0 | AY38: 0 | BA38: 4 | BE38: 0 | BG38: 0 | BI38: 4 | BM38: 0 | BO38: 0 | BQ38: 4 | BU38: 0 | BW38: 0 | BY38: 4 | CC38: 0 | CE38: 0
M39: 5 | Q39: 0 | S39: 0 | U39: 5 | Y39: 0 | AA39: 0 | AC39: 5 | AG39: 0 | AI39: 0 | AK39: 5 | AO39: 0 | AQ39: 0 | AS39: 5 | AW39: 0 | AY39: 0 | BA39: 5 | BE39: 0 | BG39: 0 | BI39: 5 | BM39: 0 | BO39: 0 | BQ39: 5 | BU39: 0 | BW39: 0 | BY39: 5 | CC39: 0 | CE39: 0
B40: Factores Ingreso | C40: =VLOOKUP(R5,Catalogos!$A$56:$C$62,IF(R6="Declaración de Impuestos",2,3),0) -> 1 | M40: 6 | Q40: 0 | S40: 0 | U40: 6 | Y40: 0 | AA40: 0 | AC40: 6 | AG40: 0 | AI40: 0 | AK40: 6 | AO40: 0 | AQ40: 0 | AS40: 6 | AW40: 0 | AY40: 0 | BA40: 6 | BE40: 0 | BG40: 0 | BI40: 6 | BM40: 0 | BO40: 0 | BQ40: 6 | BU40: 0 | BW40: 0 | BY40: 6 | CC40: 0 | CE40: 0
U41: 7 | Y41: 0 | AA41: 0 | AC41: 7 | AG41: 0 | AI41: 0 | AK41: 7 | AO41: 0 | AQ41: 0 | AS41: 7 | AW41: 0 | AY41: 0 | BA41: 7 | BE41: 0 | BG41: 0 | BI41: 7 | BM41: 0 | BO41: 0 | BQ41: 7 | BU41: 0 | BW41: 0 | BY41: 7 | CC41: 0 | CE41: 0
B42: Ajuste iteración | U42: 8 | Y42: 0 | AA42: 0 | AC42: 8 | AG42: 0 | AI42: 0 | AK42: 8 | AO42: 0 | AQ42: 0 | AS42: 8 | AW42: 0 | AY42: 0 | BA42: 8 | BE42: 0 | BG42: 0 | BI42: 8 | BM42: 0 | BO42: 0 | BQ42: 8 | BU42: 0 | BW42: 0 | BY42: 8 | CC42: 0 | CE42: 0
B43: Ajuste | C43: =VLOOKUP(MAX(C54:C55),Catalogos!$G$42:$H$51,2) ->  | D43: =VLOOKUP(MAX(D54:D55),Catalogos!$G$42:$H$51,2) ->  | E43: =VLOOKUP(MAX(E54:E55),Catalogos!$G$42:$H$51,2) ->  | F43: =VLOOKUP(MAX(F54:F55),Catalogos!$G$42:$H$51,2) ->  | G43: =VLOOKUP(MAX(G54:G55),Catalogos!$G$42:$H$51,2) ->  | H43: =VLOOKUP(MAX(H54:H55),Catalogos!$G$42:$H$51,2) ->  | I43: =VLOOKUP(MAX(I54:I55),Catalogos!$G$42:$H$51,2) ->  | J43: =VLOOKUP(MAX(J54:J55),Catalogos!$G$42:$H$51,2) ->  | K43: =VLOOKUP(MAX(K54:K55),Catalogos!$G$42:$H$51,2) ->  | U43: 9 | Y43: 0 | AA43: 0 | AC43: 9 | AG43: 0 | AI43: 0 | AK43: 9 | AO43: 0 | AQ43: 0 | AS43: 9 | AW43: 0 | AY43: 0 | BA43: 9 | BE43: 0 | BG43: 0 | BI43: 9 | BM43: 0 | BO43: 0 | BQ43: 9 | BU43: 0 | BW43: 0 | BY43: 9 | CC43: 0 | CE43: 0
B44: DTI | C44: =40%-C43 ->  | D44: =40%-D43 ->  | N44: Pago Total Seguro | O44: Mensualidad | P44: Iva de Intereses del SeguroIVAIncluido | Q44: Iva de Intereses del SeguroIVAIncluido | U44: 10 | Y44: 0 | AA44: 0 | AC44: 10 | AG44: 0 | AI44: 0 | AK44: 10 | AO44: 0 | AQ44: 0 | AS44: 10 | AW44: 0 | AY44: 0 | BA44: 10 | BE44: 0 | BG44: 0 | BI44: 10 | BM44: 0 | BO44: 0 | BQ44: 10 | BU44: 0 | BW44: 0 | BY44: 10 | CC44: 0 | CE44: 0
B45: PTI | C45: =33%-C43 ->  | D45: =33%-D43 ->  | U45: 11 | Y45: 0 | AA45: 0 | AC45: 11 | AG45: 0 | AI45: 0 | AK45: 11 | AO45: 0 | AQ45: 0 | AS45: 11 | AW45: 0 | AY45: 0 | BA45: 11 | BE45: 0 | BG45: 0 | BI45: 11 | BM45: 0 | BO45: 0 | BQ45: 11 | BU45: 0 | BW45: 0 | BY45: 11 | CC45: 0 | CE45: 0
B46: Ingreso DTI | C46: =C21/C44+$R$4 ->  | N46: =PMT(AA$23/12,12,-((AA$21)+AA$22)*1.16) ->  | O46: 1 | P46: =IPMT(AA$23/12,O46,12,-((AA$21)+AA$22)*1.16)*0.16 ->  | Q46: =N46+P46 ->  | U46: 12 | Y46: 0 | AA46: 0 | AC46: 12 | AG46: 0 | AI46: 0 | AK46: 12 | AO46: 0 | AQ46: 0 | AS46: 12 | AW46: 0 | AY46: 0 | BA46: 12 | BE46: 0 | BG46: 0 | BI46: 12 | BM46: 0 | BO46: 0 | BQ46: 12 | BU46: 0 | BW46: 0 | BY46: 12 | CC46: 0 | CE46: 0
B47: Ingreso PTI | C47: =C21/C45 ->  | O47: 2 | AC47: 13 | AG47: =IF(OR(AI$24="SCA",AI24="SG"),AI$21/2+AI$22,IF(OR(AI$24="SFA",AI$24="SG"),AI$28,IF(AI$24="SFM",AI$29,0))) ->  | AI47: =IF(OR(AI$24="SCA",AI$24="SG"),AG47*1.16,IF(AI$24="SFM",IPMT(AI$23/12,AC47,AI$18,-((AI$20)+AI$22)*1.16)*0.16+AG47*1.16,IF(AI$24="SFA",$Q59,0))) ->  | AK47: 13 | AO47: =IF(OR(AQ$24="SCA",$AQ$24="SG"),AQ$21+AQ$22,IF(OR(AQ$24="SFA",AQ$24="SG"),AQ$26,IF(AQ$24="SFM",AQ$29,0))) ->  | AQ47: =IF(OR(AQ$24="SCA",AQ$24="SG"),AO47*1.16,IF(AQ$24="SFM",IPMT(AQ$23/12,AK47,AQ$18,-((AQ$20)+AQ$22)*1.16)*0.16+AO47*1.16,IF(AQ$24="SFA",$Q46,0))) ->  | AS47: 13 | AW47: =IF(OR(AY$24="SCA",AY$24="SG"),AY$21+AY$22,IF(OR(AY$24="SFA",AY$24="SG"),AY$26,IF(AY$24="SFM",AY$29,0))) ->  | AY47: =IF(OR(AY$24="SCA",AY$24="SG"),AW47*1.16,IF(AY$24="SFM",IPMT(AY$23/12,AS47,AY$18,-((AY$20)+AY$22)*1.16)*0.16+AW47*1.16,IF(AY$24="SFA",$Q46,0))) ->  | BA47: 13 | BE47: =IF(OR(BG$24="SCA",BG$24="SG"),BG$21+BG$22,IF(OR(BG$24="SFA",BG$24="SG"),BG$26,IF(BG$24="SFM",BG$29,0))) ->  | BG47: =IF(OR(BG$24="SCA",BG$24="SG"),BE47*1.16,IF(BG$24="SFM",IPMT(BG$23/12,BA47,BG$18,-((BG$20)+BG$22)*1.16)*0.16+BE47*1.16,IF(BG$24="SFA",$Q59,0))) ->  | BI47: 13 | BM47: =IF(OR(BO$24="SCA",BO$24="SG"),BO$21+BO$22,IF(OR(BO$24="SFA",BO$24="SG"),BO$26,IF(BO$24="SFM",BO$29,0))) ->  | BO47: =IF(OR(BO24="SCA",BO24="SG"),BM47*1.16,IF(BO$24="SFM",IPMT(BO$23/12,BI47,BO$18,-((BO$20)+BO$22)*1.16)*0.16+BM47*1.16,IF(BO$24="SFA",$Q59,0))) ->  | BQ47: 13 | BU47: =IF(OR(BW$24="SCA",BW$24="SG"),BW$21+BW$22,IF(OR(BW$24="SFA",BW$24="SG"),BW$26,IF(BW$24="SFM",BW$29,0))) ->  | BW47: =IF(OR(BW$24="SCA",BW$24="SG"),BU47*1.16,IF(BW$24="SFM",IPMT(BW$23/12,BQ47,BW$18,-((BW$20)+BW$22)*1.16)*0.16+BU47*1.16,IF(BW$24="SFA",$Q59,0))) ->  | BY47: 13 | CC47: =IF(OR(CE$24="SCA",CE$24="SG"),CE$21+CE$22,IF(OR(CE$24="SFA",CE$24="SG"),CE$26,IF(CE$24="SFM",CE$29,0))) ->  | CE47: =IF(OR(CE$24="SCA",CE$24="SG"),CC47*1.16,IF(CE$24="SFM",IPMT(CE$23/12,BY47,CE$18,-((CE$20)+CE$22)*1.16)*0.16+CC47*1.16,IF(CE$24="SFA",$Q59,0))) -> 
O48: 3 | AC48: 14 | AG48: =IF(AI$24="SCA",0,IF(OR(AI$24="SFA"),AI$28,IF(AI$24="SFM",AI$29,0))) -> 0 | AI48: =IF(AI$24="SFM",IPMT(AI$23/12,AC48,AI$18,-((AI$20)+AI$22)*1.16)*0.16+AG48*1.16,IF(AI$24="SFA",$Q60,0)) -> 0 | AK48: 14 | AO48: =IF(AQ$24="SCA",0,IF(OR(AQ$24="SFA"),AQ$26,IF(AQ$24="SFM",AQ$29,0))) -> 0 | AQ48: =IF(AQ$24="SFM",IPMT(AQ$23/12,AK48,AQ$18,-((AQ$20)+AQ$22)*1.16)*0.16+AO48*1.16,IF(AQ$24="SFA",$Q47,0)) -> 0 | AS48: 14 | AW48: =IF(AY$24="SCA",0,IF(OR(AY$24="SFA"),AY$26,IF(AY$24="SFM",AY$29,0))) -> 0 | AY48: =IF(AY$24="SFM",IPMT(AY$23/12,AS48,AY$18,-((AY$20)+AY$22)*1.16)*0.16+AW48*1.16,IF(AY$24="SFA",$Q47,0)) -> 0 | BA48: 14 | BE48: =IF(BG$24="SCA",0,IF(OR(BG$24="SFA"),BG$26,IF(BG$24="SFM",BG$29,0))) -> 0 | BG48: =IF(BG$24="SFM",IPMT(BG$23/12,BA48,BG$18,-((BG$20)+BG$22)*1.16)*0.16+BE48*1.16,IF(BG$24="SFA",$Q47,0)) -> 0 | BI48: 14 | BM48: =IF(BO$24="SCA",0,IF(OR(BO$24="SFA"),BO$26,IF(BO$24="SFM",BO$29,0))) -> 0 | BO48: =IF(BO$24="SFM",IPMT(BO$23/12,BI48,BO$18,-((BO$20)+BO$22)*1.16)*0.16+BM48*1.16,IF(BO$24="SFA",$Q47,0)) -> 0 | BQ48: 14 | BU48: =IF(BW$24="SCA",0,IF(OR(BW$24="SFA"),BW$26,IF(BW$24="SFM",BW$29,0))) -> 0 | BW48: =IF(BW$24="SFM",IPMT(BW$23/12,BQ48,BW$18,-((BW$20)+BW$22)*1.16)*0.16+BU48*1.16,IF(BW$24="SFA",$Q47,0)) -> 0 | BY48: 14 | CC48: =IF(CE$24="SCA",0,IF(OR(CE$24="SFA"),CE$26,IF(CE$24="SFM",CE$29,0))) -> 0 | CE48: =IF(CE$24="SFM",IPMT(CE$23/12,BY48,CE$18,-((CE$20)+CE$22)*1.16)*0.16+CC48*1.16,IF(CE$24="SFA",$Q47,0)) -> 0
O49: 4 | AC49: 15 | AG49: =IF(AI$24="SCA",0,IF(OR(AI$24="SFA"),AI$28,IF(AI$24="SFM",AI$29,0))) -> 0 | AI49: =IF(AI$24="SFM",IPMT(AI$23/12,AC49,AI$18,-((AI$20)+AI$22)*1.16)*0.16+AG49*1.16,IF(AI$24="SFA",$Q61,0)) -> 0 | AK49: 15 | AO49: 0 | AQ49: 0 | AS49: 15 | AW49: 0 | AY49: 0 | BA49: 15 | BE49: 0 | BG49: 0 | BI49: 15 | BM49: 0 | BO49: 0 | BQ49: 15 | BU49: 0 | BW49: 0 | BY49: 15 | CC49: 0 | CE49: 0
B50: Primer Iteración | O50: 5 | AC50: 16 | AG50: =IF(AI$24="SCA",0,IF(OR(AI$24="SFA"),AI$28,IF(AI$24="SFM",AI$29,0))) -> 0 | AI50: =IF(AI$24="SFM",IPMT(AI$23/12,AC50,AI$18,-((AI$20)+AI$22)*1.16)*0.16+AG50*1.16,IF(AI$24="SFA",$Q62,0)) -> 0 | AK50: 16 | AO50: 0 | AQ50: 0 | AS50: 16 | AW50: 0 | AY50: 0 | BA50: 16 | BE50: 0 | BG50: 0 | BI50: 16 | BM50: 0 | BO50: 0 | BQ50: 16 | BU50: 0 | BW50: 0 | BY50: 16 | CC50: 0 | CE50: 0
B51: Ajuste | C51: 0 | D51: 0 | E51: 0 | F51: 0 | G51: 0 | H51: 0 | I51: 0 | J51: 0 | K51: 0 | O51: 6 | AC51: 17 | AG51: =IF(AI$24="SCA",0,IF(OR(AI$24="SFA"),AI$28,IF(AI$24="SFM",AI$29,0))) -> 0 | AI51: =IF(AI$24="SFM",IPMT(AI$23/12,AC51,AI$18,-((AI$20)+AI$22)*1.16)*0.16+AG51*1.16,IF(AI$24="SFA",$Q63,0)) -> 0 | AK51: 17 | AO51: 0 | AQ51: 0 | AS51: 17 | AW51: 0 | AY51: 0 | BA51: 17 | BE51: 0 | BG51: 0 | BI51: 17 | BM51: 0 | BO51: 0 | BQ51: 17 | BU51: 0 | BW51: 0 | BY51: 17 | CC51: 0 | CE51: 0
B52: DTI | C52: =40%-C51 -> 0.4 | D52: 0.4 | E52: 0.4 | F52: 0.4 | G52: 0.4 | H52: 0.4 | I52: 0.4 | J52: =40%-J51 -> 0.4 | K52: =40%-K51 -> 0.4 | O52: 7 | AC52: 18 | AG52: =IF(AI$24="SCA",0,IF(OR(AI$24="SFA"),AI$28,IF(AI$24="SFM",AI$29,0))) -> 0 | AI52: =IF(AI$24="SFM",IPMT(AI$23/12,AC52,AI$18,-((AI$20)+AI$22)*1.16)*0.16+AG52*1.16,IF(AI$24="SFA",$Q64,0)) -> 0 | AK52: 18 | AO52: 0 | AQ52: 0 | AS52: 18 | AW52: 0 | AY52: 0 | BA52: 18 | BE52: 0 | BG52: 0 | BI52: 18 | BM52: 0 | BO52: 0 | BQ52: 18 | BU52: 0 | BW52: 0 | BY52: 18 | CC52: 0 | CE52: 0
B53: PTI | C53: =33%-C51 -> 0.33 | D53: =33%-D51 -> 0.33 | E53: 0.33 | F53: 0.33 | G53: 0.33 | H53: 0.33 | I53: 0.33 | J53: 0.33 | K53: 0.33 | O53: 8 | AK53: 19 | AO53: 0 | AQ53: 0 | AS53: 19 | AW53: 0 | AY53: 0 | BA53: 19 | BE53: 0 | BG53: 0 | BI53: 19 | BM53: 0 | BO53: 0 | BQ53: 19 | BU53: 0 | BW53: 0 | BY53: 19 | CC53: 0 | CE53: 0
B54: Ingreso DTI | C54: =C21/C52+$R$4 ->  | O54: 9 | AK54: 20 | AO54: 0 | AQ54: 0 | AS54: 20 | AW54: 0 | AY54: 0 | BA54: 20 | BE54: 0 | BG54: 0 | BI54: 20 | BM54: 0 | BO54: 0 | BQ54: 20 | BU54: 0 | BW54: 0 | BY54: 20 | CC54: 0 | CE54: 0
B55: Ingreso PTI | C55: =C21/C53+$R$4 ->  | O55: 10 | AK55: 21 | AO55: 0 | AQ55: 0 | AS55: 21 | AW55: 0 | AY55: 0 | BA55: 21 | BE55: 0 | BG55: 0 | BI55: 21 | BM55: 0 | BO55: 0 | BQ55: 21 | BU55: 0 | BW55: 0 | BY55: 21 | CC55: 0 | CE55: 0
O56: 11 | AK56: 22 | AO56: 0 | AQ56: 0 | AS56: 22 | AW56: 0 | AY56: 0 | BA56: 22 | BE56: 0 | BG56: 0 | BI56: 22 | BM56: 0 | BO56: 0 | BQ56: 22 | BU56: 0 | BW56: 0 | BY56: 22 | CC56: 0 | CE56: 0
O57: 12 | AK57: 23 | AO57: 0 | AQ57: 0 | AS57: 23 | AW57: 0 | AY57: 0 | BA57: 23 | BE57: 0 | BG57: 0 | BI57: 23 | BM57: 0 | BO57: 0 | BQ57: 23 | BU57: 0 | BW57: 0 | BY57: 23 | CC57: 0 | CE57: 0
AK58: 24 | AO58: 0 | AQ58: 0 | AS58: 24 | AW58: 0 | AY58: 0 | BA58: 24 | BE58: 0 | BG58: 0 | BI58: 24 | BM58: 0 | BO58: 0 | BQ58: 24 | BU58: 0 | BW58: 0 | BY58: 24 | CC58: 0 | CE58: 0
B59: Periodos | C59: 6 | D59: 12 | E59: 18 | F59: 24 | G59: 30 | H59: 36 | I59: 48 | J59: 60 | K59: 72 | N59: =PMT(AA$23/12,6,-((AA$21/2)+AA$22)*1.16) ->  | O59: 1 | P59: =IPMT(AA$23/12,O59,6,-((AA$21/2)+AA$22)*1.16)*0.16 ->  | Q59: =N59+P59 ->  | AS59: 25 | AW59: =IF(OR(AY$24="SCA",AY$24="SG"),AY$21/2+AY$22,IF(OR(AY$24="SFA",AY$24="SG"),AY$28,IF(AY$24="SFM",AY$29,0))) ->  | AY59: =IF(OR(AY$24="SCA",AY$24="SG"),AW59*1.16,IF(AY$24="SFM",IPMT(AY$23/12,AS59,AY$18,-((AY$20)+AY$22)*1.16)*0.16+AW59*1.16,IF(AY$24="SFA",$Q59,0))) ->  | BA59: 25 | BE59: =IF(OR(BG$24="SCA",BG$24="SG"),BG$21+BG$22,IF(OR(BG$24="SFA",BG$24="SG"),BG$26,IF(BG$24="SFM",BG$29,0))) ->  | BG59: =IF(OR(BG$24="SCA",BG$24="SG"),BE59*1.16,IF(BG$24="SFM",IPMT(BG$23/12,BA59,BG$18,-((BG$20)+BG$22)*1.16)*0.16+BE59*1.16,IF(BG$24="SFA",Q46,0))) ->  | BI59: 25 | BM59: =IF(OR(BO$24="SCA",BO$24="SG"),BO$21+BO$22,IF(OR(BO$24="SFA",BO$24="SG"),BO$26,IF(BO$24="SFM",BO$29,0))) ->  | BO59: =IF(OR(BO$24="SCA",BO$24="SG"),BM59*1.16,IF(BO$24="SFM",IPMT(BO$23/12,BI59,BO$18,-((BO$20)+BO$22)*1.16)*0.16+BM59*1.16,IF(BO$24="SFA",Q46,0))) ->  | BQ59: 25 | BU59: =IF(OR(BW$24="SCA",BW24="SG"),BW$21+BW$22,IF(OR(BW$24="SFA",BW$24="SG"),BW$26,IF(BW$24="SFM",BW$29,0))) ->  | BW59: =IF(OR(BW$24="SCA",BW$24="SG"),BU59*1.16,IF(BW$24="SFM",IPMT(BW$23/12,BQ59,BW$18,-((BW$20)+BW$22)*1.16)*0.16+BU59*1.16,IF(BW$24="SFA",Q46,0))) ->  | BY59: 25 | CC59: =IF(OR(CE$24="SCA",CE24="SG"),CE$21+CE$22,IF(OR(CE$24="SFA",CE$24="SG"),CE$26,IF(CE$24="SFM",CE$29,0))) ->  | CE59: =IF(OR(CE$24="SCA",CE$24="SG"),CC59*1.16,IF(CE$24="SFM",IPMT(CE$23/12,BY59,CE$18,-((CE$20)+CE$22)*1.16)*0.16+CC59*1.16,IF(CE$24="SFA",Y46,0))) -> 
B60: Tasa Base | C60: =$C$17 -> - | D60: =$C$17 -> - | E60: - | F60: - | G60: - | H60: - | I60: - | J60: =$C$17 -> - | K60: =$K$17 -> - | O60: 2 | AS60: 26 | AW60: =IF(AY$24="SCA",0,IF(OR(AY$24="SFA"),AY$28,IF(AY$24="SFM",AY$29,0))) -> 0 | AY60: =IF(AY$24="SFM",IPMT(AY$23/12,AS60,AY$18,-((AY$20)+AY$22)*1.16)*0.16+AW60*1.16,IF(AY$24="SFA",$Q60,0)) -> 0 | BA60: 26 | BE60: =IF(BG$24="SCA",0,IF(OR(BG$24="SFA"),BG$26,IF(BG$24="SFM",BG$29,0))) -> 0 | BG60: =IF(BG$24="SFM",IPMT(BG$23/12,BA60,BG$18,-((BG$20)+BG$22)*1.16)*0.16+BE60*1.16,IF(BG$24="SFA",$Q47,0)) -> 0 | BI60: 26 | BM60: =IF(BO$24="SCA",0,IF(OR(BO$24="SFA"),BO$26,IF(BO$24="SFM",BO$29,0))) -> 0 | BO60: =IF(BO$24="SFM",IPMT(BO$23/12,BI60,BO$18,-((BO$20)+BO$22)*1.16)*0.16+BM60*1.16,IF(BO$24="SFA",$Q47,0)) -> 0 | BQ60: 26 | BU60: =IF(BW$24="SCA",0,IF(OR(BW$24="SFA"),BW$26,IF(BW$24="SFM",BW$29,0))) -> 0 | BW60: =IF(BW$24="SFM",IPMT(BW$23/12,BQ60,BW$18,-((BW$20)+BW$22)*1.16)*0.16+BU60*1.16,IF(BW$24="SFA",$Q47,0)) -> 0 | BY60: 26 | CC60: =IF(CE$24="SCA",0,IF(OR(CE$24="SFA"),CE$26,IF(CE$24="SFM",CE$29,0))) -> 0 | CE60: =IF(CE$24="SFM",IPMT(CE$23/12,BY60,CE$18,-((CE$20)+CE$22)*1.16)*0.16+CC60*1.16,IF(CE$24="SFA",$Q47,0)) -> 0
B61: Crédito Subvencion | C61: =Simulación!$M$16-(Simulación!$D$22/1.16) ->  | D61: =Simulación!$M$16-(Simulación!$D$22/1.16) ->  | E61: =Simulación!$M$16-(Simulación!$D$22/1.16) ->  | F61: =Simulación!$M$16-(Simulación!$D$22/1.16) ->  | G61: =Simulación!$M$16-(Simulación!$D$22/1.16) ->  | H61: =Simulación!$M$16-(Simulación!$D$22/1.16) ->  | I61: =Simulación!$M$16-(Simulación!$D$22/1.16) ->  | J61: =Simulación!$M$16-(Simulación!$D$22/1.16) ->  | K61: =Simulación!$M$16-(Simulación!$D$22/1.16) ->  | O61: 3 | AS61: 27 | AW61: =IF(AY$24="SCA",0,IF(OR(AY$24="SFA"),AY$28,IF(AY$24="SFM",AY$29,0))) -> 0 | AY61: =IF(AY$24="SFM",IPMT(AY$23/12,AS61,AY$18,-((AY$20)+AY$22)*1.16)*0.16+AW61*1.16,IF(AY$24="SFA",$Q61,0)) -> 0 | BA61: 27 | BE61: 0 | BG61: 0 | BI61: 27 | BM61: 0 | BO61: 0 | BQ61: 27 | BU61: 0 | BW61: 0 | BY61: 27 | CC61: 0 | CE61: 0
B62: Pago Subvención | C62: =PMT(C60/12,C59,-C61) ->  | D62: =PMT(D60/12,D59,-D61) ->  | O62: 4 | AS62: 28 | AW62: =IF(AY$24="SCA",0,IF(OR(AY$24="SFA"),AY$28,IF(AY$24="SFM",AY$29,0))) -> 0 | AY62: =IF(AY$24="SFM",IPMT(AY$23/12,AS62,AY$18,-((AY$20)+AY$22)*1.16)*0.16+AW62*1.16,IF(AY$24="SFA",$Q62,0)) -> 0 | BA62: 28 | BE62: 0 | BG62: 0 | BI62: 28 | BM62: 0 | BO62: 0 | BQ62: 28 | BU62: 0 | BW62: 0 | BY62: 28 | CC62: 0 | CE62: 0
O63: 5 | AS63: 29 | AW63: =IF(AY$24="SCA",0,IF(OR(AY$24="SFA"),AY$28,IF(AY$24="SFM",AY$29,0))) -> 0 | AY63: =IF(AY$24="SFM",IPMT(AY$23/12,AS63,AY$18,-((AY$20)+AY$22)*1.16)*0.16+AW63*1.16,IF(AY$24="SFA",$Q63,0)) -> 0 | BA63: 29 | BE63: 0 | BG63: 0 | BI63: 29 | BM63: 0 | BO63: 0 | BQ63: 29 | BU63: 0 | BW63: 0 | BY63: 29 | CC63: 0 | CE63: 0
O64: 6 | AS64: 30 | AW64: =IF(AY$24="SCA",0,IF(OR(AY$24="SFA"),AY$28,IF(AY$24="SFM",AY$29,0))) -> 0 | AY64: =IF(AY$24="SFM",IPMT(AY$23/12,AS64,AY$18,-((AY$20)+AY$22)*1.16)*0.16+AW64*1.16,IF(AY$24="SFA",$Q64,0)) -> 0 | BA64: 30 | BE64: 0 | BG64: 0 | BI64: 30 | BM64: 0 | BO64: 0 | BQ64: 30 | BU64: 0 | BW64: 0 | BY64: 30 | CC64: 0 | CE64: 0
BA65: 31 | BE65: 0 | BG65: 0 | BI65: 31 | BM65: 0 | BO65: 0 | BQ65: 31 | BU65: 0 | BW65: 0 | BY65: 31 | CC65: 0 | CE65: 0
BA66: 32 | BE66: 0 | BG66: 0 | BI66: 32 | BM66: 0 | BN66: =BL66+BM66 ->  | BO66: 0 | BQ66: 32 | BU66: 0 | BW66: 0 | BY66: 32 | CC66: 0 | CE66: 0
BA67: 33 | BE67: 0 | BG67: 0 | BI67: 33 | BM67: 0 | BO67: 0 | BQ67: 33 | BR67: =-PMT($BW$17/12,$BW$18,$BW$16) ->  | BS67: =-IPMT($BW$17/12,BQ67,$BW$18,$BW$16)*0.16 ->  | BT67: =SUM(BR67:BR67) ->  | BU67: 0 | BV67: =BR67+BU67 ->  | BW67: 0 | BY67: 33 | CC67: 0 | CE67: 0
BA68: 34 | BE68: 0 | BG68: 0 | BI68: 34 | BM68: 0 | BO68: 0 | BQ68: 34 | BU68: 0 | BW68: 0 | BY68: 34 | CC68: 0 | CE68: 0
BA69: 35 | BE69: 0 | BG69: 0 | BI69: 35 | BM69: 0 | BO69: 0 | BQ69: 35 | BU69: 0 | BW69: 0 | BY69: 35 | CC69: 0 | CE69: 0
BA70: 36 | BE70: 0 | BG70: 0 | BI70: 36 | BM70: 0 | BO70: 0 | BQ70: 36 | BU70: 0 | BW70: 0 | BY70: 36 | CC70: 0 | CE70: 0
BI71: 37 | BM71: =IF(OR(BO$24="SCA",BO$24="SG"),BO$21+BO$22,IF(OR(BO$24="SFA",BO$24="SG"),BO$26,IF(BO$24="SFM",BO$29,0))) ->  | BO71: =IF(OR(BO$24="SCA",BO$24="SG"),BM71*1.16,IF(BO$24="SFM",IPMT(BO$23/12,BI71,BO$18,-((BO$20)+BO$22)*1.16)*0.16+BM71*1.16,IF(BO$24="SFA",$AA41,0))) ->  | BQ71: 37 | BU71: =IF(OR(BW$24="SCA",BW$24="SG"),BW$21+BW$22,IF(OR(BW$24="SFA",BW$24="SG"),BW$26,IF(BW$24="SFM",BW$29,0))) ->  | BW71: =IF(OR(BW$24="SCA",BW$24="SG"),BU71*1.16,IF(BW$24="SFM",IPMT(BW$23/12,BQ71,BW$18,-((BW$20)+BW$22)*1.16)*0.16+BU71*1.16,IF(BW$24="SFA",$AA41,0))) ->  | BY71: 37 | CC71: =IF(OR(CE$24="SCA",CE$24="SG"),CE$21+CE$22,IF(OR(CE$24="SFA",CE$24="SG"),CE$26,IF(CE$24="SFM",CE$29,0))) ->  | CE71: =IF(OR(CE$24="SCA",CE$24="SG"),CC71*1.16,IF(CE$24="SFM",IPMT(CE$23/12,BY71,CE$18,-((CE$20)+CE$22)*1.16)*0.16+CC71*1.16,IF(CE$24="SFA",$AA41,0))) -> 
BI72: 38 | BM72: =IF(BO$24="SCA",0,IF(OR(BO$24="SFA"),BO$26,IF(BO$24="SFM",BO$29,0))) -> 0 | BO72: =IF(BO$24="SFM",IPMT(BO$23/12,BI72,BO$18,-((BO$20)+BO$22)*1.16)*0.16+BM72*1.16,IF(BO$24="SFA",$Q47,0)) -> 0 | BQ72: 38 | BU72: =IF(BW$24="SCA",0,IF(OR(BW$24="SFA"),BW$26,IF(BW$24="SFM",BW$29,0))) -> 0 | BW72: =IF(BW$24="SFM",IPMT(BW$23/12,BQ72,BW$18,-((BW$20)+BW$22)*1.16)*0.16+BU72*1.16,IF(BW$24="SFA",$Q47,0)) -> 0 | BY72: 38 | CC72: =IF(CE$24="SCA",0,IF(OR(CE$24="SFA"),CE$26,IF(CE$24="SFM",CE$29,0))) -> 0 | CE72: =IF(CE$24="SFM",IPMT(CE$23/12,BY72,CE$18,-((CE$20)+CE$22)*1.16)*0.16+CC72*1.16,IF(CE$24="SFA",$Q47,0)) -> 0
BI73: 39 | BM73: 0 | BO73: 0 | BQ73: 39 | BU73: 0 | BW73: 0 | BY73: 39 | CC73: 0 | CE73: 0
BI74: 40 | BM74: 0 | BO74: 0 | BQ74: 40 | BU74: 0 | BW74: 0 | BY74: 40 | CC74: 0 | CE74: 0
BI75: 41 | BM75: 0 | BO75: 0 | BQ75: 41 | BU75: 0 | BW75: 0 | BY75: 41 | CC75: 0 | CE75: 0
BI76: 42 | BM76: 0 | BO76: 0 | BQ76: 42 | BU76: 0 | BW76: 0 | BY76: 42 | CC76: 0 | CE76: 0
BI77: 43 | BM77: 0 | BO77: 0 | BQ77: 43 | BU77: 0 | BW77: 0 | BY77: 43 | CC77: 0 | CE77: 0
BI78: 44 | BM78: 0 | BO78: 0 | BQ78: 44 | BU78: 0 | BW78: 0 | BY78: 44 | CC78: 0 | CE78: 0
BI79: 45 | BM79: 0 | BO79: 0 | BQ79: 45 | BU79: 0 | BW79: 0 | BY79: 45 | CC79: 0 | CE79: 0
BI80: 46 | BM80: 0 | BO80: 0 | BQ80: 46 | BU80: 0 | BW80: 0 | BY80: 46 | CC80: 0 | CE80: 0
BI81: 47 | BM81: 0 | BO81: 0 | BQ81: 47 | BU81: 0 | BW81: 0 | BY81: 47 | CC81: 0 | CE81: 0
BI82: 48 | BM82: 0 | BO82: 0 | BQ82: 48 | BU82: 0 | BW82: 0 | BY82: 48 | CC82: 0 | CE82: 0
BQ83: 49 | BU83: =IF(OR(BW$24="SCA",BW$24="SG"),BW$21+BW$22,IF(OR(BW$24="SFA",BW$24="SG"),BW$26,IF(BW$24="SFM",BW$29,0))) ->  | BW83: =IF(OR(BW$24="SCA",BW$24="SG"),BU83*1.16,IF(BW$24="SFM",IPMT(BW$23/12,BQ83,BW$18,-((BW$20)+BW$22)*1.16)*0.16+BU83*1.16,IF(BW$24="SFA",Q46,0))) ->  | BY83: 49 | CC83: =IF(OR(CE$24="SCA",CE$24="SG"),CE$21+CE$22,IF(OR(CE$24="SFA",CE$24="SG"),CE$26,IF(CE$24="SFM",CE$29,0))) ->  | CE83: =IF(OR(CE$24="SCA",CE$24="SG"),CC83*1.16,IF(CE$24="SFM",IPMT(CE$23/12,BY83,CE$18,-((CE$20)+CE$22)*1.16)*0.16+CC83*1.16,IF(CE$24="SFA",Y46,0))) -> 
BQ84: 50 | BU84: =IF(BW$24="SCA",0,IF(OR(BW$24="SFA"),BW$26,IF(BW$24="SFM",BW$29,0))) -> 0 | BW84: =IF(BW$24="SFM",IPMT(BW$23/12,BQ84,BW$18,-((BW$20)+BW$22)*1.16)*0.16+BU84*1.16,IF(BW$24="SFA",$Q47,0)) -> 0 | BY84: 50 | CC84: =IF(CE$24="SCA",0,IF(OR(CE$24="SFA"),CE$26,IF(CE$24="SFM",CE$29,0))) -> 0 | CE84: =IF(CE$24="SFM",IPMT(CE$23/12,BY84,CE$18,-((CE$20)+CE$22)*1.16)*0.16+CC84*1.16,IF(CE$24="SFA",$Q47,0)) -> 0
BQ85: 51 | BU85: 0 | BW85: 0 | BY85: 51 | CC85: 0 | CE85: 0
BQ86: 52 | BU86: 0 | BW86: 0 | BY86: 52 | CC86: 0 | CE86: 0
BQ87: 53 | BU87: 0 | BW87: 0 | BY87: 53 | CC87: 0 | CE87: 0
BQ88: 54 | BU88: 0 | BW88: 0 | BY88: 54 | CC88: 0 | CE88: 0
BQ89: 55 | BU89: 0 | BW89: 0 | BY89: 55 | CC89: 0 | CE89: 0
BQ90: 56 | BU90: 0 | BW90: 0 | BY90: 56 | CC90: 0 | CE90: 0
BQ91: 57 | BU91: 0 | BW91: 0 | BY91: 57 | CC91: 0 | CE91: 0
BQ92: 58 | BU92: 0 | BW92: 0 | BY92: 58 | CC92: 0 | CE92: 0
BQ93: 59 | BU93: 0 | BW93: 0 | BY93: 59 | CC93: 0 | CE93: 0
BQ94: 60 | BU94: 0 | BW94: 0 | BY94: 60 | CC94: 0 | CE94: 0
BY95: 61 | CC95: 0 | CD95: =CB95+CC95 ->  | CE95: =IF(OR(CE$24="SCA",CE$24="SCM"),CC95*1.16,0) -> 0
BY96: 62 | CC96: 0 | CE96: 0
BY97: 63 | CC97: 0 | CE97: 0
BY98: 64 | CC98: 0 | CE98: 0
BY99: 65 | CB99: =SUM(BZ99:BZ99) ->  | CC99: 0 | CE99: 0
BY100: 66 | BZ100: =-PMT($CE$17/12,$CE$18,$CE$16) ->  | CA100: =-IPMT($CE$17/12,BY100,$CE$18,$CE$16)*0.16 ->  | CC100: 0 | CE100: 0
BY101: 67 | CC101: 0 | CE101: 0
BY102: 68 | CC102: 0 | CE102: 0
BY103: 69 | CC103: 0 | CE103: 0
BY104: 70 | CC104: 0 | CE104: 0
BY105: 71 | CC105: 0 | CE105: 0
BY106: 72 | CC106: 0 | CE106: 0

Sheet Ayuda
B6: Inmediauto
B9: Datos Generales
B10: Campo | C10: Descripción
B11: Nombre del cliente | C11: Captura le nombre del cliente al cual realizas la cotización
B12: Estado | C12: Captura el estado donde vive el cliente (no donde comprará el auto) esto es para el cálculo del Seguro, según la zona
B13: ¿Es cliente HSBC? | C13: Seleccione si el cliente ya tiene relación con HSBC
B14: Esquema de cliente | C14: Seleccione si el cliente tiene su nómina en HSBC, si es cliente Advance, cliente Premier o en otro caso seleccione Banca Personal
B16: Datos del Auto
B17: Campo | C17: Descripción
B18: Marca | C18: Selecciona la marca de tu agencia
B19: Año | C19: Selecciona el año del vehículo a financiar
B20: Modelo | C20: Selecciona el auto según tipo deseado
B21: Precio $ | C21: Ingresa el precio de la unidad vendida (si usas promoción en tasa, seguro o enganche, el precio regularmente es el de lista)
B22: Datos del Seguro
B23: Campo | C23: Descripción
B24: Tipo seguro de daños | C24: Selecciona la forma de pago del seguro: Financiado por un año (Financiado Anual), Financiado por el plazo del crédito del auto (Financiado Multianual), Contado Anual (una exhibición al inicio de cada año), Contado Multianual (una exhibición al incio del crédito del auto), Seguro gratis 1er año (algunas agencias incluyen en seguro gratis para el 1er año), Otra aseguradora.
B25: Importe del seguro | C25: El campo se llena automáticamente con el precio del seguro anual
B26: Datos del crédito
B27: Campo | C27: Descripción
B28: Enganche | C28: Ingresa el enganche a pagar por el cliente (IMPORTANTE: éste no debe de ser menor al indicado)
B29: Plazo | C29: Selecciona el plazo deseado por el cliente (6,12,18,24,30,48 o 60 meses)
B30: Periodicidad | C30: Selecciona la frecuencia con que quieras realizar tus pagos ( Quincela, Mensual)
B31: Subsidio o subvención con IVA | C31: Ingresa el subsidio para la unidad elegida en pesos y con IVA incluido
B32: Datos de agencia
B33: Campo | C33: Descripción
B34: Agencia | C34: Escribe el nombre de la agencia
B35: Teléfonos | C35: Escribe los teléfonos de la agencia
B36: Promotor | C36: Escribe tu nombre (promotor / vendedor)
B37: Ingreso
B38: Campo | C38: Descripción
B39: Incluira coacreditado | C39: Al seleccionar sí, permite seleccionar opciones de ingresos de un coacreditado
B40: Ingreso del cliente | C40: Ingresa el Ingreso mensual del cliente
B41: Pago mensual por deudas (BC) | C41: Ingresa el importe de pagos mensuales que tiene que hacer el cliente registrados en Buró de Crédito
B42: Actividad del cliente | C42: Selecciona la actividad del cliente, para opciones adicionales de cálculo de ingreso seleccionar el boton de "Ingresos"
B43: Comprobante | C43: Selecciona el tipo de comprobante de ingresos a utilizar ( puede ser Declaración de Impuestos o Estados de Cuenta)
B44: Vinculos
B45: Campo | C45: Descripción
B46: El botón | C46: te permite ver multiples ofertas por plazo, para que veas la que se ajuste más a tus necesidades
B47: El botón | C47: te permite ver detalladamente los pagos periodicos
B48: El botón | C48: te permite realizar una estimación más precisa de los ingresos que consideramos para darte una oferta
B49: El botón | C49: te regresará a esta hoja cuando tu requieras alguna ayuda con los campos

Sheet Ingreso
B5: Inmediauto
B6: INSTRUCCIONES: Selecciona los tipos de Actividad económica del Titular y/o Co-Acreditado.
B11: ¿Incluirá un Co-acreditado? | C11: No | F11: Capacidad de pago Mensual | G11: =MIN(C42:C43) -> 0
B12: Plazo | C12: 60 | F12: Crédito a otorgar | G12: =IF(G11<=0,"-",G11/(C44*(1+C44)^C12/(((1+C44)^C12)-1))) -> -
B14: TITULAR
B15: Pagos mensuales de créditos (Obligaciones): | C15: 0
B16: =+IF(C11="Si","Tipo de Actividad del Titular","Tipo de Actividad") -> Tipo de Actividad | C16: Asalariado / Asimilado
B17: Comprobante de Ingreso | C17: Estados de Cuenta
B18: Ingreso mensual del cliente | F18: Tipo de Actividad
B19: Ingreso mensual segunda actividad | F19: Tipo de Actividad
B20: Ingreso mensual otra actividad | F20: Tipo de Actividad
B22: COACREDITADO
B23: Pagos mensuales del coacreditado (Obligaciones):
B24: Tipo de Actividad del Co-Acreditado | C24: Asalariado / Asimilado
B25: Comprobante de Ingreso | C25: Estados de Cuenta
B26: Ingreso mensual del cliente | F26: Tipo de Actividad
B27: Ingreso mensual segunda actividad | F27: Tipo de Actividad
B28: Ingreso mensual otra actividad | F28: Tipo de Actividad
B30: Total de Ingresos a Considerar | C30: =O64 -> 0 | F30: =IF(AND(C30<7000,C30>0),"Lo sentimos el ingreso considerado es menor al mínimo","") -> 
B31: Total de Obligaciones a Considerar | C31: =IF(C11="Si",C23,0)+C15 -> 0
B38: Factor ajuste Capacidad Pago | C38: =VLOOKUP(C30,Catalogos!$G$42:$H$51,2) -> 0
B39: DTI | C39: =40%-C38 -> 0.4 | K39: TITULAR
B40: PTI | C40: =33%-C38 -> 0.33 | M40: Inicial | N40: Factor | O40: Final | P40: Declaración de Impuestos | Q40: Estados de Cuenta | S40: Auxiliar
K41: Asalariado / Asimilado | L41: 1 | M41: =IF($C$16=$K$48,(IF(K41=$G$18,$C$18,0)+IF(K41=$G$19,$C$19,0)+IF(K41=$G$20,$C$20,0)),IF(K41=$C$16,$C$18,0)) -> 0 | N41: =+IF(OR($C$17="",$C$17=$P$40),P41,Q41) -> 1 | O41: =+M41*N41 -> 0 | P41: =VLOOKUP(K41,Catalogos!$A$56:$C$62,2,0) -> 1 | Q41: =VLOOKUP(K41,Catalogos!$A$56:$C$62,3,0) -> 1
B42: Capacidad Pago DTI | C42: =C30*C39-C31 -> 0 | K42: Independiente | L42: 2 | M42: 0 | N42: 0.75 | O42: 0 | P42: =VLOOKUP(K42,Catalogos!$A$56:$C$62,2,0) -> 0.85 | Q42: =VLOOKUP(K42,Catalogos!$A$56:$C$62,3,0) -> 0.75 | S42: =VLOOKUP(C16,$K$41:$L$48,2,0) -> 1
B43: Capacidad Pago PTI | C43: =C30*C40 -> 0 | K43: Actividad Empresarial / RIF (Comercio) | L43: 3 | M43: 0 | N43: 0.5 | O43: 0 | P43: =VLOOKUP(K43,Catalogos!$A$56:$C$62,2,0) -> 0.6 | Q43: =VLOOKUP(K43,Catalogos!$A$56:$C$62,3,0) -> 0.5
B44: Tasa mensual | C44: =Simulación!U16/12 ->  | K44: Actividad Empresarial / RIF (Servicio) | L44: 4 | M44: 0 | N44: =+IF(OR($C$17="",$C$17=$P$40),P44,Q44) -> 0.55 | O44: =+M44*N44 -> 0 | P44: =VLOOKUP(K44,Catalogos!$A$56:$C$62,2,0) -> 0.65 | Q44: =VLOOKUP(K44,Catalogos!$A$56:$C$62,3,0) -> 0.55
K45: Utilidades / Dividendos | L45: 5 | M45: 0 | N45: 0.55 | O45: 0 | P45: =VLOOKUP(K45,Catalogos!$A$56:$C$62,2,0) -> 0.65 | Q45: =VLOOKUP(K45,Catalogos!$A$56:$C$62,3,0) -> 0.55
K46: Arrendamiento | L46: 6 | M46: 0 | N46: 0.8 | O46: 0 | P46: =VLOOKUP(K46,Catalogos!$A$56:$C$62,2,0) -> 0.9 | Q46: =VLOOKUP(K46,Catalogos!$A$56:$C$62,3,0) -> 0.8
K47: Inversiones | L47: 7 | M47: 0 | N47: 0.85 | O47: 0 | P47: =VLOOKUP(K47,Catalogos!$A$56:$C$62,2,0) -> 0.9 | Q47: =VLOOKUP(K47,Catalogos!$A$56:$C$62,3,0) -> 0.85
K48: Mixto (suma de actividades) | L48: 8 | M48: 0 | O48: =SUM(O41:O47) -> 0
K51: Coacreditado | M51: 1
M52: Inicial | N52: Factor | O52: Final | P52: Declaración de Impuestos | Q52: Estados de Cuenta | S52: Auxiliar
K53: =+K41 -> Asalariado / Asimilado | L53: 1 | M53: =IF($C$24=$K$60,(IF(K53=$G$26,$C$26,0)+IF(K53=$G$27,$C$27,0)+IF(K53=$G$28,$C$28,0)),IF(K53=$C$24,$C$26,0)) -> 0 | N53: =+IF(OR($C$25="",$C$25=$P$40),P53,Q53) -> 1 | O53: =+M53*N53 -> 0 | P53: =VLOOKUP(K53,Catalogos!$A$56:$C$62,2,0) -> 1 | Q53: =VLOOKUP(K53,Catalogos!$A$56:$C$62,3,0) -> 1
K54: Independiente | L54: 2 | M54: 0 | N54: 0.75 | O54: 0 | P54: =VLOOKUP(K54,Catalogos!$A$56:$C$62,2,0) -> 0.85 | Q54: =VLOOKUP(K54,Catalogos!$A$56:$C$62,3,0) -> 0.75 | S54: =VLOOKUP(C24,$K$53:$L$60,2,0) -> 1
K55: Actividad Empresarial / RIF (Comercio) | L55: 3 | M55: 0 | N55: 0.5 | O55: 0 | P55: =VLOOKUP(K55,Catalogos!$A$56:$C$62,2,0) -> 0.6 | Q55: =VLOOKUP(K55,Catalogos!$A$56:$C$62,3,0) -> 0.5
K56: Actividad Empresarial / RIF (Servicio) | L56: 4 | M56: 0 | N56: =+IF(OR($C$25="",$C$25=$P$40),P56,Q56) -> 0.55 | O56: =+M56*N56 -> 0 | P56: =VLOOKUP(K56,Catalogos!$A$56:$C$62,2,0) -> 0.65 | Q56: =VLOOKUP(K56,Catalogos!$A$56:$C$62,3,0) -> 0.55
K57: Utilidades / Dividendos | L57: 5 | M57: 0 | N57: 0.55 | O57: 0 | P57: =VLOOKUP(K57,Catalogos!$A$56:$C$62,2,0) -> 0.65 | Q57: =VLOOKUP(K57,Catalogos!$A$56:$C$62,3,0) -> 0.55
K58: Arrendamiento | L58: 6 | M58: 0 | N58: 0.8 | O58: 0 | P58: =VLOOKUP(K58,Catalogos!$A$56:$C$62,2,0) -> 0.9 | Q58: =VLOOKUP(K58,Catalogos!$A$56:$C$62,3,0) -> 0.8
K59: Inversiones | L59: 7 | M59: 0 | N59: 0.85 | O59: 0 | P59: =VLOOKUP(K59,Catalogos!$A$56:$C$62,2,0) -> 0.9 | Q59: =VLOOKUP(K59,Catalogos!$A$56:$C$62,3,0) -> 0.85
K60: Mixto (suma de actividades) | L60: 8 | M60: 0 | O60: =IF(SUM(O53:O59)>O48,O48,SUM(O53:O59)) -> 0
M64: Importe Final | O64: =IF(C11="No",O48,O48+O60) -> 0

Sheet Catalogos (hidden)
A1: Cliente HSBC | B1: Coacreditado | C1: Comprobantes | F1: Estado | H1: Descuento | I1: CAMIONETA | J1: AUTO | L1: Marca | O1: Vehiculo | X1: Por Buscar | Z1: =Simulación!D14 -> 0
A2: SI | B2: Si | C2: Declaración de Impuestos | F2: 1 | G2: AGUASCALIENTES | H2: =IF(Simulación!$D$14="camioneta",I2,J2) -> 0.5991 | I2: 0.85 | J2: 0.5991 | L2: SELECCIONA MARCA | M2: 0 | O2: Marca | P2: Año | Q2: Tipo | R2: Marca # | S2: Número | T2: Concatenado | U2: Descripción | V2: Prima | X2: Número | Y2: Marca # | Z2: Concatenado | AA2: Descripción | AB2: Prima
A3: NO | B3: No | C3: Estados de Cuenta | F3: 2 | G3: BAJA CALIFORNIA NORTE | H3: =IF(Simulación!$D$14="camioneta",I3,J3) -> 0.674 | I3: 0.85 | J3: 0.674 | L3: ACURA | M3: 1 | O3: PEUGEOT | P3: 2021 | Q3: AUTOMOVIL | R3: =VLOOKUP(O3,$L$3:$M$43,2,0) -> 31 | S3: =IF(O3&P3=O2&P2,S2+1,1) -> 1 | T3: =R3&"_"&S3&"_"&P3&"_"&Q3 -> 31_1_2021_AUTOMOVIL | U3: 3008 ALLURE PACK AUT 5P 4CIL | V3: 26875.2617 | X3: 1 | Y3: =VLOOKUP(Simulación!$D$15,Catalogos!$O:$R,4,0) ->  | Z3: =Y3&"_"&X3&"_"&Simulación!$D$16&"_"&$Z$1 ->  | AA3: =IFERROR(VLOOKUP(Z3,$T:$V,2,0),"") ->  | AB3: =IFERROR(VLOOKUP(Z3,$T:$V,3,0),"") -> 
F4: 3 | G4: BAJA CALIFORNIA SUR | H4: =IF(Simulación!$D$14="camioneta",I4,J4) -> 0.6902 | I4: 0.85 | J4: 0.6902 | L4: ALFA ROMEO | M4: 2 | O4: PEUGEOT | P4: 2021 | Q4: AUTOMOVIL | R4: =VLOOKUP(O4,$L$3:$M$43,2,0) -> 31 | S4: 2 | T4: =R4&"_"&S4&"_"&P4&"_"&Q4 -> 31_2_2021_AUTOMOVIL | U4: 301 ACTIVE 1.6L SEDAN STD | V4: 12883.07409 | X4: 2 | Y4: =VLOOKUP(Simulación!$D$15,Catalogos!$O:$R,4,0) ->  | Z4: =Y4&"_"&X4&"_"&Simulación!$D$16&"_"&$Z$1 -> 
A5: Plazos | F5: 4 | G5: CAMPECHE | H5: =IF(Simulación!$D$14="camioneta",I5,J5) -> 0.8687 | I5: 0.85 | J5: 0.8687 | L5: ASTON MARTIN | M5: 3 | O5: PEUGEOT | P5: 2021 | Q5: AUTOMOVIL | R5: 31 | S5: 3 | T5: 31_3_2021_AUTOMOVIL | U5: 301 ACTIVE HDI STD 4P 4CIL | V5: 13815.31143 | X5: 3 | Y5: =VLOOKUP(Simulación!$D$15,Catalogos!$O:$R,4,0) ->  | Z5: =Y5&"_"&X5&"_"&Simulación!$D$16&"_"&$Z$1 -> 
A6: =HLOOKUP(Simulación!$D$16,Catalogos!$A$68:$J$77,2,0) ->  | F6: 5 | G6: COAHUILA | H6: =IF(Simulación!$D$14="camioneta",I6,J6) -> 0.6902 | I6: 0.85 | J6: 0.6902 | L6: AUDI | M6: 4 | O6: PEUGEOT | P6: 2021 | Q6: AUTOMOVIL | R6: 31 | S6: 4 | T6: 31_4_2021_AUTOMOVIL | U6: 301 ALLURE HDI STD 4P 4CIL | V6: 15038.59357 | X6: 4 | Y6: =VLOOKUP(Simulación!$D$15,Catalogos!$O:$R,4,0) ->  | Z6: =Y6&"_"&X6&"_"&Simulación!$D$16&"_"&$Z$1 -> 
A7: =HLOOKUP(Simulación!$D$16,Catalogos!$A$68:$J$77,3,0) ->  | F7: 6 | G7: COLIMA | H7: =IF(Simulación!$D$14="camioneta",I7,J7) -> 0.6902 | I7: 0.85 | J7: 0.6902 | L7: BAIC | M7: 5 | O7: PEUGEOT | P7: 2021 | Q7: AUTOMOVIL | R7: 31 | S7: 5 | T7: 31_5_2021_AUTOMOVIL | U7: 3008 GT LINE AUT 5P 4CIL | V7: 31352.68626 | X7: 5 | Y7: =VLOOKUP(Simulación!$D$15,Catalogos!$O:$R,4,0) ->  | Z7: =Y7&"_"&X7&"_"&Simulación!$D$16&"_"&$Z$1 -> 
A8: =HLOOKUP(Simulación!$D$16,Catalogos!$A$68:$J$77,4,0) ->  | F8: 7 | G8: CHIAPAS | H8: =IF(Simulación!$D$14="camioneta",I8,J8) -> 0.674 | I8: 0.85 | J8: 0.674 | L8: BENTLEY | M8: 6 | O8: PEUGEOT | P8: 2021 | Q8: AUTOMOVIL | R8: 31 | S8: 6 | T8: 31_6_2021_AUTOMOVIL | U8: 3008 GT LINE HDI AUT 5P 4CIL | V8: 33091.22086 | X8: 6 | Y8: =VLOOKUP(Simulación!$D$15,Catalogos!$O:$R,4,0) ->  | Z8: =Y8&"_"&X8&"_"&Simulación!$D$16&"_"&$Z$1 -> 
A9: =HLOOKUP(Simulación!$D$16,Catalogos!$A$68:$J$77,5,0) ->  | F9: 8 | G9: CHIHUAHUA | H9: =IF(Simulación!$D$14="camioneta",I9,J9) -> 0.674 | I9: 0.85 | J9: 0.674 | L9: BMW | M9: 7 | O9: PEUGEOT | P9: 2021 | Q9: AUTOMOVIL | R9: 31 | S9: 7 | T9: 31_7_2021_AUTOMOVIL | U9: EXPERT HDI STD 4P 4CIL | V9: 24767.20823 | X9: 7 | Y9: =VLOOKUP(Simulación!$D$15,Catalogos!$O:$R,4,0) ->  | Z9: =Y9&"_"&X9&"_"&Simulación!$D$16&"_"&$Z$1 -> 
A10: =HLOOKUP(Simulación!$D$16,Catalogos!$A$68:$J$77,6,0) ->  | F10: 9 | G10: CIUDAD DE MEXICO | H10: =IF(Simulación!$D$14="camioneta",I10,J10) -> 0.8999 | I10: 0.85 | J10: 0.8999 | L10: CHEVROLET | M10: 8 | O10: PEUGEOT | P10: 2021 | Q10: AUTOMOVIL | R10: 31 | S10: 8 | T10: 31_8_2021_AUTOMOVIL | U10: TRAVELLER ALLURE HDI AUT 5P 4CIL | V10: 31684.21146 | X10: 8 | Y10: =VLOOKUP(Simulación!$D$15,Catalogos!$O:$R,4,0) ->  | Z10: =Y10&"_"&X10&"_"&Simulación!$D$16&"_"&$Z$1 -> 
A11: =HLOOKUP(Simulación!$D$16,Catalogos!$A$68:$J$77,7,0) ->  | F11: 10 | G11: DURANGO | H11: =IF(Simulación!$D$14="camioneta",I11,J11) -> 0.674 | I11: 0.85 | J11: 0.674 | L11: CHRYSLER | M11: 9 | O11: PEUGEOT | P11: 2021 | Q11: AUTOMOVIL | R11: 31 | S11: 9 | T11: 31_9_2021_AUTOMOVIL | U11: 2008 ALLURE PACK AUT 5P 3CIL | V11: 11385.16903 | X11: 9 | Y11: =VLOOKUP(Simulación!$D$15,Catalogos!$O:$R,4,0) ->  | Z11: =Y11&"_"&X11&"_"&Simulación!$D$16&"_"&$Z$1 -> 
A12: =HLOOKUP(Simulación!$D$16,Catalogos!$A$68:$J$77,8,0) ->  | F12: 11 | G12: ESTADO DE MÉXICO | H12: =IF(Simulación!$D$14="camioneta",I12,J12) -> 0.8999 | I12: 0.85 | J12: 0.8999 | L12: DODGE | M12: 10 | O12: PEUGEOT | P12: 2021 | Q12: AUTOMOVIL | R12: 31 | S12: 10 | T12: 31_10_2021_AUTOMOVIL | U12: 5008 ALLURE PACK AUT 5P 4CIL | V12: 15693.91688 | X12: 10 | Y12: =VLOOKUP(Simulación!$D$15,Catalogos!$O:$R,4,0) ->  | Z12: =Y12&"_"&X12&"_"&Simulación!$D$16&"_"&$Z$1 -> 
A13: =HLOOKUP(Simulación!$D$16,Catalogos!$A$68:$J$77,9,0) ->  | F13: 12 | G13: GUANAJUATO | H13: =IF(Simulación!$D$14="camioneta",I13,J13) -> 0.5991 | I13: 0.85 | J13: 0.5991 | L13: FERRARI | M13: 11 | O13: PEUGEOT | P13: 2021 | Q13: AUTOMOVIL | R13: 31 | S13: 11 | T13: 31_11_2021_AUTOMOVIL | U13: 5008 GT LINE AUT 5P 4CIL | V13: 17930.69123 | X13: 11 | Y13: =VLOOKUP(Simulación!$D$15,Catalogos!$O:$R,4,0) ->  | Z13: =Y13&"_"&X13&"_"&Simulación!$D$16&"_"&$Z$1 -> 
A14: =HLOOKUP(Simulación!$D$16,Catalogos!$A$68:$J$77,10,0) ->  | F14: 13 | G14: GUERRERO | H14: =IF(Simulación!$D$14="camioneta",I14,J14) -> 1.017 | I14: 0.884 | J14: 1.017 | L14: FIAT | M14: 12 | O14: PEUGEOT | P14: 2021 | Q14: AUTOMOVIL | R14: 31 | S14: 12 | T14: 31_12_2021_AUTOMOVIL | U14: 5008 GT LINE HDI AUT 5P 4CIL | V14: 18639.56353 | X14: 12 | Y14: =VLOOKUP(Simulación!$D$15,Catalogos!$O:$R,4,0) ->  | Z14: =Y14&"_"&X14&"_"&Simulación!$D$16&"_"&$Z$1 -> 
F15: 14 | G15: HIDALGO | H15: =IF(Simulación!$D$14="camioneta",I15,J15) -> 0.8787 | I15: 0.85 | J15: 0.8787 | L15: FORD | M15: 13 | O15: PEUGEOT | P15: 2021 | Q15: AUTOMOVIL | R15: 31 | S15: 13 | T15: 31_13_2021_AUTOMOVIL | U15: 3008 ACTIVE AUT 5P 4CIL | V15: 24364.52408 | X15: 13 | Y15: =VLOOKUP(Simulación!$D$15,Catalogos!$O:$R,4,0) ->  | Z15: =Y15&"_"&X15&"_"&Simulación!$D$16&"_"&$Z$1 -> 
A16: Esquema | F16: 15 | G16: JALISCO | H16: =IF(Simulación!$D$14="camioneta",I16,J16) -> 0.831 | I16: 0.884 | J16: 0.831 | L16: GIANT MOTORS | M16: 14 | O16: PEUGEOT | P16: 2021 | Q16: AUTOMOVIL | R16: 31 | S16: 14 | T16: 31_14_2021_AUTOMOVIL | U16: RIFTER ACTIVE STD 5P 4CIL | V16: 17467.36655 | X16: 14 | Y16: =VLOOKUP(Simulación!$D$15,Catalogos!$O:$R,4,0) ->  | Z16: =Y16&"_"&X16&"_"&Simulación!$D$16&"_"&$Z$1 -> 
A17: Mensual | F17: 16 | G17: MICHOACAN | H17: =IF(Simulación!$D$14="camioneta",I17,J17) -> 0.7798 | I17: 0.85 | J17: 0.7798 | L17: HONDA | M17: 15 | O17: PEUGEOT | P17: 2021 | Q17: AUTOMOVIL | R17: 31 | S17: 15 | T17: 31_15_2021_AUTOMOVIL | U17: RIFTER ALLURE STD 5P 4CIL | V17: 19844.82041 | X17: 15 | Y17: =VLOOKUP(Simulación!$D$15,Catalogos!$O:$R,4,0) ->  | Z17: =Y17&"_"&X17&"_"&Simulación!$D$16&"_"&$Z$1 -> 
A18: Quincenal | F18: 17 | G18: MORELOS | H18: =IF(Simulación!$D$14="camioneta",I18,J18) -> 0.9436 | I18: 0.85 | J18: 0.9436 | L18: HYUNDAI | M18: 16 | O18: PEUGEOT | P18: 2021 | Q18: AUTOMOVIL | R18: 31 | S18: 16 | T18: 31_16_2021_AUTOMOVIL | U18: 2008 ACTIVE AUT 5P 3CIL | V18: 11028.57791 | X18: 16 | Y18: =VLOOKUP(Simulación!$D$15,Catalogos!$O:$R,4,0) ->  | Z18: =Y18&"_"&X18&"_"&Simulación!$D$16&"_"&$Z$1 -> 
F19: 18 | G19: NAYARIT | H19: =IF(Simulación!$D$14="camioneta",I19,J19) -> 0.8687 | I19: 0.85 | J19: 0.8687 | L19: INFINITI | M19: 17 | O19: MAZDA | P19: 2020 | Q19: AUTOMOVIL | R19: 26 | S19: 1 | T19: 26_1_2020_AUTOMOVIL | U19: CX-5 S GRAND TOURING AWD | V19: 13753.35779 | X19: 17 | Y19: =VLOOKUP(Simulación!$D$15,Catalogos!$O:$R,4,0) ->  | Z19: =Y19&"_"&X19&"_"&Simulación!$D$16&"_"&$Z$1 -> 
A20: Esquema seguro | F20: 19 | G20: NUEVO LEON | H20: =IF(Simulación!$D$14="camioneta",I20,J20) -> 0.679 | I20: 0.85 | J20: 0.679 | L20: JAC | M20: 18 | O20: MITSUBISHI | P20: 2020 | Q20: AUTOMOVIL | R20: 29 | S20: 1 | T20: 29_1_2020_AUTOMOVIL | U20: ECLIPSE CROSS LIMITED S-AWC AUT 5P 4CIL 4WD | V20: 20285.5147 | X20: 18 | Y20: =VLOOKUP(Simulación!$D$15,Catalogos!$O:$R,4,0) ->  | Z20: =Y20&"_"&X20&"_"&Simulación!$D$16&"_"&$Z$1 -> 
A21: SEGURO FINANCIADO ANUAL | B21: SFA | F21: 20 | G21: OAXACA | H21: =IF(Simulación!$D$14="camioneta",I21,J21) -> 0.7798 | I21: 0.85 | J21: 0.7798 | L21: JEEP | M21: 19 | O21: MITSUBISHI | P21: 2020 | Q21: AUTOMOVIL | R21: 29 | S21: 2 | T21: 29_2_2020_AUTOMOVIL | U21: ECLIPSE CROSS LIMITED S-AWC RED DIAMOND AUT 5P 4CIL 4WD | V21: 20418.2554 | X21: 19 | Y21: =VLOOKUP(Simulación!$D$15,Catalogos!$O:$R,4,0) ->  | Z21: =Y21&"_"&X21&"_"&Simulación!$D$16&"_"&$Z$1 -> 
A22: SEGURO FINANCIADO MULTIANUAL | B22: SFM | F22: 21 | G22: PUEBLA | H22: =IF(Simulación!$D$14="camioneta",I22,J22) -> 0.6202 | I22: 0.85 | J22: 0.6202 | L22: KIA | M22: 20 | O22: NISSAN | P22: 2020 | Q22: AUTOMOVIL | R22: 30 | S22: 1 | T22: 30_1_2020_AUTOMOVIL | U22: SENTRA SR 2.0L AUT 4P 4CIL | V22: 16283.98731 | X22: 20 | Y22: =VLOOKUP(Simulación!$D$15,Catalogos!$O:$R,4,0) ->  | Z22: =Y22&"_"&X22&"_"&Simulación!$D$16&"_"&$Z$1 -> 
A23: SEGURO CONTADO ANUAL | B23: SCA | F23: 22 | G23: QUERETARO | H23: =IF(Simulación!$D$14="camioneta",I23,J23) -> 0.5991 | I23: 0.85 | J23: 0.5991 | L23: LAMBORGHINI | M23: 21 | O23: NISSAN | P23: 2020 | Q23: AUTOMOVIL | R23: 30 | S23: 2 | T23: 30_2_2020_AUTOMOVIL | U23: SENTRA SR 2.0L STD 4P 4CIL | V23: 16975.13003 | X23: 21 | Y23: =VLOOKUP(Simulación!$D$15,Catalogos!$O:$R,4,0) ->  | Z23: =Y23&"_"&X23&"_"&Simulación!$D$16&"_"&$Z$1 -> 
A24: SEGURO CONTADO MULTIANUAL | B24: SCM | F24: 23 | G24: QUINTANA ROO | H24: =IF(Simulación!$D$14="camioneta",I24,J24) -> 0.674 | I24: 0.85 | J24: 0.674 | L24: LAND ROVER | M24: 22 | O24: NISSAN | P24: 2020 | Q24: AUTOMOVIL | R24: 30 | S24: 3 | T24: 30_3_2020_AUTOMOVIL | U24: SENTRA SR BITONE 2.0L STD 4P 4CIL | V24: 18081.20136 | X24: 22 | Y24: =VLOOKUP(Simulación!$D$15,Catalogos!$O:$R,4,0) ->  | Z24: =Y24&"_"&X24&"_"&Simulación!$D$16&"_"&$Z$1 -> 
A25: PROMOCIÓN SEGURO GRATIS AGENCIA | B25: SG | F25: 24 | G25: SAN LUIS POTOSI | H25: =IF(Simulación!$D$14="camioneta",I25,J25) -> 0.5991 | I25: 0.85 | J25: 0.5991 | L25: LICOLN | M25: 23 | O25: NISSAN | P25: 2020 | Q25: AUTOMOVIL | R25: 30 | S25: 4 | T25: 30_4_2020_AUTOMOVIL | U25: SENTRA EXCLUSIVE 1.8L AUT 4P 4CIL | V25: 16305.16745 | X25: 23 | Y25: =VLOOKUP(Simulación!$D$15,Catalogos!$O:$R,4,0) ->  | Z25: =Y25&"_"&X25&"_"&Simulación!$D$16&"_"&$Z$1 -> 
A26: OTRA ASEGURADORA PRIMER AÑO | B26: SCA | F26: 25 | G26: SINALOA | H26: =IF(Simulación!$D$14="camioneta",I26,J26) -> 0.831 | I26: 0.884 | J26: 0.831 | L26: MASERATI | M26: 24 | O26: NISSAN | P26: 2020 | Q26: AUTOMOVIL | R26: 30 | S26: 5 | T26: 30_5_2020_AUTOMOVIL | U26: SENTRA EXCLUSIVE BITONE 1.8L AUT 4P 4CIL | V26: 18644.93132 | X26: 24 | Y26: =VLOOKUP(Simulación!$D$15,Catalogos!$O:$R,4,0) ->  | Z26: =Y26&"_"&X26&"_"&Simulación!$D$16&"_"&$Z$1 -> 
F27: 26 | G27: SONORA | H27: =IF(Simulación!$D$14="camioneta",I27,J27) -> 0.679 | I27: 0.85 | J27: 0.679 | L27: MASTRETTA | M27: 25 | O27: MERCEDES BENZ | P27: 2020 | Q27: AUTOMOVIL | R27: 28 | S27: 1 | T27: 28_1_2020_AUTOMOVIL | U27: C 43 AMG AUT 4P 6CIL | V27: 59122.14105 | X27: 25 | Y27: =VLOOKUP(Simulación!$D$15,Catalogos!$O:$R,4,0) ->  | Z27: =Y27&"_"&X27&"_"&Simulación!$D$16&"_"&$Z$1 -> 
A28: Tasas previas | F28: 27 | G28: TABASCO | H28: =IF(Simulación!$D$14="camioneta",I28,J28) -> 0.7728 | I28: 0.85 | J28: 0.7728 | L28: MAZDA | M28: 26 | O28: CHRYSLER | P28: 2020 | Q28: AUTOMOVIL | R28: 9 | S28: 1 | T28: 9_1_2020_AUTOMOVIL | U28: DURANGO TOURING AUT 5P 6CIL 3.6L | V28: 34282.10158 | X28: 26 | Y28: =VLOOKUP(Simulación!$D$15,Catalogos!$O:$R,4,0) ->  | Z28: =Y28&"_"&X28&"_"&Simulación!$D$16&"_"&$Z$1 -> 
B29: 0.4 | C29: 0.2 | D29: 0.1 | F29: 28 | G29: TAMAULIPAS | H29: =IF(Simulación!$D$14="camioneta",I29,J29) -> 0.679 | I29: 0.85 | J29: 0.679 | L29: MCLAREN | M29: 27 | O29: CHRYSLER | P29: 2020 | Q29: AUTOMOVIL | R29: 9 | S29: 2 | T29: 9_2_2020_AUTOMOVIL | U29: DURANGO GT AUT 5P 6CIL 3.6L | V29: 37328.81275 | X29: 27 | Y29: =VLOOKUP(Simulación!$D$15,Catalogos!$O:$R,4,0) ->  | Z29: =Y29&"_"&X29&"_"&Simulación!$D$16&"_"&$Z$1 -> 
A30: Inmediauto Verde | B30: 0.124 | C30: 0.135 | D30: 0.139 | F30: 29 | G30: TLAXCALA | H30: =IF(Simulación!$D$14="camioneta",I30,J30) -> 0.8687 | I30: 0.85 | J30: 0.8687 | L30: MERCEDES BENZ | M30: 28 | O30: CHRYSLER | P30: 2020 | Q30: AUTOMOVIL | R30: 9 | S30: 3 | T30: 9_3_2020_AUTOMOVIL | U30: JEEP CHEROKEE LIMITED AUT 5P 6CIL 3.2L | V30: 35638.70667 | X30: 28 | Y30: =VLOOKUP(Simulación!$D$15,Catalogos!$O:$R,4,0) ->  | Z30: =Y30&"_"&X30&"_"&Simulación!$D$16&"_"&$Z$1 -> 
B31: 0.124 | C31: 0.135 | D31: 0.139 | F31: 30 | G31: VERACRUZ | H31: =IF(Simulación!$D$14="camioneta",I31,J31) -> 0.7728 | I31: 0.85 | J31: 0.7728 | L31: MITSUBISHI | M31: 29 | O31: VOLKSWAGEN | P31: 2020 | Q31: AUTOMOVIL | R31: 40 | S31: 1 | T31: 40_1_2020_AUTOMOVIL | U31: VENTO COMFORTLINE PLUS AUT 4P 4CIL 1.6L | V31: 15251.95401 | X31: 29 | Y31: =VLOOKUP(Simulación!$D$15,Catalogos!$O:$R,4,0) ->  | Z31: =Y31&"_"&X31&"_"&Simulación!$D$16&"_"&$Z$1 -> 
B32: 0.124 | C32: 0.135 | D32: 0.139 | F32: 31 | G32: YUCATAN | H32: =IF(Simulación!$D$14="camioneta",I32,J32) -> 0.6202 | I32: 0.85 | J32: 0.6202 | L32: NISSAN | M32: 30 | O32: VOLKSWAGEN | P32: 2020 | Q32: AUTOMOVIL | R32: 40 | S32: 2 | T32: 40_2_2020_AUTOMOVIL | U32: VENTO COMFORTLINE PLUS STD 4P 4CIL 1.6L | V32: 14375.10885 | X32: 30 | Y32: =VLOOKUP(Simulación!$D$15,Catalogos!$O:$R,4,0) ->  | Z32: =Y32&"_"&X32&"_"&Simulación!$D$16&"_"&$Z$1 -> 
F33: 32 | G33: ZACATECAS | H33: =IF(Simulación!$D$14="camioneta",I33,J33) -> 0.6902 | I33: 0.85 | J33: 0.6902 | L33: PEUGEOT | M33: 31 | O33: VOLKSWAGEN | P33: 2020 | Q33: AUTOMOVIL | R33: 40 | S33: 3 | T33: 40_3_2020_AUTOMOVIL | U33: CRAFTER 3.5 16 PASAJEROS TDI MWB STD 5P 4CIL | V33: 21241.23083 | X33: 31 | Y33: =VLOOKUP(Simulación!$D$15,Catalogos!$O:$R,4,0) ->  | Z33: =Y33&"_"&X33&"_"&Simulación!$D$16&"_"&$Z$1 -> 
L34: PORSCHE | M34: 32 | O34: AUDI | P34: 2020 | Q34: AUTOMOVIL | R34: 4 | S34: 1 | T34: 4_1_2020_AUTOMOVIL | U34: Q3 40 TFSI SELECT 5P 4CIL 2.0L 4WD | V34: 28819.39533 | X34: 32 | Y34: =VLOOKUP(Simulación!$D$15,Catalogos!$O:$R,4,0) ->  | Z34: =Y34&"_"&X34&"_"&Simulación!$D$16&"_"&$Z$1 -> 
L35: RENAULT | M35: 33 | O35: AUDI | P35: 2020 | Q35: AUTOMOVIL | R35: 4 | S35: 2 | T35: 4_2_2020_AUTOMOVIL | U35: Q3 35 TFSI S LINE 5P 4CIL 1.4L | V35: 28436.70157 | X35: 33 | Y35: =VLOOKUP(Simulación!$D$15,Catalogos!$O:$R,4,0) ->  | Z35: =Y35&"_"&X35&"_"&Simulación!$D$16&"_"&$Z$1 ->  | AA35: =IFERROR(VLOOKUP(Z35,$T:$V,2,0),"") -> 
G36: 12225.48277 | L36: SEAT | M36: 34 | O36: AUDI | P36: 2020 | Q36: AUTOMOVIL | R36: 4 | S36: 3 | T36: 4_3_2020_AUTOMOVIL | U36: Q3 35 TFSI SELECT 5P 4CIL 1.4L | V36: 26530.06857 | X36: 34 | Y36: =VLOOKUP(Simulación!$D$15,Catalogos!$O:$R,4,0) ->  | Z36: =Y36&"_"&X36&"_"&Simulación!$D$16&"_"&$Z$1 -> 
A37: Con Subvención | H37: =G36*85% -> 10391.66035 | I37: =(H37+300)*1.16 -> 12402.32601 | L37: SMART | M37: 35 | O37: AUDI | P37: 2020 | Q37: AUTOMOVIL | R37: 4 | S37: 4 | T37: 4_4_2020_AUTOMOVIL | U37: Q3 40 TFSI S LINE 5P 4CIL 2.0L | V37: 30345.61317 | X37: 35 | Y37: =VLOOKUP(Simulación!$D$15,Catalogos!$O:$R,4,0) ->  | Z37: =Y37&"_"&X37&"_"&Simulación!$D$16&"_"&$Z$1 -> 
L38: SUBARU | M38: 36 | O38: TOYOTA | P38: 2020 | Q38: AUTOMOVIL | R38: 39 | S38: 1 | T38: 39_1_2020_AUTOMOVIL | U38: COROLLA LE HV STD 4P 4CIL | V38: 11518.18408 | X38: 36 | Y38: =VLOOKUP(Simulación!$D$15,Catalogos!$O:$R,4,0) ->  | Z38: =Y38&"_"&X38&"_"&Simulación!$D$16&"_"&$Z$1 -> 
A39: Años | L39: SUZUKI | M39: 37 | O39: LAND ROVER | P39: 2020 | Q39: AUTOMOVIL | R39: 22 | S39: 1 | T39: 22_1_2020_AUTOMOVIL | U39: DISCOVERY SPORT S 2.0 MHEV P200 S AUT 4WD | V39: 38163.01176 | X39: 37 | Y39: =VLOOKUP(Simulación!$D$15,Catalogos!$O:$R,4,0) ->  | Z39: =Y39&"_"&X39&"_"&Simulación!$D$16&"_"&$Z$1 -> 
A40: 2021 | B40: 72 | G40: Ajustes DTI - PTI | L40: TESLA | M40: 38 | O40: LAND ROVER | P40: 2020 | Q40: AUTOMOVIL | R40: 22 | S40: 2 | T40: 22_2_2020_AUTOMOVIL | U40: DISCOVERY SPORT R-DYNAMIC S 2.0 MHEV P200 S AUT 5P 4CIL 4WD | V40: 40582.23901 | X40: 38 | Y40: =VLOOKUP(Simulación!$D$15,Catalogos!$O:$R,4,0) ->  | Z40: =Y40&"_"&X40&"_"&Simulación!$D$16&"_"&$Z$1 -> 
A41: 2020 | B41: 72 | G41: Rango >$ | H41: Costo | L41: TOYOTA | M41: 39 | O41: LAND ROVER | P41: 2020 | Q41: AUTOMOVIL | R41: 22 | S41: 3 | T41: 22_3_2020_AUTOMOVIL | U41: DISCOVERY SPORT R-DYNAMIC 2.0 MHEV P200 AUT 5P 4CIL 4WD | V41: 36620.09616 | X41: 39 | Y41: =VLOOKUP(Simulación!$D$15,Catalogos!$O:$R,4,0) ->  | Z41: =Y41&"_"&X41&"_"&Simulación!$D$16&"_"&$Z$1 -> 
A42: 2019 | B42: 60 | G42: 0 | H42: 0 | L42: VOLKSWAGEN | M42: 40 | O42: FORD | P42: 2020 | Q42: AUTOMOVIL | R42: 13 | S42: 1 | T42: 13_1_2020_AUTOMOVIL | U42: EXPLORER LIMITED AUT 5P 4CIL | V42: 27371.18148 | X42: 40 | Y42: =VLOOKUP(Simulación!$D$15,Catalogos!$O:$R,4,0) ->  | Z42: =Y42&"_"&X42&"_"&Simulación!$D$16&"_"&$Z$1 -> 
A43: 2018 | B43: 60 | G43: 60000 | H43: 0.005 | L43: VOLVO | M43: 41 | O43: FORD | P43: 2020 | Q43: AUTOMOVIL | R43: 13 | S43: 2 | T43: 13_2_2020_AUTOMOVIL | U43: EXPLORER XLT AUT 5P 4CIL | V43: 24881.37478 | X43: 41 | Y43: =VLOOKUP(Simulación!$D$15,Catalogos!$O:$R,4,0) ->  | Z43: =Y43&"_"&X43&"_"&Simulación!$D$16&"_"&$Z$1 -> 
A44: 2017 | B44: 60 | G44: 75001 | H44: 0.01 | O44: PORSCHE | P44: 2020 | Q44: AUTOMOVIL | R44: 32 | S44: 1 | T44: 32_1_2020_AUTOMOVIL | U44: 911 CARRERA 4S COUPE TIPTRONIC S | V44: 76557.83629 | X44: 42 | Y44: =VLOOKUP(Simulación!$D$15,Catalogos!$O:$R,4,0) ->  | Z44: =Y44&"_"&X44&"_"&Simulación!$D$16&"_"&$Z$1 -> 
A45: 2016 | B45: 60 | G45: 90001 | H45: 0.015 | O45: FORD | P45: 2020 | Q45: AUTOMOVIL | R45: 13 | S45: 1 | T45: 13_1_2020_AUTOMOVIL | U45: EXPLORER ST AUT 5P 6CIL 4WD | V45: 29965.03824 | X45: 43 | Y45: =VLOOKUP(Simulación!$D$15,Catalogos!$O:$R,4,0) ->  | Z45: =Y45&"_"&X45&"_"&Simulación!$D$16&"_"&$Z$1 -> 
A46: 2015 | B46: 48 | G46: 105001 | H46: 0.02 | O46: FIAT | P46: 2020 | Q46: AUTOMOVIL | R46: 12 | S46: 1 | T46: 12_1_2020_AUTOMOVIL | U46: ARGO DRIVE PLUS STD 5P 4CIL 1.3L | V46: 10268.9885 | X46: 44 | Y46: =VLOOKUP(Simulación!$D$15,Catalogos!$O:$R,4,0) ->  | Z46: =Y46&"_"&X46&"_"&Simulación!$D$16&"_"&$Z$1 -> 
A47: 2014 | B47: 48 | G47: 135001 | H47: 0.025 | O47: FIAT | P47: 2020 | Q47: AUTOMOVIL | R47: 12 | S47: 2 | T47: 12_2_2020_AUTOMOVIL | U47: ARGO HGT AUT 5P 4CIL 1.8L | V47: 12546.8953 | X47: 45 | Y47: =VLOOKUP(Simulación!$D$15,Catalogos!$O:$R,4,0) ->  | Z47: =Y47&"_"&X47&"_"&Simulación!$D$16&"_"&$Z$1 -> 
A48: 2013 | B48: 48 | G48: 180001 | H48: 0.03 | O48: FIAT | P48: 2020 | Q48: AUTOMOVIL | R48: 12 | S48: 3 | T48: 12_3_2020_AUTOMOVIL | U48: ARGO PRECISION STD 5P 4CIL 1.8L | V48: 11245.81398 | X48: 46 | Y48: =VLOOKUP(Simulación!$D$15,Catalogos!$O:$R,4,0) ->  | Z48: =Y48&"_"&X48&"_"&Simulación!$D$16&"_"&$Z$1 -> 
A49: 2012 | B49: 48 | G49: 250001 | H49: 0.035 | O49: FIAT | P49: 2020 | Q49: AUTOMOVIL | R49: 12 | S49: 4 | T49: 12_4_2020_AUTOMOVIL | U49: ARGO TREKKING STD 5P 4CIL 1.3L | V49: 10793.2352 | X49: 47 | Y49: =VLOOKUP(Simulación!$D$15,Catalogos!$O:$R,4,0) ->  | Z49: =Y49&"_"&X49&"_"&Simulación!$D$16&"_"&$Z$1 -> 
G50: 340001 | H50: 0.04 | O50: TESLA | P50: 2020 | Q50: AUTOMOVIL | R50: 38 | S50: 1 | T50: 38_1_2020_AUTOMOVIL | U50: MODEL 3 PERFORMANCE 4WD | V50: 26228.95969 | X50: 48 | Y50: =VLOOKUP(Simulación!$D$15,Catalogos!$O:$R,4,0) ->  | Z50: =Y50&"_"&X50&"_"&Simulación!$D$16&"_"&$Z$1 -> 
G51: 500001 | H51: 0.045 | O51: TESLA | P51: 2020 | Q51: AUTOMOVIL | R51: 38 | S51: 2 | T51: 38_2_2020_AUTOMOVIL | U51: MODEL 3 LONG RANGE DUAL MOTOR 4P | V51: 22425.88907 | X51: 49 | Y51: =VLOOKUP(Simulación!$D$15,Catalogos!$O:$R,4,0) ->  | Z51: =Y51&"_"&X51&"_"&Simulación!$D$16&"_"&$Z$1 -> 
O52: TESLA | P52: 2020 | Q52: AUTOMOVIL | R52: 38 | S52: 3 | T52: 38_3_2020_AUTOMOVIL | U52: MODEL 3 STD PLUS 4P | V52: 19559.33872 | X52: 50 | Y52: =VLOOKUP(Simulación!$D$15,Catalogos!$O:$R,4,0) ->  | Z52: =Y52&"_"&X52&"_"&Simulación!$D$16&"_"&$Z$1 -> 
A53: Catálogo Factores Ajuste | O53: MERCEDES BENZ | P53: 2020 | Q53: AUTOMOVIL | R53: 28 | S53: 1 | T53: 28_1_2020_AUTOMOVIL | U53: SLC 43 AMG AUT 2P 6CIL 3.0L | V53: 54815.90637 | X53: 51 | Y53: =VLOOKUP(Simulación!$D$15,Catalogos!$O:$R,4,0) ->  | Z53: =Y53&"_"&X53&"_"&Simulación!$D$16&"_"&$Z$1 -> 
B54: Declaración de Impuestos | C54: Estados de Cuenta | O54: MERCEDES BENZ | P54: 2020 | Q54: AUTOMOVIL | R54: 28 | S54: 2 | T54: 28_2_2020_AUTOMOVIL | U54: SLC 43 AMG FINAL EDITION AUT 2P 6CIL 3.0L | V54: 59443.51344 | X54: 52 | Y54: =VLOOKUP(Simulación!$D$15,Catalogos!$O:$R,4,0) ->  | Z54: =Y54&"_"&X54&"_"&Simulación!$D$16&"_"&$Z$1 -> 
B55: Unificados | O55: NISSAN | P55: 2020 | Q55: AUTOMOVIL | R55: 30 | S55: 1 | T55: 30_1_2020_AUTOMOVIL | U55: URVAN NV350 AMPLIA TM 15 PAS | V55: 18716.03627 | X55: 53 | Y55: =VLOOKUP(Simulación!$D$15,Catalogos!$O:$R,4,0) ->  | Z55: =Y55&"_"&X55&"_"&Simulación!$D$16&"_"&$Z$1 -> 
A56: Asalariado / Asimilado | B56: 1 | C56: 1 | O56: AUDI | P56: 2020 | Q56: AUTOMOVIL | R56: 4 | S56: 1 | T56: 4_1_2020_AUTOMOVIL | U56: A1 SPORTBACK EGO STRONIC | V56: 20565.86321 | X56: 54 | Y56: =VLOOKUP(Simulación!$D$15,Catalogos!$O:$R,4,0) ->  | Z56: =Y56&"_"&X56&"_"&Simulación!$D$16&"_"&$Z$1 -> 
A57: Independiente | B57: 0.85 | C57: 0.75 | O57: INFINITI | P57: 2020 | Q57: AUTOMOVIL | R57: 17 | S57: 1 | T57: 17_1_2020_AUTOMOVIL | U57: Q50 SPORT PLUS AUT 4P 6CIL 3.0L | V57: 38420.7528 | X57: 55 | Y57: =VLOOKUP(Simulación!$D$15,Catalogos!$O:$R,4,0) ->  | Z57: =Y57&"_"&X57&"_"&Simulación!$D$16&"_"&$Z$1 -> 
A58: Actividad Empresarial / RIF (Comercio) | B58: 0.6 | C58: 0.5 | O58: AUDI | P58: 2020 | Q58: AUTOMOVIL | R58: 4 | S58: 1 | T58: 4_1_2020_AUTOMOVIL | U58: Q3 S LINE STRONIC QUATTRO 5P 4CIL | V58: 27438.7265 | X58: 56 | Y58: =VLOOKUP(Simulación!$D$15,Catalogos!$O:$R,4,0) ->  | Z58: =Y58&"_"&X58&"_"&Simulación!$D$16&"_"&$Z$1 -> 
A59: Actividad Empresarial / RIF (Servicio) | B59: 0.65 | C59: 0.55 | O59: AUDI | P59: 2020 | Q59: AUTOMOVIL | R59: 4 | S59: 2 | T59: 4_2_2020_AUTOMOVIL | U59: Q3 SELECT QUATTRO STRONIC 5P 4CIL | V59: 26708.12958 | X59: 57 | Y59: =VLOOKUP(Simulación!$D$15,Catalogos!$O:$R,4,0) ->  | Z59: =Y59&"_"&X59&"_"&Simulación!$D$16&"_"&$Z$1 -> 
A60: Utilidades / Dividendos | B60: 0.65 | C60: 0.55 | O60: AUDI | P60: 2020 | Q60: AUTOMOVIL | R60: 4 | S60: 3 | T60: 4_3_2020_AUTOMOVIL | U60: Q3 SELECT STRONIC 5P 4CIL | V60: 24692.12402 | X60: 58 | Y60: =VLOOKUP(Simulación!$D$15,Catalogos!$O:$R,4,0) ->  | Z60: =Y60&"_"&X60&"_"&Simulación!$D$16&"_"&$Z$1 -> 
A61: Arrendamiento | B61: 0.9 | C61: 0.8 | O61: CHRYSLER | P61: 2020 | Q61: AUTOMOVIL | R61: 9 | S61: 1 | T61: 9_1_2020_AUTOMOVIL | U61: GRAND CHEROKEE TRAILHAWK AUT 5P 8CIL 4X4 | V61: 24217.69278 | X61: 59 | Y61: =VLOOKUP(Simulación!$D$15,Catalogos!$O:$R,4,0) ->  | Z61: =Y61&"_"&X61&"_"&Simulación!$D$16&"_"&$Z$1 -> 
A62: Inversiones | B62: 0.9 | C62: 0.85 | O62: VOLKSWAGEN | P62: 2020 | Q62: AUTOMOVIL | R62: 40 | S62: 1 | T62: 40_1_2020_AUTOMOVIL | U62: GOL STD 5P 4CIL 1.6L | V62: 14389.4765 | X62: 60 | Y62: =VLOOKUP(Simulación!$D$15,Catalogos!$O:$R,4,0) ->  | Z62: =Y62&"_"&X62&"_"&Simulación!$D$16&"_"&$Z$1 -> 
O63: AUDI | P63: 2020 | Q63: AUTOMOVIL | R63: 4 | S63: 1 | T63: 4_1_2020_AUTOMOVIL | U63: Q3 DYNAMIC 5P 4CIL 1.4L S TRONIC | V63: 24810.57299 | X63: 61 | Y63: =VLOOKUP(Simulación!$D$15,Catalogos!$O:$R,4,0) ->  | Z63: =Y63&"_"&X63&"_"&Simulación!$D$16&"_"&$Z$1 -> 
O64: AUDI | P64: 2020 | Q64: AUTOMOVIL | R64: 4 | S64: 2 | T64: 4_2_2020_AUTOMOVIL | U64: TT S AUT 2P 4CIL 2.0L AWD | V64: 45030.99007 | X64: 62 | Y64: =VLOOKUP(Simulación!$D$15,Catalogos!$O:$R,4,0) ->  | Z64: =Y64&"_"&X64&"_"&Simulación!$D$16&"_"&$Z$1 -> 
O65: CHEVROLET | P65: 2020 | Q65: AUTOMOVIL | R65: 8 | S65: 1 | T65: 8_1_2020_AUTOMOVIL | U65: BUICK ENCORE GX CONVENIENCE CVT 5P 3CIL 1.3L | V65: 16159.39468 | X65: 63 | Y65: =VLOOKUP(Simulación!$D$15,Catalogos!$O:$R,4,0) ->  | Z65: =Y65&"_"&X65&"_"&Simulación!$D$16&"_"&$Z$1 -> 
O66: CHEVROLET | P66: 2020 | Q66: AUTOMOVIL | R66: 8 | S66: 2 | T66: 8_2_2020_AUTOMOVIL | U66: BUICK ENCORE GX LEATHER CVT 5P 3CIL 1.3L | V66: 17963.92974 | X66: 64 | Y66: =VLOOKUP(Simulación!$D$15,Catalogos!$O:$R,4,0) ->  | Z66: =Y66&"_"&X66&"_"&Simulación!$D$16&"_"&$Z$1 -> 
A67: Plazos vs Años | O67: CHEVROLET | P67: 2020 | Q67: AUTOMOVIL | R67: 8 | S67: =IF(O67&P67=O66&P66,S66+1,1) -> 3 | T67: =R67&"_"&S67&"_"&P67&"_"&Q67 -> 8_3_2020_AUTOMOVIL | U67: BUICK ENCORE GX SPORT TOURING CVT 5P 3CIL 1.3L | V67: 18620.26155 | X67: 65 | Y67: =VLOOKUP(Simulación!$D$15,Catalogos!$O:$R,4,0) ->  | Z67: =Y67&"_"&X67&"_"&Simulación!$D$16&"_"&$Z$1 ->  | AA67: =IFERROR(VLOOKUP(Z67,$T:$V,2,0),"") ->  | AB67: =IFERROR(VLOOKUP(Z67,$T:$V,3,0),"") -> 
A68: 2012 | B68: 2013 | C68: 2014 | D68: 2015 | E68: 2016 | F68: 2017 | G68: 2018 | H68: 2019 | I68: 2020 | J68: 2021 | O68: BMW | P68: 2020 | Q68: AUTOMOVIL | R68: =VLOOKUP(O68,$L$3:$M$43,2,0) -> 7 | S68: 1 | T68: 7_1_2020_AUTOMOVIL | U68: MINI COOPER PURE BURGUNDY AUT 3P 3CIL | V68: 36623.02226 | X68: 66 | Y68: =VLOOKUP(Simulación!$D$15,Catalogos!$O:$R,4,0) ->  | Z68: =Y68&"_"&X68&"_"&Simulación!$D$16&"_"&$Z$1 -> 
A69: 6 | B69: 6 | C69: 6 | D69: 6 | E69: 6 | F69: 6 | G69: 6 | H69: 6 | I69: 6 | J69: 6 | O69: BMW | P69: 2020 | Q69: AUTOMOVIL | R69: 7 | S69: 2 | T69: 7_2_2020_AUTOMOVIL | U69: X3 M AUT 5P 6CIL 4WD 3.0L | V69: 62956.81631 | X69: 67 | Y69: =VLOOKUP(Simulación!$D$15,Catalogos!$O:$R,4,0) ->  | Z69: =Y69&"_"&X69&"_"&Simulación!$D$16&"_"&$Z$1 -> 
A70: 12 | B70: 12 | C70: 12 | D70: 12 | E70: 12 | F70: 12 | G70: 12 | H70: 12 | I70: 12 | J70: 12 | O70: BMW | P70: 2020 | Q70: AUTOMOVIL | R70: 7 | S70: 3 | T70: 7_3_2020_AUTOMOVIL | U70: X3 M COMPETITION AUT 5P 6CIL 4WD 3.0L | V70: 69261.82217 | X70: 68 | Y70: =VLOOKUP(Simulación!$D$15,Catalogos!$O:$R,4,0) ->  | Z70: =Y70&"_"&X70&"_"&Simulación!$D$16&"_"&$Z$1 -> 
A71: 18 | B71: 18 | C71: 18 | D71: 18 | E71: 18 | F71: 18 | G71: 18 | H71: 18 | I71: 18 | J71: 18 | O71: BMW | P71: 2020 | Q71: AUTOMOVIL | R71: 7 | S71: 4 | T71: 7_4_2020_AUTOMOVIL | U71: X3 XDRIVE30E HIBRIDO AUT 5P 4CIL 2.0L 4WD | V71: 42929.35711 | X71: 69 | Y71: =VLOOKUP(Simulación!$D$15,Catalogos!$O:$R,4,0) ->  | Z71: =Y71&"_"&X71&"_"&Simulación!$D$16&"_"&$Z$1 -> 
A72: 24 | B72: 24 | C72: 24 | D72: 24 | E72: 24 | F72: 24 | G72: 24 | H72: 24 | I72: 24 | J72: 24 | O72: RENAULT | P72: 2020 | Q72: AUTOMOVIL | R72: 33 | S72: 1 | T72: 33_1_2020_AUTOMOVIL | U72: CAPTUR INTENS SMR AUT 5P 4CIL 2.0L | V72: 18155.94046 | X72: 70 | Y72: =VLOOKUP(Simulación!$D$15,Catalogos!$O:$R,4,0) ->  | Z72: =Y72&"_"&X72&"_"&Simulación!$D$16&"_"&$Z$1 -> 
A73: 30 | B73: 30 | C73: 30 | D73: 30 | E73: 30 | F73: 30 | G73: 30 | H73: 30 | I73: 30 | J73: 30 | O73: RENAULT | P73: 2020 | Q73: AUTOMOVIL | R73: 33 | S73: 2 | T73: 33_2_2020_AUTOMOVIL | U73: CAPTUR ICONIC SMR AUT 5P 4CIL 2.0L | V73: 19485.33027 | X73: 71 | Y73: =VLOOKUP(Simulación!$D$15,Catalogos!$O:$R,4,0) ->  | Z73: =Y73&"_"&X73&"_"&Simulación!$D$16&"_"&$Z$1 -> 
A74: 36 | B74: 36 | C74: 36 | D74: 36 | E74: 36 | F74: 36 | G74: 36 | H74: 36 | I74: 36 | J74: 36 | O74: LAND ROVER | P74: 2020 | Q74: AUTOMOVIL | R74: 22 | S74: 1 | T74: 22_1_2020_AUTOMOVIL | U74: DISCOVERY SPORT HSE P250 AUT 5P 4CIL 2.0L AWD | V74: 50959.64215 | X74: 72 | Y74: =VLOOKUP(Simulación!$D$15,Catalogos!$O:$R,4,0) ->  | Z74: =Y74&"_"&X74&"_"&Simulación!$D$16&"_"&$Z$1 -> 
A75: 48 | B75: 48 | C75: 48 | D75: 48 | E75: 48 | F75: 48 | G75: 48 | H75: 48 | I75: 48 | J75: 48 | O75: LAND ROVER | P75: 2020 | Q75: AUTOMOVIL | R75: 22 | S75: 2 | T75: 22_2_2020_AUTOMOVIL | U75: DISCOVERY S P340 AUT 5P 6CIL 3.0L 4WD | V75: 58742.92583 | X75: 73 | Y75: =VLOOKUP(Simulación!$D$15,Catalogos!$O:$R,4,0) ->  | Z75: =Y75&"_"&X75&"_"&Simulación!$D$16&"_"&$Z$1 -> 
E76: 60 | F76: 60 | G76: 60 | H76: 60 | I76: 60 | J76: 60 | O76: LAND ROVER | P76: 2020 | Q76: AUTOMOVIL | R76: 22 | S76: 3 | T76: 22_3_2020_AUTOMOVIL | U76: RANGE ROVER VELAR R-DYNAMIC S P250 AUT 5P 4CIL 2.0L 4WD | V76: 57572.2108 | X76: 74 | Y76: =VLOOKUP(Simulación!$D$15,Catalogos!$O:$R,4,0) ->  | Z76: =Y76&"_"&X76&"_"&Simulación!$D$16&"_"&$Z$1 -> 
I77: 72 | J77: 72 | O77: LAND ROVER | P77: 2020 | Q77: AUTOMOVIL | R77: 22 | S77: 4 | T77: 22_4_2020_AUTOMOVIL | U77: DISCOVERY S P300 AUT 5P 4CIL 2.0L AWD | V77: 48910.76271 | X77: 75 | Y77: =VLOOKUP(Simulación!$D$15,Catalogos!$O:$R,4,0) ->  | Z77: =Y77&"_"&X77&"_"&Simulación!$D$16&"_"&$Z$1 -> 
O78: LAND ROVER | P78: 2020 | Q78: AUTOMOVIL | R78: 22 | S78: 5 | T78: 22_5_2020_AUTOMOVIL | U78: DEFENDER 110 AUT 5P 6CIL 3.0L AWD | V78: 46634.21506 | X78: 76 | Y78: =VLOOKUP(Simulación!$D$15,Catalogos!$O:$R,4,0) ->  | Z78: =Y78&"_"&X78&"_"&Simulación!$D$16&"_"&$Z$1 -> 
O79: LAND ROVER | P79: 2020 | Q79: AUTOMOVIL | R79: 22 | S79: 6 | T79: 22_6_2020_AUTOMOVIL | U79: DEFENDER 110 FIRST EDITION AUT 5P 6CIL 3.0L AWD | V79: 57661.91593 | X79: 77 | Y79: =VLOOKUP(Simulación!$D$15,Catalogos!$O:$R,4,0) ->  | Z79: =Y79&"_"&X79&"_"&Simulación!$D$16&"_"&$Z$1 -> 
O80: MERCEDES BENZ | P80: 2020 | Q80: AUTOMOVIL | R80: 28 | S80: 1 | T80: 28_1_2020_AUTOMOVIL | U80: GLE 53 AMG MHEV AUT 5P 6CIL 3.0L 4MATIC | V80: 60242.55235 | X80: 78 | Y80: =VLOOKUP(Simulación!$D$15,Catalogos!$O:$R,4,0) ->  | Z80: =Y80&"_"&X80&"_"&Simulación!$D$16&"_"&$Z$1 -> 
A81: Actividades | O81: MERCEDES BENZ | P81: 2020 | Q81: AUTOMOVIL | R81: 28 | S81: 2 | T81: 28_2_2020_AUTOMOVIL | U81: GLC 300 COUPE AUT 5P 4CIL 2.0L 4MATIC | V81: 47839.92935 | X81: 79 | Y81: =VLOOKUP(Simulación!$D$15,Catalogos!$O:$R,4,0) ->  | Z81: =Y81&"_"&X81&"_"&Simulación!$D$16&"_"&$Z$1 -> 
A82: Servicio | O82: MERCEDES BENZ | P82: 2020 | Q82: AUTOMOVIL | R82: 28 | S82: 3 | T82: 28_3_2020_AUTOMOVIL | U82: SPRINTER 516 XLARGA CDI 22 ASIENTOS STD 5P AC 4CIL | V82: 56395.48579 | X82: 80 | Y82: =VLOOKUP(Simulación!$D$15,Catalogos!$O:$R,4,0) ->  | Z82: =Y82&"_"&X82&"_"&Simulación!$D$16&"_"&$Z$1 -> 
A83: Comercio | O83: MERCEDES BENZ | P83: 2020 | Q83: AUTOMOVIL | R83: 28 | S83: 4 | T83: 28_4_2020_AUTOMOVIL | U83: CLA 200 COMFORT AUT 4P 4CIL 1.3L | V83: 25436.45864 | X83: 81 | Y83: =VLOOKUP(Simulación!$D$15,Catalogos!$O:$R,4,0) ->  | Z83: =Y83&"_"&X83&"_"&Simulación!$D$16&"_"&$Z$1 -> 
O84: MERCEDES BENZ | P84: 2020 | Q84: AUTOMOVIL | R84: 28 | S84: 5 | T84: 28_5_2020_AUTOMOVIL | U84: A 35 AMG DCT 4P 4CIL 2.0L 4MATIC | V84: 43920.33654 | X84: 82 | Y84: =VLOOKUP(Simulación!$D$15,Catalogos!$O:$R,4,0) ->  | Z84: =Y84&"_"&X84&"_"&Simulación!$D$16&"_"&$Z$1 -> 
O85: MERCEDES BENZ | P85: 2020 | Q85: AUTOMOVIL | R85: 28 | S85: 6 | T85: 28_6_2020_AUTOMOVIL | U85: A 35 AMG DCT 5P 4CIL 2.0L 4MATIC | V85: 43711.91646 | X85: 83 | Y85: =VLOOKUP(Simulación!$D$15,Catalogos!$O:$R,4,0) ->  | Z85: =Y85&"_"&X85&"_"&Simulación!$D$16&"_"&$Z$1 -> 
O86: MERCEDES BENZ | P86: 2020 | Q86: AUTOMOVIL | R86: 28 | S86: 7 | T86: 28_7_2020_AUTOMOVIL | U86: GLC 43 AMG AUT 5P 6CIL 3.0L AWD | V86: 59228.15025 | X86: 84 | Y86: =VLOOKUP(Simulación!$D$15,Catalogos!$O:$R,4,0) ->  | Z86: =Y86&"_"&X86&"_"&Simulación!$D$16&"_"&$Z$1 -> 
O87: MERCEDES BENZ | P87: 2020 | Q87: AUTOMOVIL | R87: 28 | S87: 8 | T87: 28_8_2020_AUTOMOVIL | U87: GLC 300 COMFORT AUT 5P 4CIL 2.0L 4MATIC | V87: 41767.33401 | X87: 85 | Y87: =VLOOKUP(Simulación!$D$15,Catalogos!$O:$R,4,0) ->  | Z87: =Y87&"_"&X87&"_"&Simulación!$D$16&"_"&$Z$1 -> 
O88: MERCEDES BENZ | P88: 2020 | Q88: AUTOMOVIL | R88: 28 | S88: 9 | T88: 28_9_2020_AUTOMOVIL | U88: GLC 300 AUT 5P 4CIL 2.0L 4MATIC | V88: 44611.28477 | X88: 86 | Y88: =VLOOKUP(Simulación!$D$15,Catalogos!$O:$R,4,0) ->  | Z88: =Y88&"_"&X88&"_"&Simulación!$D$16&"_"&$Z$1 -> 
O89: FORD | P89: 2020 | Q89: AUTOMOVIL | R89: 13 | S89: 1 | T89: 13_1_2020_AUTOMOVIL | U89: LINCOLN NAUTILUS RESERVE AUT 5P 6CIL 2.7L | V89: 42649.01976 | X89: 87 | Y89: =VLOOKUP(Simulación!$D$15,Catalogos!$O:$R,4,0) ->  | Z89: =Y89&"_"&X89&"_"&Simulación!$D$16&"_"&$Z$1 -> 
O90: CHEVROLET | P90: 2021 | Q90: AUTOMOVIL | R90: 8 | S90: 1 | T90: 8_1_2021_AUTOMOVIL | U90: ONIX PREMIER G AUT 4P 4CIL 1.2L | V90: 17416.52172 | X90: 88 | Y90: =VLOOKUP(Simulación!$D$15,Catalogos!$O:$R,4,0) ->  | Z90: =Y90&"_"&X90&"_"&Simulación!$D$16&"_"&$Z$1 -> 
O91: CHEVROLET | P91: 2021 | Q91: AUTOMOVIL | R91: 8 | S91: 2 | T91: 8_2_2021_AUTOMOVIL | U91: ONIX LT D AUT 4P 4CIL 1.0L | V91: 16568.53764 | X91: 89 | Y91: =VLOOKUP(Simulación!$D$15,Catalogos!$O:$R,4,0) ->  | Z91: =Y91&"_"&X91&"_"&Simulación!$D$16&"_"&$Z$1 -> 
O92: CHEVROLET | P92: 2021 | Q92: AUTOMOVIL | R92: 8 | S92: 3 | T92: 8_3_2021_AUTOMOVIL | U92: ONIX LT C STD 4P 4CIL 1.0L | V92: 15924.99628 | X92: 90 | Y92: =VLOOKUP(Simulación!$D$15,Catalogos!$O:$R,4,0) ->  | Z92: =Y92&"_"&X92&"_"&Simulación!$D$16&"_"&$Z$1 -> 
O93: CHEVROLET | P93: 2021 | Q93: AUTOMOVIL | R93: 8 | S93: 4 | T93: 8_4_2021_AUTOMOVIL | U93: ONIX LS B AUT 4P 4CIL 1.0L | V93: 15426.30468 | X93: 91 | Y93: =VLOOKUP(Simulación!$D$15,Catalogos!$O:$R,4,0) ->  | Z93: =Y93&"_"&X93&"_"&Simulación!$D$16&"_"&$Z$1 -> 
O94: CHEVROLET | P94: 2021 | Q94: AUTOMOVIL | R94: 8 | S94: 5 | T94: 8_5_2021_AUTOMOVIL | U94: ONIX LS A STD 4P 4CIL 1.0L | V94: 14431.19616 | X94: 92 | Y94: =VLOOKUP(Simulación!$D$15,Catalogos!$O:$R,4,0) ->  | Z94: =Y94&"_"&X94&"_"&Simulación!$D$16&"_"&$Z$1 -> 
O95: BMW | P95: 2020 | Q95: AUTOMOVIL | R95: 7 | S95: 1 | T95: 7_1_2020_AUTOMOVIL | U95: 118IA 1.6 SPORT LINE AT | V95: 28506.5275 | X95: 93 | Y95: =VLOOKUP(Simulación!$D$15,Catalogos!$O:$R,4,0) ->  | Z95: =Y95&"_"&X95&"_"&Simulación!$D$16&"_"&$Z$1 -> 
O96: NISSAN | P96: 2020 | Q96: AUTOMOVIL | R96: 30 | S96: 1 | T96: 30_1_2020_AUTOMOVIL | U96: V-DRIVE STD 4P 4CIL 1.6L | V96: 9598.643642 | X96: 94 | Y96: =VLOOKUP(Simulación!$D$15,Catalogos!$O:$R,4,0) ->  | Z96: =Y96&"_"&X96&"_"&Simulación!$D$16&"_"&$Z$1 -> 
O97: MERCEDES BENZ | P97: 2020 | Q97: AUTOMOVIL | R97: 28 | S97: 1 | T97: 28_1_2020_AUTOMOVIL | U97: C 63 S AMG AUT 4P 8CIL | V97: 70708.03878 | X97: 95 | Y97: =VLOOKUP(Simulación!$D$15,Catalogos!$O:$R,4,0) ->  | Z97: =Y97&"_"&X97&"_"&Simulación!$D$16&"_"&$Z$1 -> 
O98: TESLA | P98: 2020 | Q98: AUTOMOVIL | R98: 38 | S98: 1 | T98: 38_1_2020_AUTOMOVIL | U98: MODEL Y PERFORMANCE AUT 5P 4WD | V98: 29778.64012 | X98: 96 | Y98: =VLOOKUP(Simulación!$D$15,Catalogos!$O:$R,4,0) ->  | Z98: =Y98&"_"&X98&"_"&Simulación!$D$16&"_"&$Z$1 -> 
O99: TESLA | P99: 2020 | Q99: AUTOMOVIL | R99: 38 | S99: 2 | T99: 38_2_2020_AUTOMOVIL | U99: MODEL Y LONG RANGE AUT 5P | V99: 24175.126 | X99: 97 | Y99: =VLOOKUP(Simulación!$D$15,Catalogos!$O:$R,4,0) ->  | Z99: =Y99&"_"&X99&"_"&Simulación!$D$16&"_"&$Z$1 -> 
O100: TESLA | P100: 2020 | Q100: AUTOMOVIL | R100: 38 | S100: 3 | T100: 38_3_2020_AUTOMOVIL | U100: MODEL Y LONG RANGE AUT 5P 4WD | V100: 25916.54319 | X100: 98 | Y100: =VLOOKUP(Simulación!$D$15,Catalogos!$O:$R,4,0) ->  | Z100: =Y100&"_"&X100&"_"&Simulación!$D$16&"_"&$Z$1 -> 
O101: TESLA | P101: 2020 | Q101: AUTOMOVIL | R101: 38 | S101: 4 | T101: 38_4_2020_AUTOMOVIL | U101: MODEL S AUTONOMIA MAYOR | V101: 43975.86502 | X101: 99 | Y101: =VLOOKUP(Simulación!$D$15,Catalogos!$O:$R,4,0) ->  | Z101: =Y101&"_"&X101&"_"&Simulación!$D$16&"_"&$Z$1 -> 
O102: BMW | P102: 2020 | Q102: AUTOMOVIL | R102: 7 | S102: 1 | T102: 7_1_2020_AUTOMOVIL | U102: X6 XDRIVE 40I M SPORT AUT 5P 6CIL 3.0L | V102: 68454.51973 | X102: 100 | Y102: =VLOOKUP(Simulación!$D$15,Catalogos!$O:$R,4,0) ->  | Z102: =Y102&"_"&X102&"_"&Simulación!$D$16&"_"&$Z$1 -> 
O103: MERCEDES BENZ | P103: 2020 | Q103: AUTOMOVIL | R103: 28 | S103: 1 | T103: 28_1_2020_AUTOMOVIL | U103: C 300 COUPE AUT 2P 4CIL 2.0L | V103: 38266.96803 | X103: 101 | Y103: =VLOOKUP(Simulación!$D$15,Catalogos!$O:$R,4,0) ->  | Z103: =Y103&"_"&X103&"_"&Simulación!$D$16&"_"&$Z$1 -> 
O104: PEUGEOT | P104: 2020 | Q104: AUTOMOVIL | R104: 31 | S104: 1 | T104: 31_1_2020_AUTOMOVIL | U104: 208 ALLURE PACK AUT 5P 4CIL | V104: 10390.61097 | X104: 102 | Y104: =VLOOKUP(Simulación!$D$15,Catalogos!$O:$R,4,0) ->  | Z104: =Y104&"_"&X104&"_"&Simulación!$D$16&"_"&$Z$1 -> 
O105: PEUGEOT | P105: 2020 | Q105: AUTOMOVIL | R105: 31 | S105: 2 | T105: 31_2_2020_AUTOMOVIL | U105: 3008 ALLURE PACK AUT 5P 4CIL | V105: 26321.62203 | X105: 103 | Y105: =VLOOKUP(Simulación!$D$15,Catalogos!$O:$R,4,0) ->  | Z105: =Y105&"_"&X105&"_"&Simulación!$D$16&"_"&$Z$1 -> 
O106: PEUGEOT | P106: 2020 | Q106: AUTOMOVIL | R106: 31 | S106: 3 | T106: 31_3_2020_AUTOMOVIL | U106: 3008 ALLURE PACK HDI AUT 5P 4CIL | V106: 28018.90505 | X106: 104 | Y106: =VLOOKUP(Simulación!$D$15,Catalogos!$O:$R,4,0) ->  | Z106: =Y106&"_"&X106&"_"&Simulación!$D$16&"_"&$Z$1 -> 
O107: PEUGEOT | P107: 2020 | Q107: AUTOMOVIL | R107: 31 | S107: 4 | T107: 31_4_2020_AUTOMOVIL | U107: 3008 GT LINE AUT 5P 4CIL | V107: 30697.0032 | X107: 105 | Y107: =VLOOKUP(Simulación!$D$15,Catalogos!$O:$R,4,0) ->  | Z107: =Y107&"_"&X107&"_"&Simulación!$D$16&"_"&$Z$1 -> 
O108: PEUGEOT | P108: 2020 | Q108: AUTOMOVIL | R108: 31 | S108: 5 | T108: 31_5_2020_AUTOMOVIL | U108: 3008 GT LINE HDI AUT 5P 4CIL | V108: 32396.45736 | X108: 106 | Y108: =VLOOKUP(Simulación!$D$15,Catalogos!$O:$R,4,0) ->  | Z108: =Y108&"_"&X108&"_"&Simulación!$D$16&"_"&$Z$1 -> 
O109: PEUGEOT | P109: 2020 | Q109: AUTOMOVIL | R109: 31 | S109: 6 | T109: 31_6_2020_AUTOMOVIL | U109: 3008 ACTIVE AUT 5P 4CIL | V109: 23893.38758 | X109: 107 | Y109: =VLOOKUP(Simulación!$D$15,Catalogos!$O:$R,4,0) ->  | Z109: =Y109&"_"&X109&"_"&Simulación!$D$16&"_"&$Z$1 -> 
O110: PEUGEOT | P110: 2020 | Q110: AUTOMOVIL | R110: 31 | S110: 7 | T110: 31_7_2020_AUTOMOVIL | U110: 301 ACTIVE HDI STD 4P 4CIL | V110: 13543.91943 | X110: 108 | Y110: =VLOOKUP(Simulación!$D$15,Catalogos!$O:$R,4,0) ->  | Z110: =Y110&"_"&X110&"_"&Simulación!$D$16&"_"&$Z$1 -> 
O111: PEUGEOT | P111: 2020 | Q111: AUTOMOVIL | R111: 31 | S111: 8 | T111: 31_8_2020_AUTOMOVIL | U111: RIFTER ACTIVE STD 5P 4CIL | V111: 17143.86729 | X111: 109 | Y111: =VLOOKUP(Simulación!$D$15,Catalogos!$O:$R,4,0) ->  | Z111: =Y111&"_"&X111&"_"&Simulación!$D$16&"_"&$Z$1 -> 
O112: PEUGEOT | P112: 2020 | Q112: AUTOMOVIL | R112: 31 | S112: 9 | T112: 31_9_2020_AUTOMOVIL | U112: RIFTER ALLURE STD 5P 4CIL | V112: 19471.38503 | X112: 110 | Y112: =VLOOKUP(Simulación!$D$15,Catalogos!$O:$R,4,0) ->  | Z112: =Y112&"_"&X112&"_"&Simulación!$D$16&"_"&$Z$1 -> 
O113: KIA | P113: 2020 | Q113: AUTOMOVIL | R113: 20 | S113: 1 | T113: 20_1_2020_AUTOMOVIL | U113: SOUL LX AUT 5P 4CIL | V113: 9306.192826 | X113: 111 | Y113: =VLOOKUP(Simulación!$D$15,Catalogos!$O:$R,4,0) ->  | Z113: =Y113&"_"&X113&"_"&Simulación!$D$16&"_"&$Z$1 -> 
O114: KIA | P114: 2020 | Q114: AUTOMOVIL | R114: 20 | S114: 2 | T114: 20_2_2020_AUTOMOVIL | U114: SOUL EX AUT 5P 4CIL | V114: 10347.44847 | X114: 112 | Y114: =VLOOKUP(Simulación!$D$15,Catalogos!$O:$R,4,0) ->  | Z114: =Y114&"_"&X114&"_"&Simulación!$D$16&"_"&$Z$1 -> 
O115: KIA | P115: 2020 | Q115: AUTOMOVIL | R115: 20 | S115: 3 | T115: 20_3_2020_AUTOMOVIL | U115: SOUL LX STD 5P 4CIL | V115: 8830.056295 | X115: 113 | Y115: =VLOOKUP(Simulación!$D$15,Catalogos!$O:$R,4,0) ->  | Z115: =Y115&"_"&X115&"_"&Simulación!$D$16&"_"&$Z$1 -> 
O116: KIA | P116: 2020 | Q116: AUTOMOVIL | R116: 20 | S116: 4 | T116: 20_4_2020_AUTOMOVIL | U116: SOUL EX PACK AUT 5P 4CIL | V116: 11427.38517 | X116: 114 | Y116: =VLOOKUP(Simulación!$D$15,Catalogos!$O:$R,4,0) ->  | Z116: =Y116&"_"&X116&"_"&Simulación!$D$16&"_"&$Z$1 -> 
O117: TOYOTA | P117: 2020 | Q117: AUTOMOVIL | R117: 39 | S117: 1 | T117: 39_1_2020_AUTOMOVIL | U117: SIENNA 3.5 LE AT | V117: 9495.360316 | X117: 115 | Y117: =VLOOKUP(Simulación!$D$15,Catalogos!$O:$R,4,0) ->  | Z117: =Y117&"_"&X117&"_"&Simulación!$D$16&"_"&$Z$1 -> 
O118: TOYOTA | P118: 2020 | Q118: AUTOMOVIL | R118: 39 | S118: 2 | T118: 39_2_2020_AUTOMOVIL | U118: SIENNA 3.5 CE AT | V118: 8719.841795 | X118: 116 | Y118: =VLOOKUP(Simulación!$D$15,Catalogos!$O:$R,4,0) ->  | Z118: =Y118&"_"&X118&"_"&Simulación!$D$16&"_"&$Z$1 -> 
O119: TOYOTA | P119: 2020 | Q119: AUTOMOVIL | R119: 39 | S119: 3 | T119: 39_3_2020_AUTOMOVIL | U119: SIENNA 3.5 LIMITED AT (N) | V119: 14206.10024 | X119: 117 | Y119: =VLOOKUP(Simulación!$D$15,Catalogos!$O:$R,4,0) ->  | Z119: =Y119&"_"&X119&"_"&Simulación!$D$16&"_"&$Z$1 -> 
O120: TOYOTA | P120: 2020 | Q120: AUTOMOVIL | R120: 39 | S120: 4 | T120: 39_4_2020_AUTOMOVIL | U120: COROLLA BASE MT | V120: 17857.59567 | X120: 118 | Y120: =VLOOKUP(Simulación!$D$15,Catalogos!$O:$R,4,0) ->  | Z120: =Y120&"_"&X120&"_"&Simulación!$D$16&"_"&$Z$1 -> 
O121: TOYOTA | P121: 2020 | Q121: AUTOMOVIL | R121: 39 | S121: 5 | T121: 39_5_2020_AUTOMOVIL | U121: COROLLA BASE AT | V121: 18501.86787 | X121: 119 | Y121: =VLOOKUP(Simulación!$D$15,Catalogos!$O:$R,4,0) ->  | Z121: =Y121&"_"&X121&"_"&Simulación!$D$16&"_"&$Z$1 -> 
O122: TOYOTA | P122: 2020 | Q122: AUTOMOVIL | R122: 39 | S122: 6 | T122: 39_6_2020_AUTOMOVIL | U122: COROLLA LE | V122: 18662.28182 | X122: 120 | Y122: =VLOOKUP(Simulación!$D$15,Catalogos!$O:$R,4,0) ->  | Z122: =Y122&"_"&X122&"_"&Simulación!$D$16&"_"&$Z$1 -> 
O123: TOYOTA | P123: 2020 | Q123: AUTOMOVIL | R123: 39 | S123: 7 | T123: 39_7_2020_AUTOMOVIL | U123: SIENNA 3.5 XLE AT | V123: 10279.97619 | X123: 121 | Y123: =VLOOKUP(Simulación!$D$15,Catalogos!$O:$R,4,0) ->  | Z123: =Y123&"_"&X123&"_"&Simulación!$D$16&"_"&$Z$1 -> 
O124: TOYOTA | P124: 2020 | Q124: AUTOMOVIL | R124: 39 | S124: 8 | T124: 39_8_2020_AUTOMOVIL | U124: SIENNA XLE AUT 5P PIEL 6CIL | V124: 11811.76951 | X124: 122 | Y124: =VLOOKUP(Simulación!$D$15,Catalogos!$O:$R,4,0) ->  | Z124: =Y124&"_"&X124&"_"&Simulación!$D$16&"_"&$Z$1 -> 
O125: TOYOTA | P125: 2020 | Q125: AUTOMOVIL | R125: 39 | S125: 9 | T125: 39_9_2020_AUTOMOVIL | U125: COROLLA SE AUT 4P 4CIL | V125: 21793.21655 | X125: 123 | Y125: =VLOOKUP(Simulación!$D$15,Catalogos!$O:$R,4,0) ->  | Z125: =Y125&"_"&X125&"_"&Simulación!$D$16&"_"&$Z$1 -> 
O126: TOYOTA | P126: 2020 | Q126: AUTOMOVIL | R126: 39 | S126: 10 | T126: 39_10_2020_AUTOMOVIL | U126: COROLLA LE HV AUT 4P 4CIL | V126: 25306.68996 | X126: 124 | Y126: =VLOOKUP(Simulación!$D$15,Catalogos!$O:$R,4,0) ->  | Z126: =Y126&"_"&X126&"_"&Simulación!$D$16&"_"&$Z$1 -> 
O127: TOYOTA | P127: 2020 | Q127: AUTOMOVIL | R127: 39 | S127: 11 | T127: 39_11_2020_AUTOMOVIL | U127: HIACE 12 PASAJEROS | V127: 16175.07551 | X127: 125 | Y127: =VLOOKUP(Simulación!$D$15,Catalogos!$O:$R,4,0) ->  | Z127: =Y127&"_"&X127&"_"&Simulación!$D$16&"_"&$Z$1 -> 
O128: TOYOTA | P128: 2020 | Q128: AUTOMOVIL | R128: 39 | S128: 12 | T128: 39_12_2020_AUTOMOVIL | U128: AVANZA LE STD 5P 4CIL | V128: 7926.050839 | X128: 126 | Y128: =VLOOKUP(Simulación!$D$15,Catalogos!$O:$R,4,0) ->  | Z128: =Y128&"_"&X128&"_"&Simulación!$D$16&"_"&$Z$1 -> 
O129: TOYOTA | P129: 2020 | Q129: AUTOMOVIL | R129: 39 | S129: 13 | T129: 39_13_2020_AUTOMOVIL | U129: AVANZA XLE AUT 5P 4CIL | V129: 8718.348039 | X129: 127 | Y129: =VLOOKUP(Simulación!$D$15,Catalogos!$O:$R,4,0) ->  | Z129: =Y129&"_"&X129&"_"&Simulación!$D$16&"_"&$Z$1 -> 
O130: TOYOTA | P130: 2020 | Q130: AUTOMOVIL | R130: 39 | S130: 14 | T130: 39_14_2020_AUTOMOVIL | U130: AVANZA LE AUT 5P 4CIL | V130: 8051.139365 | X130: 128 | Y130: =VLOOKUP(Simulación!$D$15,Catalogos!$O:$R,4,0) ->  | Z130: =Y130&"_"&X130&"_"&Simulación!$D$16&"_"&$Z$1 -> 
O131: HONDA | P131: 2020 | Q131: AUTOMOVIL | R131: 15 | S131: =IF(O131&P131=O130&P130,S130+1,1) -> 1 | T131: =R131&"_"&S131&"_"&P131&"_"&Q131 -> 15_1_2020_AUTOMOVIL | U131: CITY LX MT 1.5 | V131: 12957.9252 | X131: 129 | Y131: =VLOOKUP(Simulación!$D$15,Catalogos!$O:$R,4,0) ->  | Z131: =Y131&"_"&X131&"_"&Simulación!$D$16&"_"&$Z$1 ->  | AA131: =IFERROR(VLOOKUP(Z131,$T:$V,2,0),"") ->  | AB131: =IFERROR(VLOOKUP(Z131,$T:$V,3,0),"") -> 
O132: HONDA | P132: 2020 | Q132: AUTOMOVIL | R132: =VLOOKUP(O132,$L$3:$M$43,2,0) -> 15 | S132: 2 | T132: 15_2_2020_AUTOMOVIL | U132: CITY LX AT 1.5 | V132: 13802.57952 | X132: 130 | Y132: =VLOOKUP(Simulación!$D$15,Catalogos!$O:$R,4,0) ->  | Z132: =Y132&"_"&X132&"_"&Simulación!$D$16&"_"&$Z$1 -> 
O133: HONDA | P133: 2020 | Q133: AUTOMOVIL | R133: 15 | S133: 3 | T133: 15_3_2020_AUTOMOVIL | U133: CITY EX AT 1.5 | V133: 14564.71932 | X133: 131 | Y133: =VLOOKUP(Simulación!$D$15,Catalogos!$O:$R,4,0) ->  | Z133: =Y133&"_"&X133&"_"&Simulación!$D$16&"_"&$Z$1 -> 
O134: BMW | P134: 2020 | Q134: AUTOMOVIL | R134: 7 | S134: 1 | T134: 7_1_2020_AUTOMOVIL | U134: CHILI (N) | V134: 20249.56972 | X134: 132 | Y134: =VLOOKUP(Simulación!$D$15,Catalogos!$O:$R,4,0) ->  | Z134: =Y134&"_"&X134&"_"&Simulación!$D$16&"_"&$Z$1 -> 
O135: LAND ROVER | P135: 2020 | Q135: AUTOMOVIL | R135: 22 | S135: 1 | T135: 22_1_2020_AUTOMOVIL | U135: RANGE ROVER EVOQUE SE AUT 5P 4CIL | V135: 50578.19921 | X135: 133 | Y135: =VLOOKUP(Simulación!$D$15,Catalogos!$O:$R,4,0) ->  | Z135: =Y135&"_"&X135&"_"&Simulación!$D$16&"_"&$Z$1 -> 
O136: MAZDA | P136: 2020 | Q136: AUTOMOVIL | R136: 26 | S136: 1 | T136: 26_1_2020_AUTOMOVIL | U136: MAZDA6 I SPORT AT | V136: 14705.08574 | X136: 134 | Y136: =VLOOKUP(Simulación!$D$15,Catalogos!$O:$R,4,0) ->  | Z136: =Y136&"_"&X136&"_"&Simulación!$D$16&"_"&$Z$1 -> 
O137: PEUGEOT | P137: 2020 | Q137: AUTOMOVIL | R137: 31 | S137: 1 | T137: 31_1_2020_AUTOMOVIL | U137: 301 ACTIVE 1.6L SEDAN STD | V137: 12618.19551 | X137: 135 | Y137: =VLOOKUP(Simulación!$D$15,Catalogos!$O:$R,4,0) ->  | Z137: =Y137&"_"&X137&"_"&Simulación!$D$16&"_"&$Z$1 -> 
O138: PEUGEOT | P138: 2020 | Q138: AUTOMOVIL | R138: 31 | S138: 2 | T138: 31_2_2020_AUTOMOVIL | U138: 301 ALLURE 1.6L SEDAN TIPTRONIC | V138: 15294.25977 | X138: 136 | Y138: =VLOOKUP(Simulación!$D$15,Catalogos!$O:$R,4,0) ->  | Z138: =Y138&"_"&X138&"_"&Simulación!$D$16&"_"&$Z$1 -> 
O139: PEUGEOT | P139: 2020 | Q139: AUTOMOVIL | R139: 31 | S139: 3 | T139: 31_3_2020_AUTOMOVIL | U139: 301 ALLURE HDI STD 4P 4CIL | V139: 14745.49022 | X139: 137 | Y139: =VLOOKUP(Simulación!$D$15,Catalogos!$O:$R,4,0) ->  | Z139: =Y139&"_"&X139&"_"&Simulación!$D$16&"_"&$Z$1 -> 
O140: PEUGEOT | P140: 2020 | Q140: AUTOMOVIL | R140: 31 | S140: 4 | T140: 31_4_2020_AUTOMOVIL | U140: 5008 ALLURE PACK AUT 5P 4CIL | V140: 15366.94599 | X140: 138 | Y140: =VLOOKUP(Simulación!$D$15,Catalogos!$O:$R,4,0) ->  | Z140: =Y140&"_"&X140&"_"&Simulación!$D$16&"_"&$Z$1 -> 
O141: PEUGEOT | P141: 2020 | Q141: AUTOMOVIL | R141: 31 | S141: 5 | T141: 31_5_2020_AUTOMOVIL | U141: 5008 GT LINE AUT 5P 4CIL | V141: 17548.44108 | X141: 139 | Y141: =VLOOKUP(Simulación!$D$15,Catalogos!$O:$R,4,0) ->  | Z141: =Y141&"_"&X141&"_"&Simulación!$D$16&"_"&$Z$1 -> 
O142: PEUGEOT | P142: 2020 | Q142: AUTOMOVIL | R142: 31 | S142: 6 | T142: 31_6_2020_AUTOMOVIL | U142: 5008 GT LINE HDI AUT 5P 4CIL | V142: 18239.67107 | X142: 140 | Y142: =VLOOKUP(Simulación!$D$15,Catalogos!$O:$R,4,0) ->  | Z142: =Y142&"_"&X142&"_"&Simulación!$D$16&"_"&$Z$1 -> 
O143: PEUGEOT | P143: 2020 | Q143: AUTOMOVIL | R143: 31 | S143: 7 | T143: 31_7_2020_AUTOMOVIL | U143: 308 GT AUT 5P 4CIL | V143: 25290.33246 | X143: 141 | Y143: =VLOOKUP(Simulación!$D$15,Catalogos!$O:$R,4,0) ->  | Z143: =Y143&"_"&X143&"_"&Simulación!$D$16&"_"&$Z$1 -> 
O144: MERCEDES BENZ | P144: 2020 | Q144: AUTOMOVIL | R144: 28 | S144: 1 | T144: 28_1_2020_AUTOMOVIL | U144: 2008 ACTIVE AUT 5P 3CIL | V144: 10835.18809 | X144: 142 | Y144: =VLOOKUP(Simulación!$D$15,Catalogos!$O:$R,4,0) ->  | Z144: =Y144&"_"&X144&"_"&Simulación!$D$16&"_"&$Z$1 -> 
O145: MERCEDES BENZ | P145: 2020 | Q145: AUTOMOVIL | R145: 28 | S145: 2 | T145: 28_2_2020_AUTOMOVIL | U145: GLA 250 CGI SPORT AUT | V145: 31398.61166 | X145: 143 | Y145: =VLOOKUP(Simulación!$D$15,Catalogos!$O:$R,4,0) ->  | Z145: =Y145&"_"&X145&"_"&Simulación!$D$16&"_"&$Z$1 -> 
O146: MERCEDES BENZ | P146: 2020 | Q146: AUTOMOVIL | R146: 28 | S146: 3 | T146: 28_3_2020_AUTOMOVIL | U146: GLA 200 CGI SPORT AUT | V146: 29213.70866 | X146: 144 | Y146: =VLOOKUP(Simulación!$D$15,Catalogos!$O:$R,4,0) ->  | Z146: =Y146&"_"&X146&"_"&Simulación!$D$16&"_"&$Z$1 -> 
O147: VOLKSWAGEN | P147: 2020 | Q147: AUTOMOVIL | R147: 40 | S147: 1 | T147: 40_1_2020_AUTOMOVIL | U147: VENTO HIGHLINE STD | V147: 12625.32664 | X147: 145 | Y147: =VLOOKUP(Simulación!$D$15,Catalogos!$O:$R,4,0) ->  | Z147: =Y147&"_"&X147&"_"&Simulación!$D$16&"_"&$Z$1 -> 
O148: VOLKSWAGEN | P148: 2020 | Q148: AUTOMOVIL | R148: 40 | S148: 2 | T148: 40_2_2020_AUTOMOVIL | U148: VENTO HIGHLINE TIPTRONIC | V148: 13649.79888 | X148: 146 | Y148: =VLOOKUP(Simulación!$D$15,Catalogos!$O:$R,4,0) ->  | Z148: =Y148&"_"&X148&"_"&Simulación!$D$16&"_"&$Z$1 -> 
O149: VOLKSWAGEN | P149: 2020 | Q149: AUTOMOVIL | R149: 40 | S149: 3 | T149: 40_3_2020_AUTOMOVIL | U149: VENTO STARTLINE STD 4P 4CIL | V149: 11335.81125 | X149: 147 | Y149: =VLOOKUP(Simulación!$D$15,Catalogos!$O:$R,4,0) ->  | Z149: =Y149&"_"&X149&"_"&Simulación!$D$16&"_"&$Z$1 -> 
O150: VOLKSWAGEN | P150: 2020 | Q150: AUTOMOVIL | R150: 40 | S150: 4 | T150: 40_4_2020_AUTOMOVIL | U150: VENTO STARTLINE TIPTRONIC 4P 4CIL | V150: 12487.87722 | X150: 148 | Y150: =VLOOKUP(Simulación!$D$15,Catalogos!$O:$R,4,0) ->  | Z150: =Y150&"_"&X150&"_"&Simulación!$D$16&"_"&$Z$1 -> 
O151: VOLKSWAGEN | P151: 2020 | Q151: AUTOMOVIL | R151: 40 | S151: 5 | T151: 40_5_2020_AUTOMOVIL | U151: VENTO COMFORTLINE STD 4P 4CIL | V151: 12098.64193 | X151: 149 | Y151: =VLOOKUP(Simulación!$D$15,Catalogos!$O:$R,4,0) ->  | Z151: =Y151&"_"&X151&"_"&Simulación!$D$16&"_"&$Z$1 -> 
O152: VOLKSWAGEN | P152: 2020 | Q152: AUTOMOVIL | R152: 40 | S152: 6 | T152: 40_6_2020_AUTOMOVIL | U152: VENTO COMFORTLINE TIPTRONIC 4P 4CIL | V152: 13120.83762 | X152: 150 | Y152: =VLOOKUP(Simulación!$D$15,Catalogos!$O:$R,4,0) ->  | Z152: =Y152&"_"&X152&"_"&Simulación!$D$16&"_"&$Z$1 -> 
O153: HYUNDAI | P153: 2020 | Q153: AUTOMOVIL | R153: 16 | S153: 1 | T153: 16_1_2020_AUTOMOVIL | U153: GRAND I10 GLS STD 4P 4CIL | V153: 10627.03192 | X153: 151 | Y153: =VLOOKUP(Simulación!$D$15,Catalogos!$O:$R,4,0) ->  | Z153: =Y153&"_"&X153&"_"&Simulación!$D$16&"_"&$Z$1 -> 
O154: HYUNDAI | P154: 2020 | Q154: AUTOMOVIL | R154: 16 | S154: 2 | T154: 16_2_2020_AUTOMOVIL | U154: ACCENT GL AUT 4P 4CIL | V154: 10368.7786 | X154: 152 | Y154: =VLOOKUP(Simulación!$D$15,Catalogos!$O:$R,4,0) ->  | Z154: =Y154&"_"&X154&"_"&Simulación!$D$16&"_"&$Z$1 -> 
O155: HYUNDAI | P155: 2020 | Q155: AUTOMOVIL | R155: 16 | S155: 3 | T155: 16_3_2020_AUTOMOVIL | U155: ACCENT MID GL STD 5P 4CIL | V155: 10334.2106 | X155: 153 | Y155: =VLOOKUP(Simulación!$D$15,Catalogos!$O:$R,4,0) ->  | Z155: =Y155&"_"&X155&"_"&Simulación!$D$16&"_"&$Z$1 -> 
O156: HYUNDAI | P156: 2020 | Q156: AUTOMOVIL | R156: 16 | S156: 4 | T156: 16_4_2020_AUTOMOVIL | U156: ACCENT MID GL AUT 5P 4CIL | V156: 10808.83193 | X156: 154 | Y156: =VLOOKUP(Simulación!$D$15,Catalogos!$O:$R,4,0) ->  | Z156: =Y156&"_"&X156&"_"&Simulación!$D$16&"_"&$Z$1 -> 
O157: PORSCHE | P157: 2020 | Q157: AUTOMOVIL | R157: 32 | S157: 1 | T157: 32_1_2020_AUTOMOVIL | U157: 718 CAYMAN STD 2P 4CIL | V157: 43333.11704 | X157: 155 | Y157: =VLOOKUP(Simulación!$D$15,Catalogos!$O:$R,4,0) ->  | Z157: =Y157&"_"&X157&"_"&Simulación!$D$16&"_"&$Z$1 -> 
O158: KIA | P158: 2020 | Q158: AUTOMOVIL | R158: 20 | S158: 1 | T158: 20_1_2020_AUTOMOVIL | U158: FORTE LX AUT 4P 4CIL | V158: 9670.591827 | X158: 156 | Y158: =VLOOKUP(Simulación!$D$15,Catalogos!$O:$R,4,0) ->  | Z158: =Y158&"_"&X158&"_"&Simulación!$D$16&"_"&$Z$1 -> 
O159: KIA | P159: 2020 | Q159: AUTOMOVIL | R159: 20 | S159: 2 | T159: 20_2_2020_AUTOMOVIL | U159: RIO LX STD 5P 4CIL | V159: 10234.15993 | X159: 157 | Y159: =VLOOKUP(Simulación!$D$15,Catalogos!$O:$R,4,0) ->  | Z159: =Y159&"_"&X159&"_"&Simulación!$D$16&"_"&$Z$1 -> 
O160: KIA | P160: 2020 | Q160: AUTOMOVIL | R160: 20 | S160: 3 | T160: 20_3_2020_AUTOMOVIL | U160: RIO LX STD 4P 4CIL | V160: 10197.27603 | X160: 158 | Y160: =VLOOKUP(Simulación!$D$15,Catalogos!$O:$R,4,0) ->  | Z160: =Y160&"_"&X160&"_"&Simulación!$D$16&"_"&$Z$1 -> 
O161: KIA | P161: 2020 | Q161: AUTOMOVIL | R161: 20 | S161: 4 | T161: 20_4_2020_AUTOMOVIL | U161: FORTE L STD 4P 4CIL | V161: 8298.780399 | X161: 159 | Y161: =VLOOKUP(Simulación!$D$15,Catalogos!$O:$R,4,0) ->  | Z161: =Y161&"_"&X161&"_"&Simulación!$D$16&"_"&$Z$1 -> 
O162: KIA | P162: 2020 | Q162: AUTOMOVIL | R162: 20 | S162: 5 | T162: 20_5_2020_AUTOMOVIL | U162: RIO L STD 5P 4CIL | V162: 10360.25603 | X162: 160 | Y162: =VLOOKUP(Simulación!$D$15,Catalogos!$O:$R,4,0) ->  | Z162: =Y162&"_"&X162&"_"&Simulación!$D$16&"_"&$Z$1 -> 
O163: KIA | P163: 2020 | Q163: AUTOMOVIL | R163: 20 | S163: 6 | T163: 20_6_2020_AUTOMOVIL | U163: RIO LX AUT 5P 4CIL | V163: 11903.83037 | X163: 161 | Y163: =VLOOKUP(Simulación!$D$15,Catalogos!$O:$R,4,0) ->  | Z163: =Y163&"_"&X163&"_"&Simulación!$D$16&"_"&$Z$1 -> 
O164: KIA | P164: 2020 | Q164: AUTOMOVIL | R164: 20 | S164: 7 | T164: 20_7_2020_AUTOMOVIL | U164: RIO EX AUT 5P 4CIL | V164: 12866.48891 | X164: 162 | Y164: =VLOOKUP(Simulación!$D$15,Catalogos!$O:$R,4,0) ->  | Z164: =Y164&"_"&X164&"_"&Simulación!$D$16&"_"&$Z$1 -> 
O165: KIA | P165: 2020 | Q165: AUTOMOVIL | R165: 20 | S165: 8 | T165: 20_8_2020_AUTOMOVIL | U165: RIO LX AUT 4P 4CIL | V165: 11999.72851 | X165: 163 | Y165: =VLOOKUP(Simulación!$D$15,Catalogos!$O:$R,4,0) ->  | Z165: =Y165&"_"&X165&"_"&Simulación!$D$16&"_"&$Z$1 -> 
O166: KIA | P166: 2020 | Q166: AUTOMOVIL | R166: 20 | S166: 9 | T166: 20_9_2020_AUTOMOVIL | U166: FORTE L AUT 4P 4CIL | V166: 9429.391753 | X166: 164 | Y166: =VLOOKUP(Simulación!$D$15,Catalogos!$O:$R,4,0) ->  | Z166: =Y166&"_"&X166&"_"&Simulación!$D$16&"_"&$Z$1 -> 
O167: KIA | P167: 2020 | Q167: AUTOMOVIL | R167: 20 | S167: 10 | T167: 20_10_2020_AUTOMOVIL | U167: RIO L AUT 4P 4CIL | V167: 10784.42088 | X167: 165 | Y167: =VLOOKUP(Simulación!$D$15,Catalogos!$O:$R,4,0) ->  | Z167: =Y167&"_"&X167&"_"&Simulación!$D$16&"_"&$Z$1 -> 
O168: KIA | P168: 2020 | Q168: AUTOMOVIL | R168: 20 | S168: 11 | T168: 20_11_2020_AUTOMOVIL | U168: RIO L STD 4P 4CIL | V168: 10437.71222 | X168: 166 | Y168: =VLOOKUP(Simulación!$D$15,Catalogos!$O:$R,4,0) ->  | Z168: =Y168&"_"&X168&"_"&Simulación!$D$16&"_"&$Z$1 -> 
O169: KIA | P169: 2020 | Q169: AUTOMOVIL | R169: 20 | S169: 12 | T169: 20_12_2020_AUTOMOVIL | U169: RIO EX RED PACK AUT 5P 4CIL | V169: 11693.14153 | X169: 167 | Y169: =VLOOKUP(Simulación!$D$15,Catalogos!$O:$R,4,0) ->  | Z169: =Y169&"_"&X169&"_"&Simulación!$D$16&"_"&$Z$1 -> 
O170: KIA | P170: 2020 | Q170: AUTOMOVIL | R170: 20 | S170: 13 | T170: 20_13_2020_AUTOMOVIL | U170: FORTE GT LINE STD 5P 4CIL | V170: 11722.79489 | X170: 168 | Y170: =VLOOKUP(Simulación!$D$15,Catalogos!$O:$R,4,0) ->  | Z170: =Y170&"_"&X170&"_"&Simulación!$D$16&"_"&$Z$1 -> 
O171: KIA | P171: 2020 | Q171: AUTOMOVIL | R171: 20 | S171: 14 | T171: 20_14_2020_AUTOMOVIL | U171: FORTE GT LINE AUT 5P 4CIL | V171: 12073.13923 | X171: 169 | Y171: =VLOOKUP(Simulación!$D$15,Catalogos!$O:$R,4,0) ->  | Z171: =Y171&"_"&X171&"_"&Simulación!$D$16&"_"&$Z$1 -> 
O172: KIA | P172: 2020 | Q172: AUTOMOVIL | R172: 20 | S172: 15 | T172: 20_15_2020_AUTOMOVIL | U172: FORTE GT STD 5P 4CIL | V172: 13200.1395 | X172: 170 | Y172: =VLOOKUP(Simulación!$D$15,Catalogos!$O:$R,4,0) ->  | Z172: =Y172&"_"&X172&"_"&Simulación!$D$16&"_"&$Z$1 -> 
O173: KIA | P173: 2020 | Q173: AUTOMOVIL | R173: 20 | S173: 16 | T173: 20_16_2020_AUTOMOVIL | U173: FORTE GT AUT 5P 4CIL | V173: 13701.12583 | X173: 171 | Y173: =VLOOKUP(Simulación!$D$15,Catalogos!$O:$R,4,0) ->  | Z173: =Y173&"_"&X173&"_"&Simulación!$D$16&"_"&$Z$1 -> 
O174: BMW | P174: 2020 | Q174: AUTOMOVIL | R174: 7 | S174: 1 | T174: 7_1_2020_AUTOMOVIL | U174: MINI S JCW HOT CHILI AUT 3P 4CIL | V174: 32130.53742 | X174: 172 | Y174: =VLOOKUP(Simulación!$D$15,Catalogos!$O:$R,4,0) ->  | Z174: =Y174&"_"&X174&"_"&Simulación!$D$16&"_"&$Z$1 -> 
O175: CHRYSLER | P175: 2020 | Q175: AUTOMOVIL | R175: 9 | S175: 1 | T175: 9_1_2020_AUTOMOVIL | U175: WRANGLER JK UNLIMITED SPORT AUT 5P 6CIL 4X4 | V175: 11398.30152 | X175: 173 | Y175: =VLOOKUP(Simulación!$D$15,Catalogos!$O:$R,4,0) ->  | Z175: =Y175&"_"&X175&"_"&Simulación!$D$16&"_"&$Z$1 -> 
O176: VOLKSWAGEN | P176: 2020 | Q176: AUTOMOVIL | R176: 40 | S176: 1 | T176: 40_1_2020_AUTOMOVIL | U176: POLO STARTLINE STD 5P 4CIL | V176: 10481.97209 | X176: 174 | Y176: =VLOOKUP(Simulación!$D$15,Catalogos!$O:$R,4,0) ->  | Z176: =Y176&"_"&X176&"_"&Simulación!$D$16&"_"&$Z$1 -> 
O177: VOLKSWAGEN | P177: 2020 | Q177: AUTOMOVIL | R177: 40 | S177: 2 | T177: 40_2_2020_AUTOMOVIL | U177: POLO DESIGN SOUND STD 5P 4CIL | V177: 11751.80003 | X177: 175 | Y177: =VLOOKUP(Simulación!$D$15,Catalogos!$O:$R,4,0) ->  | Z177: =Y177&"_"&X177&"_"&Simulación!$D$16&"_"&$Z$1 -> 
O178: RENAULT | P178: 2020 | Q178: AUTOMOVIL | R178: 33 | S178: 1 | T178: 33_1_2020_AUTOMOVIL | U178: CAPTUR INTENS AUT 5P 4CIL | V178: 18052.42964 | X178: 176 | Y178: =VLOOKUP(Simulación!$D$15,Catalogos!$O:$R,4,0) ->  | Z178: =Y178&"_"&X178&"_"&Simulación!$D$16&"_"&$Z$1 -> 
O179: CHEVROLET | P179: 2020 | Q179: AUTOMOVIL | R179: 8 | S179: 1 | T179: 8_1_2020_AUTOMOVIL | U179: AVEO LS STD 4P AC 4CIL | V179: 11062.31952 | X179: 177 | Y179: =VLOOKUP(Simulación!$D$15,Catalogos!$O:$R,4,0) ->  | Z179: =Y179&"_"&X179&"_"&Simulación!$D$16&"_"&$Z$1 -> 
O180: CHEVROLET | P180: 2020 | Q180: AUTOMOVIL | R180: 8 | S180: 2 | T180: 8_2_2020_AUTOMOVIL | U180: AVEO LT AUT 4P 4CIL | V180: 12573.68805 | X180: 178 | Y180: =VLOOKUP(Simulación!$D$15,Catalogos!$O:$R,4,0) ->  | Z180: =Y180&"_"&X180&"_"&Simulación!$D$16&"_"&$Z$1 -> 
O181: HYUNDAI | P181: 2020 | Q181: AUTOMOVIL | R181: 16 | S181: 1 | T181: 16_1_2020_AUTOMOVIL | U181: GRAND I10 GLS PLUS AUT 5P 4CIL | V181: 11028.58723 | X181: 179 | Y181: =VLOOKUP(Simulación!$D$15,Catalogos!$O:$R,4,0) ->  | Z181: =Y181&"_"&X181&"_"&Simulación!$D$16&"_"&$Z$1 -> 
O182: HYUNDAI | P182: 2020 | Q182: AUTOMOVIL | R182: 16 | S182: 2 | T182: 16_2_2020_AUTOMOVIL | U182: ACCENT GL STD 4P 4CIL | V182: 9878.444538 | X182: 180 | Y182: =VLOOKUP(Simulación!$D$15,Catalogos!$O:$R,4,0) ->  | Z182: =Y182&"_"&X182&"_"&Simulación!$D$16&"_"&$Z$1 -> 
O183: HYUNDAI | P183: 2020 | Q183: AUTOMOVIL | R183: 16 | S183: 3 | T183: 16_3_2020_AUTOMOVIL | U183: ACCENT GLS AUT 4P 4CIL | V183: 11843.02023 | X183: 181 | Y183: =VLOOKUP(Simulación!$D$15,Catalogos!$O:$R,4,0) ->  | Z183: =Y183&"_"&X183&"_"&Simulación!$D$16&"_"&$Z$1 -> 
O184: KIA | P184: 2020 | Q184: AUTOMOVIL | R184: 20 | S184: 1 | T184: 20_1_2020_AUTOMOVIL | U184: FORTE EX AUT 4P 4CIL | V184: 10465.33178 | X184: 182 | Y184: =VLOOKUP(Simulación!$D$15,Catalogos!$O:$R,4,0) ->  | Z184: =Y184&"_"&X184&"_"&Simulación!$D$16&"_"&$Z$1 -> 
O185: BMW | P185: 2020 | Q185: AUTOMOVIL | R185: 7 | S185: 1 | T185: 7_1_2020_AUTOMOVIL | U185: X2 SDRIVE 20IA EXECUTIVE AUT 2.0 5P 4CIL | V185: 25380.54807 | X185: 183 | Y185: =VLOOKUP(Simulación!$D$15,Catalogos!$O:$R,4,0) ->  | Z185: =Y185&"_"&X185&"_"&Simulación!$D$16&"_"&$Z$1 -> 
O186: MERCEDES BENZ | P186: 2020 | Q186: AUTOMOVIL | R186: 28 | S186: 1 | T186: 28_1_2020_AUTOMOVIL | U186: GLE 43 SPORT COUPE AMG AUT 5P 6CIL | V186: 49349.64525 | X186: 184 | Y186: =VLOOKUP(Simulación!$D$15,Catalogos!$O:$R,4,0) ->  | Z186: =Y186&"_"&X186&"_"&Simulación!$D$16&"_"&$Z$1 -> 
O187: BMW | P187: 2020 | Q187: AUTOMOVIL | R187: 7 | S187: 1 | T187: 7_1_2020_AUTOMOVIL | U187: X5 XDRIVE40I EXECUTIVE AUT 5P 6CIL | V187: 46364.96018 | X187: 185 | Y187: =VLOOKUP(Simulación!$D$15,Catalogos!$O:$R,4,0) ->  | Z187: =Y187&"_"&X187&"_"&Simulación!$D$16&"_"&$Z$1 -> 
O188: BMW | P188: 2020 | Q188: AUTOMOVIL | R188: 7 | S188: 2 | T188: 7_2_2020_AUTOMOVIL | U188: X7 XDRIVE 40IA M SPORT AUT 5P 6CIL | V188: 67347.13716 | X188: 186 | Y188: =VLOOKUP(Simulación!$D$15,Catalogos!$O:$R,4,0) ->  | Z188: =Y188&"_"&X188&"_"&Simulación!$D$16&"_"&$Z$1 -> 
O189: FIAT | P189: 2020 | Q189: AUTOMOVIL | R189: 12 | S189: 1 | T189: 12_1_2020_AUTOMOVIL | U189: PALIO ADVENTURE STD | V189: 12768.77216 | X189: 187 | Y189: =VLOOKUP(Simulación!$D$15,Catalogos!$O:$R,4,0) ->  | Z189: =Y189&"_"&X189&"_"&Simulación!$D$16&"_"&$Z$1 -> 
O190: FIAT | P190: 2020 | Q190: AUTOMOVIL | R190: 12 | S190: 2 | T190: 12_2_2020_AUTOMOVIL | U190: PALIO ADVENTURE AUT | V190: 12768.77216 | X190: 188 | Y190: =VLOOKUP(Simulación!$D$15,Catalogos!$O:$R,4,0) ->  | Z190: =Y190&"_"&X190&"_"&Simulación!$D$16&"_"&$Z$1 -> 
O191: FIAT | P191: 2020 | Q191: AUTOMOVIL | R191: 12 | S191: 3 | T191: 12_3_2020_AUTOMOVIL | U191: UNO WAY STD 5P AC 4CIL | V191: 7917.43763 | X191: 189 | Y191: =VLOOKUP(Simulación!$D$15,Catalogos!$O:$R,4,0) ->  | Z191: =Y191&"_"&X191&"_"&Simulación!$D$16&"_"&$Z$1 -> 
O192: FIAT | P192: 2020 | Q192: AUTOMOVIL | R192: 12 | S192: 4 | T192: 12_4_2020_AUTOMOVIL | U192: UNO SPORTING STD 5P 4CIL | V192: 8479.060736 | X192: 190 | Y192: =VLOOKUP(Simulación!$D$15,Catalogos!$O:$R,4,0) ->  | Z192: =Y192&"_"&X192&"_"&Simulación!$D$16&"_"&$Z$1 -> 
O193: FIAT | P193: 2020 | Q193: AUTOMOVIL | R193: 12 | S193: 5 | T193: 12_5_2020_AUTOMOVIL | U193: MOBI LIKE STD 5P 4CIL | V193: 8331.834602 | X193: 191 | Y193: =VLOOKUP(Simulación!$D$15,Catalogos!$O:$R,4,0) ->  | Z193: =Y193&"_"&X193&"_"&Simulación!$D$16&"_"&$Z$1 -> 
O194: FIAT | P194: 2020 | Q194: AUTOMOVIL | R194: 12 | S194: 6 | T194: 12_6_2020_AUTOMOVIL | U194: MOBI WAY STD AUT 5P 4CIL | V194: 8878.990025 | X194: 192 | Y194: =VLOOKUP(Simulación!$D$15,Catalogos!$O:$R,4,0) ->  | Z194: =Y194&"_"&X194&"_"&Simulación!$D$16&"_"&$Z$1 -> 
O195: FIAT | P195: 2020 | Q195: AUTOMOVIL | R195: 12 | S195: =IF(O195&P195=O194&P194,S194+1,1) -> 7 | T195: =R195&"_"&S195&"_"&P195&"_"&Q195 -> 12_7_2020_AUTOMOVIL | U195: UNO LIKE STD 5P 4CIL | V195: 7995.10556 | X195: 193 | Y195: =VLOOKUP(Simulación!$D$15,Catalogos!$O:$R,4,0) ->  | Z195: =Y195&"_"&X195&"_"&Simulación!$D$16&"_"&$Z$1 ->  | AA195: =IFERROR(VLOOKUP(Z195,$T:$V,2,0),"") ->  | AB195: =IFERROR(VLOOKUP(Z195,$T:$V,3,0),"") -> 
O196: BMW | P196: 2020 | Q196: AUTOMOVIL | R196: =VLOOKUP(O196,$L$3:$M$43,2,0) -> 7 | S196: 1 | T196: 7_1_2020_AUTOMOVIL | U196: MINI COOPER S HOT CHILI AT | V196: 25931.58138 | X196: 194 | Y196: =VLOOKUP(Simulación!$D$15,Catalogos!$O:$R,4,0) ->  | Z196: =Y196&"_"&X196&"_"&Simulación!$D$16&"_"&$Z$1 -> 
O197: BMW | P197: 2020 | Q197: AUTOMOVIL | R197: 7 | S197: 2 | T197: 7_2_2020_AUTOMOVIL | U197: CHILI AT (N) | V197: 20965.57337 | X197: 195 | Y197: =VLOOKUP(Simulación!$D$15,Catalogos!$O:$R,4,0) ->  | Z197: =Y197&"_"&X197&"_"&Simulación!$D$16&"_"&$Z$1 -> 
O198: BMW | P198: 2020 | Q198: AUTOMOVIL | R198: 7 | S198: 3 | T198: 7_3_2020_AUTOMOVIL | U198: CONVERTIBLE PEPPER AT (N) | V198: 33696.24273 | X198: 196 | Y198: =VLOOKUP(Simulación!$D$15,Catalogos!$O:$R,4,0) ->  | Z198: =Y198&"_"&X198&"_"&Simulación!$D$16&"_"&$Z$1 -> 
O199: BMW | P199: 2020 | Q199: AUTOMOVIL | R199: 7 | S199: 4 | T199: 7_4_2020_AUTOMOVIL | U199: S CONVERTIBLE HOT CHILI AT (N) | V199: 28100.39252 | X199: 197 | Y199: =VLOOKUP(Simulación!$D$15,Catalogos!$O:$R,4,0) ->  | Z199: =Y199&"_"&X199&"_"&Simulación!$D$16&"_"&$Z$1 -> 
O200: BMW | P200: 2020 | Q200: AUTOMOVIL | R200: 7 | S200: 5 | T200: 7_5_2020_AUTOMOVIL | U200: S SALT (N) | V200: 22041.74453 | X200: 198 | Y200: =VLOOKUP(Simulación!$D$15,Catalogos!$O:$R,4,0) ->  | Z200: =Y200&"_"&X200&"_"&Simulación!$D$16&"_"&$Z$1 -> 
... 2050 more rows
